{"text_format":"1","workbook":"xlsx","n_sheets":5,"sheets":["Master List","Form","2017 Graphs","2018 Graphs","1st Quarter 2016 Graphs"],"not_rendered":{"charts":51,"images":1,"macros":1,"external_links":0,"defined_names":17,"comments":0,"pivot_tables":7},"unopened":[],"bounds":{"document_bytes":16777216,"sheet_cells":100000,"rows_first":2000,"rows_last":500,"rows_between":2000,"halvings":0,"cell_chars":16384,"cell_head_chars":4096},"cells_cut":0,"cells_raw":0,"read":"whole","date_system":"1900"}

{"sheet":"Master List","index":0,"n_rows":14,"n_cols":40,"rows_kept":14,"cut":false,"hidden":false,"merged":[]}
["Primary Key Identifier","Last Name","First Name","Month","Day","Year","Day of Week","Time","Shift","Household","Admit/Readmit Date","Type of Incident","If Med Error, Type of Error","Team Member Directly Involved","Team Members Working in Area","Location","Activity","Category of Severity","Responsible Party Notified","Physician Notified","Incident Report Completed","Reported to State Agency","State Report Number","Notes",null,"Month","Shift","Household","Type of Incident","Location","Severity","Responsible Party","Physician Notified","Report Completed","Report to Agency","Activity","Med Error Type","Day of the Week","Day","Year"]
["2017-0001","Smith","Sam","JAN",4,2017,"WED","2:45 AM","Night","Floor 1",null,"FALL",null,null,null,"Resident Room","Unknown","C- No Injury Event","Yes","Yes","Yes","No",null,"Took pillow and laid on the floor",null,"JAN","AM","Floor 1","Fall","Resident Room","A- Unsafe Condition No Event","Yes","Yes","Yes","Yes","Ambulating","Omitted","Mon",1,2017]
["2017-0002","Smith","Sam","JAN",6,2017,"FRI","6:15 AM","AM","Floor 1",null,"Fall",null,null,null,"Resident Room","Standing Up","C- No Injury Event","Yes","Yes","Yes","No",null,null,null,"FEB","PM","Floor 2","Skin","Bathroom","B- Near Miss, Event did not reach resident","No","No","No","No","Transferring","Wrong Med","Tue",2,2018]
["2017-0003","Smith","Sam","JAN",8,2017,"SUN","4:35 AM","Night","Floor 2",null,"FALL",null,null,null,"Dining Room","Standing Up","C- No Injury Event","Yes","Yes","Yes","No",null,null,null,"MAR","NIGHT","Floor 3","PU-Facility Acquired","Hall","C- No Injury Event","No per request",null,null,null,"In Bed","Wrong Dose","Wed",3]
["2017-0004","Smith","Sam","JAN",9,2017,"MON","3:30 PM","PM","Floor 2",null,"Fall",null,null,null,"Resident Room","In Chair","C- No Injury Event","Yes","Yes","Yes","No",null,"Slid out of Wheelchair",null,"APR",null,"Floor 4","PU-Present at Admission","Dining Room","D- No harm, but monitoring needed ex. Skin tear",null,null,null,null,"In Chair","Wrong Time","Thu",4]
["2017-0005","Smith","Sam","JAN",9,2017,"MON","10:00 PM","PM","Floor 3",null,"FALL",null,null,null,"Resident Room","Transferring","C- No Injury Event","Yes","Yes","Yes","No",null,null,null,"MAY",null,"Floor 5","Med Error","Living Room","E- Temporary harm, ex. Sutures",null,null,null,null,"Toileting","Duplication","Fri",5]
["2017-0006","Smith","Sam","JAN","10-11",2017,"TUE","HS","PM","Floor 3",null,"Med Error",null,null,null,"Resident Room",null,"C- No Injury Event","Yes","Yes","Yes","No",null,"wrong strength administered",null,"JUN",null,"Floor 6","Elopement","N/A","F- Temporary harm with hospitalization ex. PU with hosptialization for tx",null,null,null,null,"Reaching/Leaning","N/A","Sat",6]
["2017-0007","Frank","Bob","JAN","11",2017,"WED","8:00 AM","AM","Floor 4",null,"Med Error",null,null,null,"Dining Room",null,"C- No Injury Event","Yes","Yes","Yes","No",null,"Meds Omitted",null,"JUL",null,"Floor 7","Missing Item","Other","G- May have contributed to permanent harm ex. Bone fracture, surgical intervention",null,null,null,null,"Standing Up",null,"Sun",7]
["2017-0008","Frank","Bob","JAN","11",2017,"WED","7:10 PM","PM","Floor 5",null,"FALL",null,null,null,"Resident Room","Ambulating","D- No harm, but monitoring needed ex. Skin tear","Yes","Yes","Yes","No",null,"Bruise to L arm",null,"AUG",null,null,"Other",null,"H- Near death circumstances ex. Elopement w/hypothermia, anaphalactic reaction",null,null,null,null,"Unknown",null,null,8]
["2017-0009","Frank","Bob","JAN","11",2017,"WED","9:45 PM","PM","Floor 3",null,"FALL",null,null,null,"Resident Room","Ambulating","D- No harm, but monitoring needed ex. Skin tear","Yes","Yes","Yes","No",null,"abrasion to L knee",null,"SEP",null,null,null,null,"I- Event contributed to or resulted in death",null,null,null,null,"N/A",null,null,9]
["2017-0010","Frank","Bob","JAN","12",2017,"THU","10:28 PM","PM","Floor 2",null,"FALL",null,null,null,"Resident Room","Standing Up","C- No Injury Event","Yes","Yes","Yes","No",null,null,null,"OCT",null,null,null,null,"U- Cannot assess harm at this time",null,null,null,null,"Other",null,null,10]
["2017-0011","Frank","Bob","JAN","12",2017,"THU","9:25 PM","PM","Floor 6",null,"FALL",null,null,null,"Resident Room","Ambulating","C- No Injury Event","Yes","Yes","Yes","No",null,"Staff education",null,"NOV",null,null,null,null,null,null,null,null,null,null,null,null,11]
["2017-0012","Person","Jill","JAN","13",2017,"FRI","1:40 AM","AM","Floor 6",null,"FALL",null,null,null,"Resident Room","Standing Up","C- No Injury Event","Yes","Yes","Yes","No",null,null,null,"DEC",null,null,null,null,null,null,null,null,null,null,null,null,12]
["2017-0013","Person","Jill","JAN","13",2017,"FRI","6:45 PM","PM","Floor 3",null,"FALL",null,null,null,"Resident Room","Ambulating","D- No harm, but monitoring needed ex. Skin tear","Yes","Yes","Yes","No",null,"Neuro checks, abrasion to knee",null,null,null,null,null,null,null,null,null,null,null,null,null,null,13]

{"sheet":"Form","index":1,"n_rows":2,"n_cols":2,"rows_kept":2,"cut":false,"hidden":false,"merged":[]}
[]
[null,"Use this button to launch the Form for accessing the data in a more graphical format"]

{"sheet":"2017 Graphs","index":2,"n_rows":228,"n_cols":22,"rows_kept":228,"cut":false,"hidden":false,"merged":[]}
[]
[]
[null,null,"Incidents By Count",null,null,"2017 Full Year","2017 Jan","Feb","March","Apr","May","June","July","Aug","Sept","Oct","Nov","Dec","q1","q2","q3","q4"]
[]
[null,null,"Fall",null,null,{"$f":"COUNTIFS('Master List'!L2:L400, \"FALL\",'Master List'!F2:F400, \"2017\")","v":11},{"$f":"COUNTIFS('Master List'!L2:L400, \"FALL\", 'Master List'!D2:D400, \"JAN\")","v":11},{"$f":"COUNTIFS('Master List'!L2:L400, \"FALL\", 'Master List'!D2:D400, \"Feb\", 'Master List'!F2:F400, \"2017\")","v":0},{"$f":"COUNTIFS('Master List'!L2:L400, \"FALL\", 'Master List'!D2:D400, \"Mar\", 'Master List'!F2:F400, \"2017\")","v":0},{"$f":"COUNTIFS('Master List'!L2:L400, \"FALL\", 'Master List'!D2:D400, \"apr\", 'Master List'!F2:F400, \"2017\")","v":0},{"$f":"COUNTIFS('Master List'!L2:L400, \"FALL\", 'Master List'!D2:D400, \"may\", 'Master List'!F2:F400, \"2017\")","v":0},{"$f":"COUNTIFS('Master List'!L2:L400,\"FALL\",'Master List'!D2:D400,\"JUN\", 'Master List'!F2:F400, \"2017\")","v":0},{"$f":"COUNTIFS('Master List'!L2:L400, \"FALL\", 'Master List'!D2:D400, \"JUL\", 'Master List'!F2:F400, \"2017\")","v":0},{"$f":"COUNTIFS('Master List'!L2:L400, \"FALL\", 'Master List'!D2:D400, \"Aug\", 'Master List'!F2:F400, \"2017\")","v":0},{"$f":"COUNTIFS('Master List'!L2:L400, \"FALL\", 'Master List'!D2:D400, \"sep\", 'Master List'!F2:F400, \"2017\")","v":0},{"$f":"COUNTIFS('Master List'!L2:L400, \"FALL\", 'Master List'!D2:D400, \"oct\", 'Master List'!F2:F400, \"2017\")","v":0},{"$f":"COUNTIFS('Master List'!L2:L400, \"FALL\", 'Master List'!D2:D400, \"nov\", 'Master List'!F2:F400, \"2017\")","v":0},{"$f":"COUNTIFS('Master List'!L2:L400, \"FALL\", 'Master List'!D2:D400, \"Dec\", 'Master List'!F2:F400, \"2017\")","v":0},{"$f":"SUM(G5:I5)","v":11},{"$f":"SUM(J5:L5)","v":0},{"$f":"SUM(M5:O5)","v":0},{"$f":"SUM(P5:R5)","v":0}]
[null,null,"Skin",null,null,{"$f":"COUNTIFS('Master List'!L2:L400, \"skin\",'Master List'!L2:L400, \"2017\")","v":0},{"$f":"COUNTIFS('Master List'!L2:L400, \"skin\", 'Master List'!D2:D400, \"JAN\", 'Master List'!F2:F400, \"2017\")","v":0},{"$f":"COUNTIFS('Master List'!L2:L400, \"skin\", 'Master List'!D2:D400, \"feb\", 'Master List'!F2:F400, \"2017\")","v":0},{"$f":"COUNTIFS('Master List'!L2:L400, \"skin\", 'Master List'!D2:D400, \"mar\", 'Master List'!F2:F400, \"2017\")","v":0},{"$f":"COUNTIFS('Master List'!L2:L400, \"skin\", 'Master List'!D2:D400, \"apr\", 'Master List'!F2:F400, \"2017\")","v":0},{"$f":"COUNTIFS('Master List'!L2:L400, \"skin\", 'Master List'!D2:D400, \"May\", 'Master List'!F2:F400, \"2017\")","v":0},{"$f":"COUNTIFS('Master List'!L2:L400, \"skin\", 'Master List'!D2:D400, \"jun\", 'Master List'!F2:F400, \"2017\")","v":0},{"$f":"COUNTIFS('Master List'!L2:L400, \"skin\", 'Master List'!D2:D400, \"Jul\", 'Master List'!F2:F400, \"2017\")","v":0},{"$f":"COUNTIFS('Master List'!L2:L400, \"skin\", 'Master List'!D2:D400, \"aug\", 'Master List'!F2:F400, \"2017\")","v":0},{"$f":"COUNTIFS('Master List'!L2:L400, \"skin\", 'Master List'!D2:D400, \"sep\", 'Master List'!F2:F400, \"2017\")","v":0},{"$f":"COUNTIFS('Master List'!L2:L400, \"skin\", 'Master List'!D2:D400, \"oct\", 'Master List'!F2:F400, \"2017\")","v":0},{"$f":"COUNTIFS('Master List'!L2:L400, \"skin\", 'Master List'!D2:D400, \"nov\", 'Master List'!F2:F400, \"2017\")","v":0},{"$f":"COUNTIFS('Master List'!L2:L400, \"skin\", 'Master List'!D2:D400, \"dec\", 'Master List'!F2:F400, \"2017\")","v":0},0,{"$f":"SUM(J6:L6)","v":0},{"$f":"SUM(M6:O6)","v":0},{"$f":"SUM(P6:R6)","v":0}]
[null,null,"PU-Facility Acquired",null,null,{"$f":"COUNTIFS('Master List'!L2:L400, \"PU-Facility Acquired\", 'Master List'!F2:F400, \"2017\")","v":0},{"$f":"COUNTIFS('Master List'!L2:L400, \"PU-Facility Acquired\", 'Master List'!D2:D400, \"JAN\", 'Master List'!F2:F400, \"2017\")","v":0},{"$f":"COUNTIFS('Master List'!L2:L400, \"PU-Facility Acquired\", 'Master List'!D2:D400, \"feb\", 'Master List'!F2:F400, \"2017\")","v":0},{"$f":"COUNTIFS('Master List'!L2:L400, \"PU-Facility Acquired\", 'Master List'!D2:D400, \"mar\", 'Master List'!F2:F400, \"2017\")","v":0},{"$f":"COUNTIFS('Master List'!L2:L400, \"PU-Facility Acquired\", 'Master List'!D2:D400, \"apr\", 'Master List'!F2:F400, \"2017\")","v":0},{"$f":"COUNTIFS('Master List'!L2:L400, \"PU-Facility Acquired\", 'Master List'!D2:D400, \"May\", 'Master List'!F2:F400, \"2017\")","v":0},{"$f":"COUNTIFS('Master List'!L2:L400, \"PU-Facility Acquired\", 'Master List'!D2:D400, \"jun\", 'Master List'!F2:F400, \"2017\")","v":0},{"$f":"COUNTIFS('Master List'!L2:L400, \"PU-Facility Acquired\", 'Master List'!D2:D400, \"Jul\", 'Master List'!F2:F400, \"2017\")","v":0},{"$f":"COUNTIFS('Master List'!L2:L400, \"PU-Facility Acquired\", 'Master List'!D2:D400, \"aug\", 'Master List'!F2:F400, \"2017\")","v":0},{"$f":"COUNTIFS('Master List'!L2:L400, \"PU-Facility Acquired\", 'Master List'!D2:D400, \"sep\", 'Master List'!F2:F400, \"2017\")","v":0},{"$f":"COUNTIFS('Master List'!L2:L400, \"PU-Facility Acquired\", 'Master List'!D2:D400, \"oct\", 'Master List'!F2:F400, \"2017\")","v":0},{"$f":"COUNTIFS('Master List'!L2:L400, \"PU-Facility Acquired\", 'Master List'!D2:D400, \"nov\", 'Master List'!F2:F400, \"2017\")","v":0},{"$f":"COUNTIFS('Master List'!L2:L400, \"PU-Facility Acquired\", 'Master List'!D2:D400, \"dec\")","v":0},0,0,0,0]
[null,null,"PU-Present at Admission",null,null,{"$f":"COUNTIFS('Master List'!L2:L400, \"PU-Present at Admission\", 'Master List'!F2:F400, \"2017\")","v":0},{"$f":"COUNTIFS('Master List'!L2:L400, \"PU-Present at Admission\", 'Master List'!D2:D400, \"JAN\", 'Master List'!F2:F400, \"2017\")","v":0},{"$f":"COUNTIFS('Master List'!L2:L400,  \"PU-Present at Admission\", 'Master List'!D2:D400, \"feb\", 'Master List'!F2:F400, \"2017\")","v":0},{"$f":"COUNTIFS('Master List'!L2:L400,  \"PU-Present at Admission\", 'Master List'!D2:D400, \"mar\", 'Master List'!F2:F400, \"2017\")","v":0},{"$f":"COUNTIFS('Master List'!L2:L400,  \"PU-Present at Admission\", 'Master List'!D2:D400, \"apr\", 'Master List'!F2:F400, \"2017\")","v":0},{"$f":"COUNTIFS('Master List'!L2:L400,  \"PU-Present at Admission\", 'Master List'!D2:D400, \"May\", 'Master List'!F2:F400, \"2017\")","v":0},{"$f":"COUNTIFS('Master List'!L2:L400,  \"PU-Present at Admission\", 'Master List'!D2:D400, \"jun\", 'Master List'!F2:F400, \"2017\")","v":0},{"$f":"COUNTIFS('Master List'!L2:L400,  \"PU-Present at Admission\", 'Master List'!D2:D400, \"Jul\", 'Master List'!F2:F400, \"2017\")","v":0},{"$f":"COUNTIFS('Master List'!L2:L400,  \"PU-Present at Admission\", 'Master List'!D2:D400, \"aug\", 'Master List'!F2:F400, \"2017\")","v":0},{"$f":"COUNTIFS('Master List'!L2:L400,  \"PU-Present at Admission\", 'Master List'!D2:D400, \"sep\", 'Master List'!F2:F400, \"2017\")","v":0},{"$f":"COUNTIFS('Master List'!L2:L400,  \"PU-Present at Admission\", 'Master List'!D2:D400, \"oct\", 'Master List'!F2:F400, \"2017\")","v":0},{"$f":"COUNTIFS('Master List'!L2:L400,  \"PU-Present at Admission\", 'Master List'!D2:D400, \"nov\", 'Master List'!F2:F400, \"2017\")","v":0},{"$f":"COUNTIFS('Master List'!L2:L400,  \"PU-Present at Admission\", 'Master List'!D2:D400, \"dec\", 'Master List'!F2:F400, \"2017\")","v":0},0,0,0,0]
[null,null,"Med Error",null,null,{"$f":"COUNTIFS('Master List'!L2:L400, \"Med Error\", 'Master List'!F2:F400, \"2017\")","v":2},{"$f":"COUNTIFS('Master List'!L2:L400, \"Med Error\", 'Master List'!D2:D400, \"JAN\", 'Master List'!F2:F400, \"2017\")","v":2},{"$f":"COUNTIFS('Master List'!L2:L400, \"Med Error\", 'Master List'!D2:D400, \"feb\", 'Master List'!F2:F400, \"2017\")","v":0},{"$f":"COUNTIFS('Master List'!L2:L400, \"Med Error\", 'Master List'!D2:D400, \"mar\", 'Master List'!F2:F400, \"2017\")","v":0},{"$f":"COUNTIFS('Master List'!L2:L400, \"Med Error\", 'Master List'!D2:D400, \"apr\", 'Master List'!F2:F400, \"2017\")","v":0},{"$f":"COUNTIFS('Master List'!L2:L400, \"Med Error\", 'Master List'!D2:D400, \"May\", 'Master List'!F2:F400, \"2017\")","v":0},{"$f":"COUNTIFS('Master List'!L2:L400, \"Med Error\", 'Master List'!D2:D400, \"jun\", 'Master List'!F2:F400, \"2017\")","v":0},{"$f":"COUNTIFS('Master List'!L2:L400, \"Med Error\", 'Master List'!D2:D400, \"Jul\", 'Master List'!F2:F400, \"2017\")","v":0},{"$f":"COUNTIFS('Master List'!L2:L400, \"Med Error\", 'Master List'!D2:D400, \"aug\", 'Master List'!F2:F400, \"2017\")","v":0},{"$f":"COUNTIFS('Master List'!L2:L400, \"Med Error\", 'Master List'!D2:D400, \"sep\", 'Master List'!F2:F400, \"2017\")","v":0},{"$f":"COUNTIFS('Master List'!L2:L400, \"Med Error\", 'Master List'!D2:D400, \"oct\", 'Master List'!F2:F400, \"2017\")","v":0},{"$f":"COUNTIFS('Master List'!L2:L400, \"Med Error\", 'Master List'!D2:D400, \"nov\", 'Master List'!F2:F400, \"2017\")","v":0},{"$f":"COUNTIFS('Master List'!L2:L400, \"Med Error\", 'Master List'!D2:D400, \"dec\", 'Master List'!F2:F400, \"2017\")","v":0},2,0,0,0]
[null,null,"Elopement",null,null,{"$f":"COUNTIFS('Master List'!L2:L400, \"Elopement\", 'Master List'!F2:F400, \"2017\")","v":0},{"$f":"COUNTIFS('Master List'!L2:L400, \"Elopement\", 'Master List'!D2:D400, \"JAN\", 'Master List'!F2:F400, \"2017\")","v":0},{"$f":"COUNTIFS('Master List'!L2:L400, \"Elopement\", 'Master List'!D2:D400, \"feb\", 'Master List'!F2:F400, \"2017\")","v":0},{"$f":"COUNTIFS('Master List'!L2:L400, \"Elopement\", 'Master List'!D2:D400, \"mar\", 'Master List'!F2:F400, \"2017\")","v":0},{"$f":"COUNTIFS('Master List'!L2:L400, \"Elopement\", 'Master List'!D2:D400, \"apr\", 'Master List'!F2:F400, \"2017\")","v":0},{"$f":"COUNTIFS('Master List'!L2:L400, \"Elopement\", 'Master List'!D2:D400, \"May\", 'Master List'!F2:F400, \"2017\")","v":0},{"$f":"COUNTIFS('Master List'!L2:L400, \"Elopement\", 'Master List'!D2:D400, \"jun\", 'Master List'!F2:F400, \"2017\")","v":0},{"$f":"COUNTIFS('Master List'!L2:L400, \"Elopement\", 'Master List'!D2:D400, \"Jul\", 'Master List'!F2:F400, \"2017\")","v":0},{"$f":"COUNTIFS('Master List'!L2:L400, \"Elopement\", 'Master List'!D2:D400, \"aug\", 'Master List'!F2:F400, \"2017\")","v":0},{"$f":"COUNTIFS('Master List'!L2:L400, \"Elopement\", 'Master List'!D2:D400, \"sep\", 'Master List'!F2:F400, \"2017\")","v":0},{"$f":"COUNTIFS('Master List'!L2:L400, \"Elopement\", 'Master List'!D2:D400, \"oct\", 'Master List'!F2:F400, \"2017\")","v":0},{"$f":"COUNTIFS('Master List'!L2:L400, \"Elopement\", 'Master List'!D2:D400, \"nov\", 'Master List'!F2:F400, \"2017\")","v":0},{"$f":"COUNTIFS('Master List'!L2:L400, \"Elopement\", 'Master List'!D2:D400, \"dec\", 'Master List'!F2:F400, \"2017\")","v":0},0,0,0,0]
[null,null,"Missing Item",null,null,{"$f":"COUNTIFS('Master List'!L2:L400, \"Missing Item\", 'Master List'!F2:F400, \"2017\")","v":0},{"$f":"COUNTIFS('Master List'!L2:L400, \"Missing Item\", 'Master List'!D2:D400, \"JAN\", 'Master List'!F2:F400, \"2017\")","v":0},{"$f":"COUNTIFS('Master List'!L2:L400, \"Missing Item\", 'Master List'!D2:D400, \"feb\", 'Master List'!F2:F400, \"2017\")","v":0},{"$f":"COUNTIFS('Master List'!L2:L400, \"Missing Item\", 'Master List'!D2:D400, \"mar\", 'Master List'!F2:F400, \"2017\")","v":0},{"$f":"COUNTIFS('Master List'!L2:L400, \"Missing Item\", 'Master List'!D2:D400, \"apr\", 'Master List'!F2:F400, \"2017\")","v":0},{"$f":"COUNTIFS('Master List'!L2:L400, \"Missing Item\", 'Master List'!D2:D400, \"May\", 'Master List'!F2:F400, \"2017\")","v":0},{"$f":"COUNTIFS('Master List'!L2:L400, \"Missing Item\", 'Master List'!D2:D400, \"jun\", 'Master List'!F2:F400, \"2017\")","v":0},{"$f":"COUNTIFS('Master List'!L2:L400, \"Missing Item\", 'Master List'!D2:D400, \"Jul\", 'Master List'!F2:F400, \"2017\")","v":0},{"$f":"COUNTIFS('Master List'!L2:L400, \"Missing Item\", 'Master List'!D2:D400, \"aug\", 'Master List'!F2:F400, \"2017\")","v":0},{"$f":"COUNTIFS('Master List'!L2:L400, \"Missing Item\", 'Master List'!D2:D400, \"sep\", 'Master List'!F2:F400, \"2017\")","v":0},{"$f":"COUNTIFS('Master List'!L2:L400, \"Missing Item\", 'Master List'!D2:D400, \"oct\", 'Master List'!F2:F400, \"2017\")","v":0},{"$f":"COUNTIFS('Master List'!L2:L400, \"Missing Item\", 'Master List'!D2:D400, \"nov\", 'Master List'!F2:F400, \"2017\")","v":0},{"$f":"COUNTIFS('Master List'!L2:L400, \"Missing Item\", 'Master List'!D2:D400, \"dec\", 'Master List'!F2:F400, \"2017\")","v":0},0,0,0,0]
[null,null,"Other",null,null,{"$f":"COUNTIFS('Master List'!L2:L400, \"Other\", 'Master List'!F2:F400, \"2017\")","v":0},{"$f":"COUNTIFS('Master List'!L2:L400, \"Other\", 'Master List'!D2:D400, \"JAN\", 'Master List'!F2:F400, \"2017\")","v":0},{"$f":"COUNTIFS('Master List'!L2:L400, \"Other\", 'Master List'!D2:D400, \"feb\", 'Master List'!F2:F400, \"2017\")","v":0},{"$f":"COUNTIFS('Master List'!L2:L400, \"Other\", 'Master List'!D2:D400, \"mar\", 'Master List'!F2:F400, \"2017\")","v":0},{"$f":"COUNTIFS('Master List'!L2:L400, \"Other\", 'Master List'!D2:D400, \"apr\", 'Master List'!F2:F400, \"2017\")","v":0},{"$f":"COUNTIFS('Master List'!L2:L400, \"Other\", 'Master List'!D2:D400, \"May\", 'Master List'!F2:F400, \"2017\")","v":0},{"$f":"COUNTIFS('Master List'!L2:L400, \"Other\", 'Master List'!D2:D400, \"jun\", 'Master List'!F2:F400, \"2017\")","v":0},{"$f":"COUNTIFS('Master List'!L2:L400, \"Other\", 'Master List'!D2:D400, \"Jul\", 'Master List'!F2:F400, \"2017\")","v":0},{"$f":"COUNTIFS('Master List'!L2:L400, \"Other\", 'Master List'!D2:D400, \"aug\", 'Master List'!F2:F400, \"2017\")","v":0},{"$f":"COUNTIFS('Master List'!L2:L400, \"Other\", 'Master List'!D2:D400, \"sep\", 'Master List'!F2:F400, \"2017\")","v":0},{"$f":"COUNTIFS('Master List'!L2:L400, \"Other\", 'Master List'!D2:D400, \"oct\", 'Master List'!F2:F400, \"2017\")","v":0},{"$f":"COUNTIFS('Master List'!L2:L400, \"Other\", 'Master List'!D2:D400, \"nov\", 'Master List'!F2:F400, \"2017\")","v":0},{"$f":"COUNTIFS('Master List'!L2:L400, \"Other\", 'Master List'!D2:D400, \"dec\", 'Master List'!F2:F400, \"2017\")","v":0},0,0,0,0]
[]
[]
[]
[]
[]
[]
[]
[]
[]
[]
[]
[]
[]
[]
[]
[]
[]
[]
[]
[]
[]
[]
[]
[]
[]
[]
[]
[]
[]
[]
[]
[]
[]
[]
[]
[]
[]
[]
[]
[]
[]
[]
[null,null,"Falls Per Household - 2017"]
[null,null,null,"Total 2017","jan ","feb","mar","apr","may","jun","jul","aug","sept","oct","nov","dec ","q1","q2","q3","q4"]
[null,null,"Arbor",{"$f":"COUNTIFS('Master List'!L2:L400, \"FALL\",'Master List'!F2:F400, \"2017\",'Master List'!J2:J400, \"Arbor\")","v":0},{"$f":"COUNTIFS('Master List'!D2:D400, \"JAN\",'Master List'!L2:L400, \"FALL\",'Master List'!F2:F400, \"2017\",'Master List'!J2:J400, \"Arbor\")","v":0},{"$f":"COUNTIFS('Master List'!L2:L400, \"FALL\",'Master List'!F2:F400, \"2017\",'Master List'!J2:J400, \"Arbor\", 'Master List'!D2:D400, \"Feb\")","v":0},{"$f":"COUNTIFS('Master List'!L2:L400, \"FALL\",'Master List'!F2:F400, \"2017\",'Master List'!J2:J400, \"Arbor\", 'Master List'!D2:D400, \"Mar\")","v":0},{"$f":"COUNTIFS('Master List'!L2:L400, \"FALL\",'Master List'!F2:F400, \"2017\",'Master List'!J2:J400, \"Arbor\", 'Master List'!D2:D400, \"apr\")","v":0},{"$f":"COUNTIFS('Master List'!L2:L400, \"FALL\",'Master List'!F2:F400, \"2017\",'Master List'!J2:J400, \"Arbor\", 'Master List'!D2:D400, \"may\")","v":0},{"$f":"COUNTIFS('Master List'!L2:L400, \"FALL\",'Master List'!F2:F400, \"2017\",'Master List'!J2:J400, \"Arbor\", 'Master List'!D2:D400, \"jun\")","v":0},{"$f":"COUNTIFS('Master List'!L2:L400, \"FALL\",'Master List'!F2:F400, \"2017\",'Master List'!J2:J400, \"Arbor\", 'Master List'!D2:D400, \"jul\")","v":0},{"$f":"COUNTIFS('Master List'!L2:L400, \"FALL\",'Master List'!F2:F400, \"2017\",'Master List'!J2:J400, \"Arbor\", 'Master List'!D2:D400, \"aug\")","v":0},{"$f":"COUNTIFS('Master List'!L2:L400, \"FALL\",'Master List'!F2:F400, \"2017\",'Master List'!J2:J400, \"Arbor\", 'Master List'!D2:D400, \"sep\")","v":0},{"$f":"COUNTIFS('Master List'!L2:L400, \"FALL\",'Master List'!F2:F400, \"2017\",'Master List'!J2:J400, \"Arbor\", 'Master List'!D2:D400, \"oct\")","v":0},{"$f":"COUNTIFS('Master List'!L2:L400, \"FALL\",'Master List'!F2:F400, \"2017\",'Master List'!J2:J400, \"Arbor\", 'Master List'!D2:D400, \"nov\")","v":0},{"$f":"COUNTIFS('Master List'!L2:L400, \"FALL\",'Master List'!F2:F400, \"2017\",'Master List'!J2:J400, \"Arbor\", 'Master List'!D2:D400, \"dec\")","v":0},{"$f":"SUM(E57:G57)","v":0},{"$f":"SUM(H57:J57)","v":0},{"$f":"SUM(K57:M57)","v":0},{"$f":"SUM(N57:P57)","v":0}]
[null,null,"Butterfly",{"$f":"COUNTIFS('Master List'!L2:L400, \"FALL\",'Master List'!F2:F400, \"2017\",'Master List'!J2:J400, \"Butterfly\")","v":0},{"$f":"COUNTIFS('Master List'!L2:L400, \"FALL\",'Master List'!F2:F400, \"2017\",'Master List'!J2:J400, \"Butterfly\", 'Master List'!D2:D400, \"JAN\")","v":0},{"$f":"COUNTIFS('Master List'!L2:L400, \"FALL\",'Master List'!F2:F400, \"2017\",'Master List'!J2:J400, \"Butterfly\", 'Master List'!D2:D400, \"Feb\")","v":0},{"$f":"COUNTIFS('Master List'!L2:L400, \"FALL\",'Master List'!F2:F400, \"2017\",'Master List'!J2:J400, \"Butterfly\", 'Master List'!D2:D400, \"Mar\")","v":0},{"$f":"COUNTIFS('Master List'!L2:L400, \"FALL\",'Master List'!F2:F400, \"2017\",'Master List'!J2:J400, \"Butterfly\", 'Master List'!D2:D400, \"apr\")","v":0},{"$f":"COUNTIFS('Master List'!L2:L400, \"FALL\",'Master List'!F2:F400, \"2017\",'Master List'!J2:J400, \"Butterfly\", 'Master List'!D2:D400, \"may\")","v":0},{"$f":"COUNTIFS('Master List'!L2:L400, \"FALL\",'Master List'!F2:F400, \"2017\",'Master List'!J2:J400, \"Butterfly\", 'Master List'!D2:D400, \"jun\")","v":0},{"$f":"COUNTIFS('Master List'!L2:L400, \"FALL\",'Master List'!F2:F400, \"2017\",'Master List'!J2:J400, \"Butterfly\", 'Master List'!D2:D400, \"jul\")","v":0},{"$f":"COUNTIFS('Master List'!L2:L400, \"FALL\",'Master List'!F2:F400, \"2017\",'Master List'!J2:J400, \"Butterfly\", 'Master List'!D2:D400, \"aug\")","v":0},{"$f":"COUNTIFS('Master List'!L2:L400, \"FALL\",'Master List'!F2:F400, \"2017\",'Master List'!J2:J400, \"Butterfly\", 'Master List'!D2:D400, \"sep\")","v":0},{"$f":"COUNTIFS('Master List'!L2:L400, \"FALL\",'Master List'!F2:F400, \"2017\",'Master List'!J2:J400, \"Butterfly\", 'Master List'!D2:D400, \"oct\")","v":0},{"$f":"COUNTIFS('Master List'!L2:L400, \"FALL\",'Master List'!F2:F400, \"2017\",'Master List'!J2:J400, \"Butterfly\", 'Master List'!D2:D400, \"nov\")","v":0},{"$f":"COUNTIFS('Master List'!L2:L400, \"FALL\",'Master List'!F2:F400, \"2017\",'Master List'!J2:J400, \"Butterfly\", 'Master List'!D2:D400, \"dec\")","v":0},0,{"$f":"SUM(H58:K58)","v":0},0,0]
[null,null,"Country",{"$f":"COUNTIFS('Master List'!L2:L400, \"FALL\",'Master List'!F2:F400, \"2017\",'Master List'!J2:J400, \"Country\")","v":0},{"$f":"COUNTIFS('Master List'!L2:L400, \"FALL\",'Master List'!F2:F400, \"2017\",'Master List'!J2:J400, \"Country\", 'Master List'!D2:D400, \"JAN\")","v":0},{"$f":"COUNTIFS('Master List'!L2:L400, \"FALL\",'Master List'!F2:F400, \"2017\",'Master List'!J2:J400, \"Country\", 'Master List'!D2:D400, \"Feb\")","v":0},{"$f":"COUNTIFS('Master List'!L2:L400, \"FALL\",'Master List'!F2:F400, \"2017\",'Master List'!J2:J400, \"Country\", 'Master List'!D2:D400, \"Mar\")","v":0},{"$f":"COUNTIFS('Master List'!L2:L400, \"FALL\",'Master List'!F2:F400, \"2017\",'Master List'!J2:J400, \"Country\", 'Master List'!D2:D400, \"apr\")","v":0},{"$f":"COUNTIFS('Master List'!L2:L400, \"FALL\",'Master List'!F2:F400, \"2017\",'Master List'!J2:J400, \"Country\", 'Master List'!D2:D400, \"may\")","v":0},{"$f":"COUNTIFS('Master List'!L2:L400, \"FALL\",'Master List'!F2:F400, \"2017\",'Master List'!J2:J400, \"Country\", 'Master List'!D2:D400, \"jun\")","v":0},{"$f":"COUNTIFS('Master List'!L2:L400, \"FALL\",'Master List'!F2:F400, \"2017\",'Master List'!J2:J400, \"Country\", 'Master List'!D2:D400, \"jul\")","v":0},{"$f":"COUNTIFS('Master List'!L2:L400, \"FALL\",'Master List'!F2:F400, \"2017\",'Master List'!J2:J400, \"Country\", 'Master List'!D2:D400, \"aug\")","v":0},{"$f":"COUNTIFS('Master List'!L2:L400, \"FALL\",'Master List'!F2:F400, \"2017\",'Master List'!J2:J400, \"Country\", 'Master List'!D2:D400, \"sep\")","v":0},{"$f":"COUNTIFS('Master List'!L2:L400, \"FALL\",'Master List'!F2:F400, \"2017\",'Master List'!J2:J400, \"Country\", 'Master List'!D2:D400, \"oct\")","v":0},{"$f":"COUNTIFS('Master List'!L2:L400, \"FALL\",'Master List'!F2:F400, \"2017\",'Master List'!J2:J400, \"Country\", 'Master List'!D2:D400, \"nov\")","v":0},{"$f":"COUNTIFS('Master List'!L2:L400, \"FALL\",'Master List'!F2:F400, \"2017\",'Master List'!J2:J400, \"Country\", 'Master List'!D2:D400, \"dec\")","v":0},0,{"$f":"SUM(H59:J59)","v":0},0,0]
[null,null,"PH 400",{"$f":"COUNTIFS('Master List'!L2:L400, \"FALL\",'Master List'!F2:F400, \"2017\",'Master List'!J2:J400, \"PH 400\")","v":0},{"$f":"COUNTIFS('Master List'!L2:L400, \"FALL\",'Master List'!F2:F400, \"2017\",'Master List'!J2:J400, \"PH 400\", 'Master List'!D2:D400, \"JAN\")","v":0},{"$f":"COUNTIFS('Master List'!L2:L400, \"FALL\",'Master List'!F2:F400, \"2017\",'Master List'!J2:J400, \"PH 400\", 'Master List'!D2:D400, \"Feb\")","v":0},{"$f":"COUNTIFS('Master List'!L2:L400, \"FALL\",'Master List'!F2:F400, \"2017\",'Master List'!J2:J400, \"PH 400\", 'Master List'!D2:D400, \"Mar\")","v":0},{"$f":"COUNTIFS('Master List'!L2:L400, \"FALL\",'Master List'!F2:F400, \"2017\",'Master List'!J2:J400, \"PH 400\", 'Master List'!D2:D400, \"apr\")","v":0},{"$f":"COUNTIFS('Master List'!L2:L400, \"FALL\",'Master List'!F2:F400, \"2017\",'Master List'!J2:J400, \"PH 400\", 'Master List'!D2:D400, \"may\")","v":0},{"$f":"COUNTIFS('Master List'!L2:L400, \"FALL\",'Master List'!F2:F400, \"2017\",'Master List'!J2:J400, \"PH 400\", 'Master List'!D2:D400, \"jun\")","v":0},{"$f":"COUNTIFS('Master List'!L2:L400, \"FALL\",'Master List'!F2:F400, \"2017\",'Master List'!J2:J400, \"PH 400\", 'Master List'!D2:D400, \"jul\")","v":0},{"$f":"COUNTIFS('Master List'!L2:L400, \"FALL\",'Master List'!F2:F400, \"2017\",'Master List'!J2:J400, \"PH 400\", 'Master List'!D2:D400, \"aug\")","v":0},{"$f":"COUNTIFS('Master List'!L2:L400, \"FALL\",'Master List'!F2:F400, \"2017\",'Master List'!J2:J400, \"PH 400\", 'Master List'!D2:D400, \"sep\")","v":0},{"$f":"COUNTIFS('Master List'!L2:L400, \"FALL\",'Master List'!F2:F400, \"2017\",'Master List'!J2:J400, \"PH 400\", 'Master List'!D2:D400, \"oct\")","v":0},{"$f":"COUNTIFS('Master List'!L2:L400, \"FALL\",'Master List'!F2:F400, \"2017\",'Master List'!J2:J400, \"PH 400\", 'Master List'!D2:D400, \"nov\")","v":0},{"$f":"COUNTIFS('Master List'!L2:L400, \"FALL\",'Master List'!F2:F400, \"2017\",'Master List'!J2:J400, \"PH 400\", 'Master List'!D2:D400, \"dec\")","v":0},0,{"$f":"SUM(H60:J60)","v":0},0,0]
[null,null,"PH 500",{"$f":"COUNTIFS('Master List'!L2:L400, \"FALL\",'Master List'!F2:F400, \"2017\",'Master List'!J2:J400, \"PH 500\")","v":0},{"$f":"COUNTIFS('Master List'!L2:L400, \"FALL\",'Master List'!F2:F400, \"2017\",'Master List'!J2:J400, \"PH 500\", 'Master List'!D2:D400, \"JAN\")","v":0},{"$f":"COUNTIFS('Master List'!L2:L400, \"FALL\",'Master List'!F2:F400, \"2017\",'Master List'!J2:J400, \"PH 500\", 'Master List'!D2:D400, \"Feb\")","v":0},{"$f":"COUNTIFS('Master List'!L2:L400, \"FALL\",'Master List'!F2:F400, \"2017\",'Master List'!J2:J400, \"PH 500\", 'Master List'!D2:D400, \"Mar\")","v":0},{"$f":"COUNTIFS('Master List'!L2:L400, \"FALL\",'Master List'!F2:F400, \"2017\",'Master List'!J2:J400, \"PH 500\", 'Master List'!D2:D400, \"apr\")","v":0},{"$f":"COUNTIFS('Master List'!L2:L400, \"FALL\",'Master List'!F2:F400, \"2017\",'Master List'!J2:J400, \"PH 500\", 'Master List'!D2:D400, \"may\")","v":0},{"$f":"COUNTIFS('Master List'!L2:L400, \"FALL\",'Master List'!F2:F400, \"2017\",'Master List'!J2:J400, \"PH 500\", 'Master List'!D2:D400, \"jun\")","v":0},{"$f":"COUNTIFS('Master List'!L2:L400, \"FALL\",'Master List'!F2:F400, \"2017\",'Master List'!J2:J400, \"PH 500\", 'Master List'!D2:D400, \"jul\")","v":0},{"$f":"COUNTIFS('Master List'!L2:L400, \"FALL\",'Master List'!F2:F400, \"2017\",'Master List'!J2:J400, \"PH 500\", 'Master List'!D2:D400, \"aug\")","v":0},{"$f":"COUNTIFS('Master List'!L2:L400, \"FALL\",'Master List'!F2:F400, \"2017\",'Master List'!J2:J400, \"PH 500\", 'Master List'!D2:D400, \"sep\")","v":0},{"$f":"COUNTIFS('Master List'!L2:L400, \"FALL\",'Master List'!F2:F400, \"2017\",'Master List'!J2:J400, \"PH 500\", 'Master List'!D2:D400, \"oct\")","v":0},{"$f":"COUNTIFS('Master List'!L2:L400, \"FALL\",'Master List'!F2:F400, \"2017\",'Master List'!J2:J400, \"PH 500\", 'Master List'!D2:D400, \"nov\")","v":0},{"$f":"COUNTIFS('Master List'!L2:L400, \"FALL\",'Master List'!F2:F400, \"2017\",'Master List'!J2:J400, \"PH 500\", 'Master List'!D2:D400, \"dec\")","v":0},0,{"$f":"SUM(H61:J61)","v":0},0,0]
[null,null,"AL",{"$f":"COUNTIFS('Master List'!L2:L400, \"FALL\",'Master List'!F2:F400, \"2017\",'Master List'!J2:J400, \"AL\")","v":0},{"$f":"COUNTIFS('Master List'!L2:L400, \"FALL\",'Master List'!F2:F400, \"2017\",'Master List'!J2:J400, \"AL\", 'Master List'!D2:D400, \"JAN\")","v":0},{"$f":"COUNTIFS('Master List'!L2:L400, \"FALL\",'Master List'!F2:F400, \"2017\",'Master List'!J2:J400, \"AL\", 'Master List'!D2:D400, \"Feb\")","v":0},{"$f":"COUNTIFS('Master List'!L2:L400, \"FALL\",'Master List'!F2:F400, \"2017\",'Master List'!J2:J400, \"AL\", 'Master List'!D2:D400, \"Mar\")","v":0},{"$f":"COUNTIFS('Master List'!L2:L400, \"FALL\",'Master List'!F2:F400, \"2017\",'Master List'!J2:J400, \"AL\", 'Master List'!D2:D400, \"apr\")","v":0},{"$f":"COUNTIFS('Master List'!L2:L400, \"FALL\",'Master List'!F2:F400, \"2017\",'Master List'!J2:J400, \"AL\", 'Master List'!D2:D400, \"may\")","v":0},{"$f":"COUNTIFS('Master List'!L2:L400, \"FALL\",'Master List'!F2:F400, \"2017\",'Master List'!J2:J400, \"AL\", 'Master List'!D2:D400, \"jun\")","v":0},{"$f":"COUNTIFS('Master List'!L2:L400, \"FALL\",'Master List'!F2:F400, \"2017\",'Master List'!J2:J400, \"AL\", 'Master List'!D2:D400, \"jul\")","v":0},{"$f":"COUNTIFS('Master List'!L2:L400, \"FALL\",'Master List'!F2:F400, \"2017\",'Master List'!J2:J400, \"AL\", 'Master List'!D2:D400, \"aug\")","v":0},{"$f":"COUNTIFS('Master List'!L2:L400, \"FALL\",'Master List'!F2:F400, \"2017\",'Master List'!J2:J400, \"AL\", 'Master List'!D2:D400, \"sep\")","v":0},{"$f":"COUNTIFS('Master List'!L2:L400, \"FALL\",'Master List'!F2:F400, \"2017\",'Master List'!J2:J400, \"AL\", 'Master List'!D2:D400, \"oct\")","v":0},{"$f":"COUNTIFS('Master List'!L2:L400, \"FALL\",'Master List'!F2:F400, \"2017\",'Master List'!J2:J400, \"AL\", 'Master List'!D2:D400, \"nov\")","v":0},{"$f":"COUNTIFS('Master List'!L2:L400, \"FALL\",'Master List'!F2:F400, \"2017\",'Master List'!J2:J400, \"AL\", 'Master List'!D2:D400, \"dec\")","v":0},0,{"$f":"SUM(H62:J62)","v":0},0,0]
[null,null,"IL",{"$f":"COUNTIFS('Master List'!L2:L400, \"FALL\",'Master List'!F2:F400, \"2017\",'Master List'!J2:J400, \"IL\")","v":0},{"$f":"COUNTIFS('Master List'!L2:L400, \"FALL\",'Master List'!F2:F400, \"2017\",'Master List'!J2:J400, \"IL\", 'Master List'!D2:D400, \"JAN\")","v":0},{"$f":"COUNTIFS('Master List'!L2:L400, \"FALL\",'Master List'!F2:F400, \"2017\",'Master List'!J2:J400, \"IL\", 'Master List'!D2:D400, \"Feb\")","v":0},{"$f":"COUNTIFS('Master List'!L2:L400, \"FALL\",'Master List'!F2:F400, \"2017\",'Master List'!J2:J400, \"IL\", 'Master List'!D2:D400, \"Mar\")","v":0},{"$f":"COUNTIFS('Master List'!L2:L400, \"FALL\",'Master List'!F2:F400, \"2017\",'Master List'!J2:J400, \"IL\", 'Master List'!D2:D400, \"apr\")","v":0},{"$f":"COUNTIFS('Master List'!L2:L400, \"FALL\",'Master List'!F2:F400, \"2017\",'Master List'!J2:J400, \"IL\", 'Master List'!D2:D400, \"may\")","v":0},{"$f":"COUNTIFS('Master List'!L2:L400, \"FALL\",'Master List'!F2:F400, \"2017\",'Master List'!J2:J400, \"IL\", 'Master List'!D2:D400, \"jun\")","v":0},{"$f":"COUNTIFS('Master List'!L2:L400, \"FALL\",'Master List'!F2:F400, \"2017\",'Master List'!J2:J400, \"IL\", 'Master List'!D2:D400, \"jul\")","v":0},{"$f":"COUNTIFS('Master List'!L2:L400, \"FALL\",'Master List'!F2:F400, \"2017\",'Master List'!J2:J400, \"IL\", 'Master List'!D2:D400, \"aug\")","v":0},{"$f":"COUNTIFS('Master List'!L2:L400, \"FALL\",'Master List'!F2:F400, \"2017\",'Master List'!J2:J400, \"IL\", 'Master List'!D2:D400, \"sep\")","v":0},{"$f":"COUNTIFS('Master List'!L2:L400, \"FALL\",'Master List'!F2:F400, \"2017\",'Master List'!J2:J400, \"IL\", 'Master List'!D2:D400, \"oct\")","v":0},{"$f":"COUNTIFS('Master List'!L2:L400, \"FALL\",'Master List'!F2:F400, \"2017\",'Master List'!J2:J400, \"IL\", 'Master List'!D2:D400, \"nov\")","v":0},{"$f":"COUNTIFS('Master List'!L2:L400, \"FALL\",'Master List'!F2:F400, \"2017\",'Master List'!J2:J400, \"IL\", 'Master List'!D2:D400, \"dec\")","v":0},0,{"$f":"SUM(H63:J63)","v":0},0,0]
[]
[]
[]
[]
[]
[]
[]
[]
[]
[]
[]
[]
[]
[]
[]
[]
[]
[]
[]
[]
[]
[]
[]
[]
[]
[]
[]
[]
[]
[]
[]
[]
[]
[]
[]
[]
[]
[]
[null,null,"Falls Per Shift - 2017"]
[null,null,null,"Total 2017","jan ","feb","mar","apr","may","jun","jul","aug","sept","oct","nov","dec ","q1","q2","q3","q4"]
[null,null,"AM",{"$f":"COUNTIFS('Master List'!L2:L400, \"FALL\",'Master List'!F2:F400, \"2017\",'Master List'!I2:I400, \"AM\")","v":2},{"$f":"COUNTIFS('Master List'!L2:L400, \"FALL\",'Master List'!F2:F400, \"2017\",'Master List'!I2:I400, \"AM\", 'Master List'!D2:D400, \"JAN\")","v":2},{"$f":"COUNTIFS('Master List'!L2:L400, \"FALL\",'Master List'!F2:F400, \"2017\",'Master List'!I2:I400, \"AM\", 'Master List'!D2:D400, \"feb\")","v":0},{"$f":"COUNTIFS('Master List'!L2:L400, \"FALL\",'Master List'!F2:F400, \"2017\",'Master List'!I2:I400, \"AM\", 'Master List'!D2:D400, \"mar\")","v":0},{"$f":"COUNTIFS('Master List'!L2:L400, \"FALL\",'Master List'!F2:F400, \"2017\",'Master List'!I2:I400, \"AM\", 'Master List'!D2:D400, \"apr\")","v":0},{"$f":"COUNTIFS('Master List'!L2:L400, \"FALL\",'Master List'!F2:F400, \"2017\",'Master List'!I2:I400, \"AM\", 'Master List'!D2:D400, \"may\")","v":0},{"$f":"COUNTIFS('Master List'!L2:L400, \"FALL\",'Master List'!F2:F400, \"2017\",'Master List'!I2:I400, \"AM\", 'Master List'!D2:D400, \"Jun\")","v":0},{"$f":"COUNTIFS('Master List'!L2:L400, \"FALL\",'Master List'!F2:F400, \"2017\",'Master List'!I2:I400, \"AM\", 'Master List'!D2:D400, \"Jul\")","v":0},{"$f":"COUNTIFS('Master List'!L2:L400, \"FALL\",'Master List'!F2:F400, \"2017\",'Master List'!I2:I400, \"AM\", 'Master List'!D2:D400, \"aug\")","v":0},{"$f":"COUNTIFS('Master List'!L2:L400, \"FALL\",'Master List'!F2:F400, \"2017\",'Master List'!I2:I400, \"AM\", 'Master List'!D2:D400, \"sep\")","v":0},{"$f":"COUNTIFS('Master List'!L2:L400, \"FALL\",'Master List'!F2:F400, \"2017\",'Master List'!I2:I400, \"AM\", 'Master List'!D2:D400, \"oct\")","v":0},{"$f":"COUNTIFS('Master List'!L2:L400, \"FALL\",'Master List'!F2:F400, \"2017\",'Master List'!I2:I400, \"AM\", 'Master List'!D2:D400, \"nov\")","v":0},{"$f":"COUNTIFS('Master List'!L2:L400, \"FALL\",'Master List'!F2:F400, \"2017\",'Master List'!I2:I400, \"AM\", 'Master List'!D2:D400, \"dec\")","v":0},{"$f":"SUM(E104:G104)","v":2},{"$f":"SUM(H104:J104)","v":0},{"$f":"SUM(K104:M104)","v":0},{"$f":"SUM(N104:P104)","v":0}]
[null,null,"PM",{"$f":"COUNTIFS('Master List'!L2:L400, \"FALL\",'Master List'!F2:F400, \"2017\",'Master List'!I2:I400, \"PM\")","v":7},{"$f":"COUNTIFS('Master List'!L2:L400, \"FALL\",'Master List'!F2:F400, \"2017\",'Master List'!I2:I400, \"PM\", 'Master List'!D2:D400, \"JAN\")","v":7},{"$f":"COUNTIFS('Master List'!L2:L400, \"FALL\",'Master List'!F2:F400, \"2017\",'Master List'!I2:I400, \"PM\", 'Master List'!D2:D400, \"feb\")","v":0},{"$f":"COUNTIFS('Master List'!L2:L400, \"FALL\",'Master List'!F2:F400, \"2017\",'Master List'!I2:I400, \"PM\", 'Master List'!D2:D400, \"mar\")","v":0},{"$f":"COUNTIFS('Master List'!L2:L400, \"FALL\",'Master List'!F2:F400, \"2017\",'Master List'!I2:I400, \"PM\", 'Master List'!D2:D400, \"apr\")","v":0},{"$f":"COUNTIFS('Master List'!L2:L400, \"FALL\",'Master List'!F2:F400, \"2017\",'Master List'!I2:I400, \"PM\", 'Master List'!D2:D400, \"may\")","v":0},{"$f":"COUNTIFS('Master List'!L2:L400, \"FALL\",'Master List'!F2:F400, \"2017\",'Master List'!I2:I400, \"PM\", 'Master List'!D2:D400, \"Jun\")","v":0},{"$f":"COUNTIFS('Master List'!L2:L400, \"FALL\",'Master List'!F2:F400, \"2017\",'Master List'!I2:I400, \"PM\", 'Master List'!D2:D400, \"Jul\")","v":0},{"$f":"COUNTIFS('Master List'!L2:L400, \"FALL\",'Master List'!F2:F400, \"2017\",'Master List'!I2:I400, \"PM\", 'Master List'!D2:D400, \"aug\")","v":0},{"$f":"COUNTIFS('Master List'!L2:L400, \"FALL\",'Master List'!F2:F400, \"2017\",'Master List'!I2:I400, \"PM\", 'Master List'!D2:D400, \"sep\")","v":0},{"$f":"COUNTIFS('Master List'!L2:L400, \"FALL\",'Master List'!F2:F400, \"2017\",'Master List'!I2:I400, \"PM\", 'Master List'!D2:D400, \"oct\")","v":0},{"$f":"COUNTIFS('Master List'!L2:L400, \"FALL\",'Master List'!F2:F400, \"2017\",'Master List'!I2:I400, \"PM\", 'Master List'!D2:D400, \"nov\")","v":0},{"$f":"COUNTIFS('Master List'!L2:L400, \"FALL\",'Master List'!F2:F400, \"2017\",'Master List'!I2:I400, \"PM\", 'Master List'!D2:D400, \"dec\")","v":0},{"$f":"SUM(E105:G105)","v":7},{"$f":"SUM(H105:K105)","v":0},{"$f":"SUM(K105:M105)","v":0},{"$f":"SUM(N105:P105)","v":0}]
[null,null,"Night",{"$f":"COUNTIFS('Master List'!L2:L400, \"FALL\",'Master List'!F2:F400, \"2017\",'Master List'!I2:I400, \"Night\")","v":2},{"$f":"COUNTIFS('Master List'!L2:L400, \"FALL\",'Master List'!F2:F400, \"2017\",'Master List'!I2:I400, \"Night\", 'Master List'!D2:D400, \"JAN\")","v":2},{"$f":"COUNTIFS('Master List'!L2:L400, \"FALL\",'Master List'!F2:F400, \"2017\",'Master List'!I2:I400, \"Night\", 'Master List'!D2:D400, \"feb\")","v":0},{"$f":"COUNTIFS('Master List'!L2:L400, \"FALL\",'Master List'!F2:F400, \"2017\",'Master List'!I2:I400, \"Night\", 'Master List'!D2:D400, \"mar\")","v":0},{"$f":"COUNTIFS('Master List'!L2:L400, \"FALL\",'Master List'!F2:F400, \"2017\",'Master List'!I2:I400, \"Night\", 'Master List'!D2:D400, \"apr\")","v":0},{"$f":"COUNTIFS('Master List'!L2:L400, \"FALL\",'Master List'!F2:F400, \"2017\",'Master List'!I2:I400, \"Night\", 'Master List'!D2:D400, \"may\")","v":0},{"$f":"COUNTIFS('Master List'!L2:L400, \"FALL\",'Master List'!F2:F400, \"2017\",'Master List'!I2:I400, \"Night\", 'Master List'!D2:D400, \"Jun\")","v":0},{"$f":"COUNTIFS('Master List'!L2:L400, \"FALL\",'Master List'!F2:F400, \"2017\",'Master List'!I2:I400, \"Night\", 'Master List'!D2:D400, \"Jul\")","v":0},{"$f":"COUNTIFS('Master List'!L2:L400, \"FALL\",'Master List'!F2:F400, \"2017\",'Master List'!I2:I400, \"Night\", 'Master List'!D2:D400, \"aug\")","v":0},{"$f":"COUNTIFS('Master List'!L2:L400, \"FALL\",'Master List'!F2:F400, \"2017\",'Master List'!I2:I400, \"Night\", 'Master List'!D2:D400, \"sep\")","v":0},{"$f":"COUNTIFS('Master List'!L2:L400, \"FALL\",'Master List'!F2:F400, \"2017\",'Master List'!I2:I400, \"Night\", 'Master List'!D2:D400, \"oct\")","v":0},{"$f":"COUNTIFS('Master List'!L2:L400, \"FALL\",'Master List'!F2:F400, \"2017\",'Master List'!I2:I400, \"Night\", 'Master List'!D2:D400, \"nov\")","v":0},{"$f":"COUNTIFS('Master List'!L2:L400, \"FALL\",'Master List'!F2:F400, \"2017\",'Master List'!I2:I400, \"Night\", 'Master List'!D2:D400, \"dec\")","v":0},{"$f":"SUM(E106:G106)","v":2},{"$f":"SUM(H106:J106)","v":0},{"$f":"SUM(K106:M106)","v":0},{"$f":"SUM(N106:P106)","v":0}]
[]
[]
[]
[]
[]
[]
[]
[]
[]
[]
[]
[]
[]
[]
[]
[]
[]
[]
[]
[null,null,"Falls Per Day of the Week - 2017"]
[null,null,null,"Total 2017","jan ","feb","mar","apr","may","jun","jul","aug","sept","oct","nov","dec ","q1","q2","q3","q4"]
[null,null,"Monday",{"$f":"COUNTIFS('Master List'!L2:L400, \"FALL\",'Master List'!F2:F400, \"2017\",'Master List'!G2:G400, \"Mon\")","v":2},{"$f":"COUNTIFS('Master List'!L2:L400, \"FALL\",'Master List'!F2:F400, \"2017\",'Master List'!G2:G400, \"Mon\",  'Master List'!D2:D400, \"jan\")","v":2},{"$f":"COUNTIFS('Master List'!L2:L400, \"FALL\",'Master List'!F2:F400, \"2017\",'Master List'!G2:G400, \"Mon\",  'Master List'!D2:D400,  \"Feb\",  'Master List'!D2:D400, \"feb\")","v":0},{"$f":"COUNTIFS('Master List'!L2:L400, \"FALL\",'Master List'!F2:F400, \"2017\",'Master List'!G2:G400, \"Mon\",  'Master List'!D2:D400,  \"Mar\")","v":0},{"$f":"COUNTIFS('Master List'!L2:L400, \"FALL\",'Master List'!F2:F400, \"2017\",'Master List'!G2:G400, \"Mon\",  'Master List'!D2:D400,  \"apr\")","v":0},{"$f":"COUNTIFS('Master List'!L2:L400, \"FALL\",'Master List'!F2:F400, \"2017\",'Master List'!G2:G400, \"Mon\",  'Master List'!D2:D400,  \"may\")","v":0},{"$f":"COUNTIFS('Master List'!L2:L400, \"FALL\",'Master List'!F2:F400, \"2017\",'Master List'!G2:G400, \"Mon\",  'Master List'!D2:D400, \"jun\")","v":0},{"$f":"COUNTIFS('Master List'!L2:L400, \"FALL\",'Master List'!F2:F400, \"2017\",'Master List'!G2:G400, \"Mon\",  'Master List'!D2:D400,  \"jul\")","v":0},{"$f":"COUNTIFS('Master List'!L2:L400, \"FALL\",'Master List'!F2:F400, \"2017\",'Master List'!G2:G400, \"Mon\",  'Master List'!D2:D400, \"aug\")","v":0},{"$f":"COUNTIFS('Master List'!L2:L400, \"FALL\",'Master List'!F2:F400, \"2017\",'Master List'!G2:G400, \"Mon\",  'Master List'!D2:D400,  \"sep\")","v":0},{"$f":"COUNTIFS('Master List'!L2:L400, \"FALL\",'Master List'!F2:F400, \"2017\",'Master List'!G2:G400, \"Mon\",  'Master List'!D2:D400,  \"oct\")","v":0},{"$f":"COUNTIFS('Master List'!L2:L400, \"FALL\",'Master List'!F2:F400, \"2017\",'Master List'!G2:G400, \"Mon\",  'Master List'!D2:D400,  \"nov\")","v":0},{"$f":"COUNTIFS('Master List'!L2:L400, \"FALL\",'Master List'!F2:F400, \"2017\",'Master List'!G2:G400, \"Mon\",  'Master List'!D2:D400,  \"dec\")","v":0},{"$f":"SUM(E128:G128)","v":2},{"$f":"SUM(H128:J128)","v":0},{"$f":"SUM(K128:M128)","v":0},{"$f":"SUM(N128:P128)","v":0}]
[null,null,"Tuesday",{"$f":"COUNTIFS('Master List'!L2:L400, \"FALL\",'Master List'!F2:F400, \"2017\",'Master List'!G2:G400, \"Tue\")","v":0},{"$f":"COUNTIFS('Master List'!L2:L400, \"FALL\",'Master List'!F2:F400, \"2017\",'Master List'!G2:G400, \"Tue\",'Master List'!D2:D400, \"JAN\")","v":0},{"$f":"COUNTIFS('Master List'!L2:L400, \"FALL\",'Master List'!F2:F400, \"2017\",'Master List'!G2:G400, \"Tue\",  'Master List'!D2:D400, \"feb\")","v":0},{"$f":"COUNTIFS('Master List'!L2:L400, \"FALL\",'Master List'!F2:F400, \"2017\",'Master List'!G2:G400, \"Tue\",  'Master List'!D2:D400,  \"Mar\")","v":0},{"$f":"COUNTIFS('Master List'!L2:L400, \"FALL\",'Master List'!F2:F400, \"2017\",'Master List'!G2:G400, \"Tue\",  'Master List'!D2:D400,  \"apr\")","v":0},{"$f":"COUNTIFS('Master List'!L2:L400, \"FALL\",'Master List'!F2:F400, \"2017\",'Master List'!G2:G400, \"Tue\",  'Master List'!D2:D400,  \"may\")","v":0},{"$f":"COUNTIFS('Master List'!L2:L400, \"FALL\",'Master List'!F2:F400, \"2017\",'Master List'!G2:G400, \"Tue\",  'Master List'!D2:D400, \"jun\")","v":0},{"$f":"COUNTIFS('Master List'!L2:L400, \"FALL\",'Master List'!F2:F400, \"2017\",'Master List'!G2:G400, \"Tue\",  'Master List'!D2:D400,  \"jul\")","v":0},{"$f":"COUNTIFS('Master List'!L2:L400, \"FALL\",'Master List'!F2:F400, \"2017\",'Master List'!G2:G400, \"Tue\",  'Master List'!D2:D400, \"aug\")","v":0},{"$f":"COUNTIFS('Master List'!L2:L400, \"FALL\",'Master List'!F2:F400, \"2017\",'Master List'!G2:G400, \"Tue\",  'Master List'!D2:D400,  \"sep\")","v":0},{"$f":"COUNTIFS('Master List'!L2:L400, \"FALL\",'Master List'!F2:F400, \"2017\",'Master List'!G2:G400, \"Tue\",  'Master List'!D2:D400,  \"oct\")","v":0},{"$f":"COUNTIFS('Master List'!L2:L400, \"FALL\",'Master List'!F2:F400, \"2017\",'Master List'!G2:G400, \"Tue\",  'Master List'!D2:D400,  \"nov\")","v":0},{"$f":"COUNTIFS('Master List'!L2:L400, \"FALL\",'Master List'!F2:F400, \"2017\",'Master List'!G2:G400, \"Tue\",  'Master List'!D2:D400,  \"dec\")","v":0},0,{"$f":"SUM(H129:K129)","v":0},0,0]
[null,null,"Wednesday",{"$f":"COUNTIFS('Master List'!L2:L400, \"FALL\",'Master List'!F2:F400, \"2017\",'Master List'!G2:G400, \"wed\")","v":3},{"$f":"COUNTIFS('Master List'!L2:L400, \"FALL\",'Master List'!F2:F400, \"2017\",'Master List'!G2:G400, \"wed\",'Master List'!D2:D400, \"JAN\")","v":3},{"$f":"COUNTIFS('Master List'!L2:L400, \"FALL\",'Master List'!F2:F400, \"2017\",'Master List'!G2:G400, \"wed\",  'Master List'!D2:D400, \"feb\")","v":0},{"$f":"COUNTIFS('Master List'!L2:L400, \"FALL\",'Master List'!F2:F400, \"2017\",'Master List'!G2:G400, \"wed\",  'Master List'!D2:D400,  \"Mar\")","v":0},{"$f":"COUNTIFS('Master List'!L2:L400, \"FALL\",'Master List'!F2:F400, \"2017\",'Master List'!G2:G400, \"wed\",  'Master List'!D2:D400,  \"apr\")","v":0},{"$f":"COUNTIFS('Master List'!L2:L400, \"FALL\",'Master List'!F2:F400, \"2017\",'Master List'!G2:G400, \"wed\",  'Master List'!D2:D400,  \"may\")","v":0},{"$f":"COUNTIFS('Master List'!L2:L400, \"FALL\",'Master List'!F2:F400, \"2017\",'Master List'!G2:G400, \"wed\",  'Master List'!D2:D400, \"jun\")","v":0},{"$f":"COUNTIFS('Master List'!L2:L400, \"FALL\",'Master List'!F2:F400, \"2017\",'Master List'!G2:G400, \"wed\",  'Master List'!D2:D400,  \"jul\")","v":0},{"$f":"COUNTIFS('Master List'!L2:L400, \"FALL\",'Master List'!F2:F400, \"2017\",'Master List'!G2:G400, \"wed\",  'Master List'!D2:D400, \"aug\")","v":0},{"$f":"COUNTIFS('Master List'!L2:L400, \"FALL\",'Master List'!F2:F400, \"2017\",'Master List'!G2:G400, \"wed\",  'Master List'!D2:D400,  \"sep\")","v":0},{"$f":"COUNTIFS('Master List'!L2:L400, \"FALL\",'Master List'!F2:F400, \"2017\",'Master List'!G2:G400, \"wed\",  'Master List'!D2:D400,  \"oct\")","v":0},{"$f":"COUNTIFS('Master List'!L2:L400, \"FALL\",'Master List'!F2:F400, \"2017\",'Master List'!G2:G400, \"wed\",  'Master List'!D2:D400,  \"nov\")","v":0},{"$f":"COUNTIFS('Master List'!L2:L400, \"FALL\",'Master List'!F2:F400, \"2017\",'Master List'!G2:G400, \"wed\",  'Master List'!D2:D400,  \"dec\")","v":0},3,{"$f":"SUM(H130:J130)","v":0},0,0]
[null,null,"Thursday",{"$f":"COUNTIFS('Master List'!L2:L400, \"FALL\",'Master List'!F2:F400, \"2017\",'Master List'!G2:G400, \"thu\")","v":2},{"$f":"COUNTIFS('Master List'!L2:L400, \"FALL\",'Master List'!F2:F400, \"2017\",'Master List'!G2:G400, \"thu\", 'Master List'!D2:D400, \"JAN\")","v":2},{"$f":"COUNTIFS('Master List'!L2:L400, \"FALL\",'Master List'!F2:F400, \"2017\",'Master List'!G2:G400, \"thu\",  'Master List'!D2:D400, \"feb\")","v":0},{"$f":"COUNTIFS('Master List'!L2:L400, \"FALL\",'Master List'!F2:F400, \"2017\",'Master List'!G2:G400, \"thu\",  'Master List'!D2:D400,  \"Mar\")","v":0},{"$f":"COUNTIFS('Master List'!L2:L400, \"FALL\",'Master List'!F2:F400, \"2017\",'Master List'!G2:G400, \"thu\",  'Master List'!D2:D400,  \"apr\")","v":0},{"$f":"COUNTIFS('Master List'!L2:L400, \"FALL\",'Master List'!F2:F400, \"2017\",'Master List'!G2:G400, \"thu\",  'Master List'!D2:D400,  \"may\")","v":0},{"$f":"COUNTIFS('Master List'!L2:L400, \"FALL\",'Master List'!F2:F400, \"2017\",'Master List'!G2:G400, \"thu\",  'Master List'!D2:D400, \"jun\")","v":0},{"$f":"COUNTIFS('Master List'!L2:L400, \"FALL\",'Master List'!F2:F400, \"2017\",'Master List'!G2:G400, \"thu\",  'Master List'!D2:D400,  \"jul\")","v":0},{"$f":"COUNTIFS('Master List'!L2:L400, \"FALL\",'Master List'!F2:F400, \"2017\",'Master List'!G2:G400, \"thu\",  'Master List'!D2:D400, \"aug\")","v":0},{"$f":"COUNTIFS('Master List'!L2:L400, \"FALL\",'Master List'!F2:F400, \"2017\",'Master List'!G2:G400, \"thu\",  'Master List'!D2:D400,  \"sep\")","v":0},{"$f":"COUNTIFS('Master List'!L2:L400, \"FALL\",'Master List'!F2:F400, \"2017\",'Master List'!G2:G400, \"thu\",  'Master List'!D2:D400,  \"oct\")","v":0},{"$f":"COUNTIFS('Master List'!L2:L400, \"FALL\",'Master List'!F2:F400, \"2017\",'Master List'!G2:G400, \"thu\",  'Master List'!D2:D400,  \"nov\")","v":0},{"$f":"COUNTIFS('Master List'!L2:L400, \"FALL\",'Master List'!F2:F400, \"2017\",'Master List'!G2:G400, \"thu\",  'Master List'!D2:D400,  \"dec\")","v":0},2,{"$f":"SUM(H131:J131)","v":0},0,0]
[null,null,"Friday",{"$f":"COUNTIFS('Master List'!L2:L400, \"FALL\",'Master List'!F2:F400, \"2017\",'Master List'!G2:G400, \"fri\")","v":3},{"$f":"COUNTIFS('Master List'!L2:L400, \"FALL\",'Master List'!F2:F400, \"2017\",'Master List'!G2:G400, \"fri\",'Master List'!D2:D400, \"JAN\")","v":3},{"$f":"COUNTIFS('Master List'!L2:L400, \"FALL\",'Master List'!F2:F400, \"2017\",'Master List'!G2:G400, \"fri\",  'Master List'!D2:D400, \"feb\")","v":0},{"$f":"COUNTIFS('Master List'!L2:L400, \"FALL\",'Master List'!F2:F400, \"2017\",'Master List'!G2:G400, \"fri\",  'Master List'!D2:D400,  \"Mar\")","v":0},{"$f":"COUNTIFS('Master List'!L2:L400, \"FALL\",'Master List'!F2:F400, \"2017\",'Master List'!G2:G400, \"fri\",  'Master List'!D2:D400,  \"apr\")","v":0},{"$f":"COUNTIFS('Master List'!L2:L400, \"FALL\",'Master List'!F2:F400, \"2017\",'Master List'!G2:G400, \"fri\",  'Master List'!D2:D400,  \"may\")","v":0},{"$f":"COUNTIFS('Master List'!L2:L400, \"FALL\",'Master List'!F2:F400, \"2017\",'Master List'!G2:G400, \"fri\",  'Master List'!D2:D400, \"jun\")","v":0},{"$f":"COUNTIFS('Master List'!L2:L400, \"FALL\",'Master List'!F2:F400, \"2017\",'Master List'!G2:G400, \"fri\",  'Master List'!D2:D400,  \"jul\")","v":0},{"$f":"COUNTIFS('Master List'!L2:L400, \"FALL\",'Master List'!F2:F400, \"2017\",'Master List'!G2:G400, \"fri\",  'Master List'!D2:D400, \"aug\")","v":0},{"$f":"COUNTIFS('Master List'!L2:L400, \"FALL\",'Master List'!F2:F400, \"2017\",'Master List'!G2:G400, \"fri\",  'Master List'!D2:D400,  \"sep\")","v":0},{"$f":"COUNTIFS('Master List'!L2:L400, \"FALL\",'Master List'!F2:F400, \"2017\",'Master List'!G2:G400, \"fri\",  'Master List'!D2:D400,  \"oct\")","v":0},{"$f":"COUNTIFS('Master List'!L2:L400, \"FALL\",'Master List'!F2:F400, \"2017\",'Master List'!G2:G400, \"fri\",  'Master List'!D2:D400,  \"nov\")","v":0},{"$f":"COUNTIFS('Master List'!L2:L400, \"FALL\",'Master List'!F2:F400, \"2017\",'Master List'!G2:G400, \"fri\",  'Master List'!D2:D400,  \"dec\")","v":0},3,{"$f":"SUM(H132:J132)","v":0},0,0]
[null,null,"Saturday",{"$f":"COUNTIFS('Master List'!L2:L400, \"FALL\",'Master List'!F2:F400, \"2017\",'Master List'!G2:G400, \"sat\")","v":0},{"$f":"COUNTIFS('Master List'!L2:L400, \"FALL\",'Master List'!F2:F400, \"2017\",'Master List'!G2:G400, \"sat\",'Master List'!D2:D400, \"JAN\")","v":0},{"$f":"COUNTIFS('Master List'!L2:L400, \"FALL\",'Master List'!F2:F400, \"2017\",'Master List'!G2:G400, \"sat\",  'Master List'!D2:D400, \"feb\")","v":0},{"$f":"COUNTIFS('Master List'!L2:L400, \"FALL\",'Master List'!F2:F400, \"2017\",'Master List'!G2:G400, \"sat\",  'Master List'!D2:D400,  \"Mar\")","v":0},{"$f":"COUNTIFS('Master List'!L2:L400, \"FALL\",'Master List'!F2:F400, \"2017\",'Master List'!G2:G400, \"sat\",  'Master List'!D2:D400,  \"apr\")","v":0},{"$f":"COUNTIFS('Master List'!L2:L400, \"FALL\",'Master List'!F2:F400, \"2017\",'Master List'!G2:G400, \"sat\",  'Master List'!D2:D400,  \"may\")","v":0},{"$f":"COUNTIFS('Master List'!L2:L400, \"FALL\",'Master List'!F2:F400, \"2017\",'Master List'!G2:G400, \"sat\",  'Master List'!D2:D400, \"jun\")","v":0},{"$f":"COUNTIFS('Master List'!L2:L400, \"FALL\",'Master List'!F2:F400, \"2017\",'Master List'!G2:G400, \"sat\",  'Master List'!D2:D400,  \"jul\")","v":0},{"$f":"COUNTIFS('Master List'!L2:L400, \"FALL\",'Master List'!F2:F400, \"2017\",'Master List'!G2:G400, \"sat\",  'Master List'!D2:D400, \"aug\")","v":0},{"$f":"COUNTIFS('Master List'!L2:L400, \"FALL\",'Master List'!F2:F400, \"2017\",'Master List'!G2:G400, \"sat\",  'Master List'!D2:D400,  \"sep\")","v":0},{"$f":"COUNTIFS('Master List'!L2:L400, \"FALL\",'Master List'!F2:F400, \"2017\",'Master List'!G2:G400, \"sat\",  'Master List'!D2:D400,  \"oct\")","v":0},{"$f":"COUNTIFS('Master List'!L2:L400, \"FALL\",'Master List'!F2:F400, \"2017\",'Master List'!G2:G400, \"sat\",  'Master List'!D2:D400,  \"nov\")","v":0},{"$f":"COUNTIFS('Master List'!L2:L400, \"FALL\",'Master List'!F2:F400, \"2017\",'Master List'!G2:G400, \"sat\",  'Master List'!D2:D400,  \"dec\")","v":0},0,{"$f":"SUM(H133:J133)","v":0},0,0]
[null,null,"Sunday",{"$f":"COUNTIFS('Master List'!L2:L400, \"FALL\",'Master List'!F2:F400, \"2017\",'Master List'!G2:G400, \"sun\")","v":1},{"$f":"COUNTIFS('Master List'!L2:L400, \"FALL\",'Master List'!F2:F400, \"2017\",'Master List'!G2:G400, \"sun\",'Master List'!D2:D400, \"JAN\")","v":1},{"$f":"COUNTIFS('Master List'!L2:L400, \"FALL\",'Master List'!F2:F400, \"2017\",'Master List'!G2:G400, \"sun\",  'Master List'!D2:D400, \"feb\")","v":0},{"$f":"COUNTIFS('Master List'!L2:L400, \"FALL\",'Master List'!F2:F400, \"2017\",'Master List'!G2:G400, \"sun\",  'Master List'!D2:D400,  \"Mar\")","v":0},{"$f":"COUNTIFS('Master List'!L2:L400, \"FALL\",'Master List'!F2:F400, \"2017\",'Master List'!G2:G400, \"sun\",  'Master List'!D2:D400,  \"apr\")","v":0},{"$f":"COUNTIFS('Master List'!L2:L400, \"FALL\",'Master List'!F2:F400, \"2017\",'Master List'!G2:G400, \"sun\",  'Master List'!D2:D400,  \"may\")","v":0},{"$f":"COUNTIFS('Master List'!L2:L400, \"FALL\",'Master List'!F2:F400, \"2017\",'Master List'!G2:G400, \"sun\",  'Master List'!D2:D400, \"jun\")","v":0},{"$f":"COUNTIFS('Master List'!L2:L400, \"FALL\",'Master List'!F2:F400, \"2017\",'Master List'!G2:G400, \"sun\",  'Master List'!D2:D400,  \"jul\")","v":0},{"$f":"COUNTIFS('Master List'!L2:L400, \"FALL\",'Master List'!F2:F400, \"2017\",'Master List'!G2:G400, \"sun\",  'Master List'!D2:D400, \"aug\")","v":0},{"$f":"COUNTIFS('Master List'!L2:L400, \"FALL\",'Master List'!F2:F400, \"2017\",'Master List'!G2:G400, \"sun\",  'Master List'!D2:D400,  \"sep\")","v":0},{"$f":"COUNTIFS('Master List'!L2:L400, \"FALL\",'Master List'!F2:F400, \"2017\",'Master List'!G2:G400, \"sun\",  'Master List'!D2:D400,  \"oct\")","v":0},{"$f":"COUNTIFS('Master List'!L2:L400, \"FALL\",'Master List'!F2:F400, \"2017\",'Master List'!G2:G400, \"sun\",  'Master List'!D2:D400,  \"nov\")","v":0},{"$f":"COUNTIFS('Master List'!L2:L400, \"FALL\",'Master List'!F2:F400, \"2017\",'Master List'!G2:G400, \"sun\",  'Master List'!D2:D400,  \"dec\")","v":0},1,{"$f":"SUM(H134:J134)","v":0},0,0]
[]
[]
[]
[]
[]
[]
[]
[]
[]
[]
[]
[]
[]
[]
[]
[]
[]
[]
[]
[]
[null,null,"Falls Per Location - 2017"]
[null,null,null,"Total 2017","jan ","feb","mar","apr","may","jun","jul","aug","sept","oct","nov","dec ","q1","q2","q3","q4"]
[null,null,"Resident Room",{"$f":"COUNTIFS('Master List'!L2:L400, \"FALL\",'Master List'!F2:F400, \"2017\",'Master List'!P2:P400, \"Resident Room\")","v":10},{"$f":"COUNTIFS('Master List'!L2:L400, \"FALL\",'Master List'!F2:F400, \"2017\",'Master List'!P2:P400, \"Resident Room\",  'Master List'!D2:D400, \"jan\")","v":10},{"$f":"COUNTIFS('Master List'!L2:L400, \"FALL\",'Master List'!F2:F400, \"2017\",'Master List'!P2:P400, \"Resident Room\",  'Master List'!D2:D400,  \"Feb\",  'Master List'!D2:D400, \"feb\")","v":0},{"$f":"COUNTIFS('Master List'!L2:L400, \"FALL\",'Master List'!F2:F400, \"2017\",'Master List'!P2:P400, \"Resident Room\",  'Master List'!D2:D400,  \"Mar\")","v":0},{"$f":"COUNTIFS('Master List'!L2:L400, \"FALL\",'Master List'!F2:F400, \"2017\",'Master List'!P2:P400, \"Resident Room\",  'Master List'!D2:D400,  \"apr\")","v":0},{"$f":"COUNTIFS('Master List'!L2:L400, \"FALL\",'Master List'!F2:F400, \"2017\",'Master List'!P2:P400, \"Resident Room\",  'Master List'!D2:D400,  \"may\")","v":0},{"$f":"COUNTIFS('Master List'!L2:L400, \"FALL\",'Master List'!F2:F400, \"2017\",'Master List'!P2:P400, \"Resident Room\",  'Master List'!D2:D400, \"jun\")","v":0},{"$f":"COUNTIFS('Master List'!L2:L400, \"FALL\",'Master List'!F2:F400, \"2017\",'Master List'!P2:P400, \"Resident Room\",  'Master List'!D2:D400,  \"jul\")","v":0},{"$f":"COUNTIFS('Master List'!L2:L400, \"FALL\",'Master List'!F2:F400, \"2017\",'Master List'!P2:P400, \"Resident Room\",  'Master List'!D2:D400, \"aug\")","v":0},{"$f":"COUNTIFS('Master List'!L2:L400, \"FALL\",'Master List'!F2:F400, \"2017\",'Master List'!P2:P400, \"Resident Room\",  'Master List'!D2:D400,  \"sep\")","v":0},{"$f":"COUNTIFS('Master List'!L2:L400, \"FALL\",'Master List'!F2:F400, \"2017\",'Master List'!P2:P400, \"Resident Room\",  'Master List'!D2:D400,  \"oct\")","v":0},{"$f":"COUNTIFS('Master List'!L2:L400, \"FALL\",'Master List'!F2:F400, \"2017\",'Master List'!P2:P400, \"Resident Room\",  'Master List'!D2:D400,  \"nov\")","v":0},{"$f":"COUNTIFS('Master List'!L2:L400, \"FALL\",'Master List'!F2:F400, \"2017\",'Master List'!P2:P400, \"Resident Room\",  'Master List'!D2:D400,  \"dec\")","v":0},{"$f":"SUM(E157:G157)","v":10},{"$f":"SUM(H157:J157)","v":0},{"$f":"SUM(K157:M157)","v":0},{"$f":"SUM(N157:P157)","v":0}]
[null,null,"Bathroom",{"$f":"COUNTIFS('Master List'!L2:L400, \"FALL\",'Master List'!F2:F400, \"2017\",'Master List'!P2:P400, \"Bathroom\")","v":0},{"$f":"COUNTIFS('Master List'!L2:L400, \"FALL\",'Master List'!F2:F400, \"2017\",'Master List'!P2:P400, \"Bathroom\",'Master List'!D2:D400, \"JAN\")","v":0},{"$f":"COUNTIFS('Master List'!L2:L400, \"FALL\",'Master List'!F2:F400, \"2017\",'Master List'!P2:P400, \"Bathroom\",  'Master List'!D2:D400, \"feb\")","v":0},{"$f":"COUNTIFS('Master List'!L2:L400, \"FALL\",'Master List'!F2:F400, \"2017\",'Master List'!P2:P400, \"Bathroom\",  'Master List'!D2:D400,  \"Mar\")","v":0},{"$f":"COUNTIFS('Master List'!L2:L400, \"FALL\",'Master List'!F2:F400, \"2017\",'Master List'!P2:P400, \"Bathroom\",  'Master List'!D2:D400,  \"apr\")","v":0},{"$f":"COUNTIFS('Master List'!L2:L400, \"FALL\",'Master List'!F2:F400, \"2017\",'Master List'!P2:P400, \"Bathroom\",  'Master List'!D2:D400,  \"may\")","v":0},{"$f":"COUNTIFS('Master List'!L2:L400, \"FALL\",'Master List'!F2:F400, \"2017\",'Master List'!P2:P400, \"Bathroom\",  'Master List'!D2:D400, \"jun\")","v":0},{"$f":"COUNTIFS('Master List'!L2:L400, \"FALL\",'Master List'!F2:F400, \"2017\",'Master List'!P2:P400, \"Bathroom\",  'Master List'!D2:D400,  \"jul\")","v":0},{"$f":"COUNTIFS('Master List'!L2:L400, \"FALL\",'Master List'!F2:F400, \"2017\",'Master List'!P2:P400, \"Bathroom\",  'Master List'!D2:D400, \"aug\")","v":0},{"$f":"COUNTIFS('Master List'!L2:L400, \"FALL\",'Master List'!F2:F400, \"2017\",'Master List'!P2:P400, \"Bathroom\",  'Master List'!D2:D400,  \"sep\")","v":0},{"$f":"COUNTIFS('Master List'!L2:L400, \"FALL\",'Master List'!F2:F400, \"2017\",'Master List'!P2:P400, \"Bathroom\",  'Master List'!D2:D400,  \"oct\")","v":0},{"$f":"COUNTIFS('Master List'!L2:L400, \"FALL\",'Master List'!F2:F400, \"2017\",'Master List'!P2:P400, \"Bathroom\",  'Master List'!D2:D400,  \"nov\")","v":0},{"$f":"COUNTIFS('Master List'!L2:L400, \"FALL\",'Master List'!F2:F400, \"2017\",'Master List'!P2:P400, \"Bathroom\",  'Master List'!D2:D400,  \"dec\")","v":0},0,{"$f":"SUM(H158:K158)","v":0},0,0]
[null,null,"Hall",{"$f":"COUNTIFS('Master List'!L2:L400, \"FALL\",'Master List'!F2:F400, \"2017\",'Master List'!P2:P400, \"hall\")","v":0},{"$f":"COUNTIFS('Master List'!L2:L400, \"FALL\",'Master List'!F2:F400, \"2017\",'Master List'!P2:P400, \"hall\",'Master List'!D2:D400, \"JAN\")","v":0},{"$f":"COUNTIFS('Master List'!L2:L400, \"FALL\",'Master List'!F2:F400, \"2017\",'Master List'!P2:P400, \"hall\",  'Master List'!D2:D400, \"feb\")","v":0},{"$f":"COUNTIFS('Master List'!L2:L400, \"FALL\",'Master List'!F2:F400, \"2017\",'Master List'!P2:P400, \"hall\",  'Master List'!D2:D400,  \"Mar\")","v":0},{"$f":"COUNTIFS('Master List'!L2:L400, \"FALL\",'Master List'!F2:F400, \"2017\",'Master List'!P2:P400, \"hall\",  'Master List'!D2:D400,  \"apr\")","v":0},{"$f":"COUNTIFS('Master List'!L2:L400, \"FALL\",'Master List'!F2:F400, \"2017\",'Master List'!P2:P400, \"hall\",  'Master List'!D2:D400,  \"may\")","v":0},{"$f":"COUNTIFS('Master List'!L2:L400, \"FALL\",'Master List'!F2:F400, \"2017\",'Master List'!P2:P400, \"hall\",  'Master List'!D2:D400, \"jun\")","v":0},{"$f":"COUNTIFS('Master List'!L2:L400, \"FALL\",'Master List'!F2:F400, \"2017\",'Master List'!P2:P400, \"hall\",  'Master List'!D2:D400,  \"jul\")","v":0},{"$f":"COUNTIFS('Master List'!L2:L400, \"FALL\",'Master List'!F2:F400, \"2017\",'Master List'!P2:P400, \"hall\",  'Master List'!D2:D400, \"aug\")","v":0},{"$f":"COUNTIFS('Master List'!L2:L400, \"FALL\",'Master List'!F2:F400, \"2017\",'Master List'!P2:P400, \"hall\",  'Master List'!D2:D400,  \"sep\")","v":0},{"$f":"COUNTIFS('Master List'!L2:L400, \"FALL\",'Master List'!F2:F400, \"2017\",'Master List'!P2:P400, \"hall\",  'Master List'!D2:D400,  \"oct\")","v":0},{"$f":"COUNTIFS('Master List'!L2:L400, \"FALL\",'Master List'!F2:F400, \"2017\",'Master List'!P2:P400, \"hall\",  'Master List'!D2:D400,  \"nov\")","v":0},{"$f":"COUNTIFS('Master List'!L2:L400, \"FALL\",'Master List'!F2:F400, \"2017\",'Master List'!P2:P400, \"hall\",  'Master List'!D2:D400,  \"dec\")","v":0},0,{"$f":"SUM(H159:J159)","v":0},0,0]
[null,null,"Dining Room",{"$f":"COUNTIFS('Master List'!L2:L400, \"FALL\",'Master List'!F2:F400, \"2017\",'Master List'!P2:P400, \"dining room\")","v":1},{"$f":"COUNTIFS('Master List'!L2:L400, \"FALL\",'Master List'!F2:F400, \"2017\",'Master List'!P2:P400, \"dining room\", 'Master List'!D2:D400, \"JAN\")","v":1},{"$f":"COUNTIFS('Master List'!L2:L400, \"FALL\",'Master List'!F2:F400, \"2017\",'Master List'!P2:P400, \"dining room\",  'Master List'!D2:D400, \"feb\")","v":0},{"$f":"COUNTIFS('Master List'!L2:L400, \"FALL\",'Master List'!F2:F400, \"2017\",'Master List'!P2:P400, \"dining room\",  'Master List'!D2:D400,  \"Mar\")","v":0},{"$f":"COUNTIFS('Master List'!L2:L400, \"FALL\",'Master List'!F2:F400, \"2017\",'Master List'!P2:P400, \"dining room\",  'Master List'!D2:D400,  \"apr\")","v":0},{"$f":"COUNTIFS('Master List'!L2:L400, \"FALL\",'Master List'!F2:F400, \"2017\",'Master List'!P2:P400, \"dining room\",  'Master List'!D2:D400,  \"may\")","v":0},{"$f":"COUNTIFS('Master List'!L2:L400, \"FALL\",'Master List'!F2:F400, \"2017\",'Master List'!P2:P400, \"dining room\",  'Master List'!D2:D400, \"jun\")","v":0},{"$f":"COUNTIFS('Master List'!L2:L400, \"FALL\",'Master List'!F2:F400, \"2017\",'Master List'!P2:P400, \"dining room\",  'Master List'!D2:D400,  \"jul\")","v":0},{"$f":"COUNTIFS('Master List'!L2:L400, \"FALL\",'Master List'!F2:F400, \"2017\",'Master List'!P2:P400, \"dining room\",  'Master List'!D2:D400, \"aug\")","v":0},{"$f":"COUNTIFS('Master List'!L2:L400, \"FALL\",'Master List'!F2:F400, \"2017\",'Master List'!P2:P400, \"dining room\",  'Master List'!D2:D400,  \"sep\")","v":0},{"$f":"COUNTIFS('Master List'!L2:L400, \"FALL\",'Master List'!F2:F400, \"2017\",'Master List'!P2:P400, \"dining room\",  'Master List'!D2:D400,  \"oct\")","v":0},{"$f":"COUNTIFS('Master List'!L2:L400, \"FALL\",'Master List'!F2:F400, \"2017\",'Master List'!P2:P400, \"dining room\",  'Master List'!D2:D400,  \"nov\")","v":0},{"$f":"COUNTIFS('Master List'!L2:L400, \"FALL\",'Master List'!F2:F400, \"2017\",'Master List'!P2:P400, \"dining room\",  'Master List'!D2:D400,  \"dec\")","v":0},1,{"$f":"SUM(H160:J160)","v":0},0,0]
[null,null,"Living Room",{"$f":"COUNTIFS('Master List'!L2:L400, \"FALL\",'Master List'!F2:F400, \"2017\",'Master List'!P2:P400, \"living room\")","v":0},{"$f":"COUNTIFS('Master List'!L2:L400, \"FALL\",'Master List'!F2:F400, \"2017\",'Master List'!P2:P400, \"living room\",'Master List'!D2:D400, \"JAN\")","v":0},{"$f":"COUNTIFS('Master List'!L2:L400, \"FALL\",'Master List'!F2:F400, \"2017\",'Master List'!P2:P400, \"living room\",  'Master List'!D2:D400, \"feb\")","v":0},{"$f":"COUNTIFS('Master List'!L2:L400, \"FALL\",'Master List'!F2:F400, \"2017\",'Master List'!P2:P400, \"living room\",  'Master List'!D2:D400,  \"Mar\")","v":0},{"$f":"COUNTIFS('Master List'!L2:L400, \"FALL\",'Master List'!F2:F400, \"2017\",'Master List'!P2:P400, \"living room\",  'Master List'!D2:D400,  \"apr\")","v":0},{"$f":"COUNTIFS('Master List'!L2:L400, \"FALL\",'Master List'!F2:F400, \"2017\",'Master List'!P2:P400, \"living room\",  'Master List'!D2:D400,  \"may\")","v":0},{"$f":"COUNTIFS('Master List'!L2:L400, \"FALL\",'Master List'!F2:F400, \"2017\",'Master List'!P2:P400, \"living room\",  'Master List'!D2:D400, \"jun\")","v":0},{"$f":"COUNTIFS('Master List'!L2:L400, \"FALL\",'Master List'!F2:F400, \"2017\",'Master List'!P2:P400, \"living room\",  'Master List'!D2:D400,  \"jul\")","v":0},{"$f":"COUNTIFS('Master List'!L2:L400, \"FALL\",'Master List'!F2:F400, \"2017\",'Master List'!P2:P400, \"living room\",  'Master List'!D2:D400, \"aug\")","v":0},{"$f":"COUNTIFS('Master List'!L2:L400, \"FALL\",'Master List'!F2:F400, \"2017\",'Master List'!P2:P400, \"living room\",  'Master List'!D2:D400,  \"sep\")","v":0},{"$f":"COUNTIFS('Master List'!L2:L400, \"FALL\",'Master List'!F2:F400, \"2017\",'Master List'!P2:P400, \"living room\",  'Master List'!D2:D400,  \"oct\")","v":0},{"$f":"COUNTIFS('Master List'!L2:L400, \"FALL\",'Master List'!F2:F400, \"2017\",'Master List'!P2:P400, \"living room\",  'Master List'!D2:D400,  \"nov\")","v":0},{"$f":"COUNTIFS('Master List'!L2:L400, \"FALL\",'Master List'!F2:F400, \"2017\",'Master List'!P2:P400, \"living room\",  'Master List'!D2:D400,  \"dec\")","v":0},0,{"$f":"SUM(H161:J161)","v":0},0,0]
[null,null,"N/A",{"$f":"COUNTIFS('Master List'!L2:L400, \"FALL\",'Master List'!F2:F400, \"2017\",'Master List'!P2:P400, \"n/a\")","v":0},{"$f":"COUNTIFS('Master List'!L2:L400, \"FALL\",'Master List'!F2:F400, \"2017\",'Master List'!P2:P400, \"n/a\",'Master List'!D2:D400, \"JAN\")","v":0},{"$f":"COUNTIFS('Master List'!L2:L400, \"FALL\",'Master List'!F2:F400, \"2017\",'Master List'!P2:P400, \"n/a\",  'Master List'!D2:D400, \"feb\")","v":0},{"$f":"COUNTIFS('Master List'!L2:L400, \"FALL\",'Master List'!F2:F400, \"2017\",'Master List'!P2:P400, \"n/a\",  'Master List'!D2:D400,  \"Mar\")","v":0},{"$f":"COUNTIFS('Master List'!L2:L400, \"FALL\",'Master List'!F2:F400, \"2017\",'Master List'!P2:P400, \"n/a\",  'Master List'!D2:D400,  \"apr\")","v":0},{"$f":"COUNTIFS('Master List'!L2:L400, \"FALL\",'Master List'!F2:F400, \"2017\",'Master List'!P2:P400, \"n/a\",  'Master List'!D2:D400,  \"may\")","v":0},{"$f":"COUNTIFS('Master List'!L2:L400, \"FALL\",'Master List'!F2:F400, \"2017\",'Master List'!P2:P400, \"n/a\",  'Master List'!D2:D400, \"jun\")","v":0},{"$f":"COUNTIFS('Master List'!L2:L400, \"FALL\",'Master List'!F2:F400, \"2017\",'Master List'!P2:P400, \"n/a\",  'Master List'!D2:D400,  \"jul\")","v":0},{"$f":"COUNTIFS('Master List'!L2:L400, \"FALL\",'Master List'!F2:F400, \"2017\",'Master List'!P2:P400, \"n/a\",  'Master List'!D2:D400, \"aug\")","v":0},{"$f":"COUNTIFS('Master List'!L2:L400, \"FALL\",'Master List'!F2:F400, \"2017\",'Master List'!P2:P400, \"n/a\",  'Master List'!D2:D400,  \"sep\")","v":0},{"$f":"COUNTIFS('Master List'!L2:L400, \"FALL\",'Master List'!F2:F400, \"2017\",'Master List'!P2:P400, \"n/a\",  'Master List'!D2:D400,  \"oct\")","v":0},{"$f":"COUNTIFS('Master List'!L2:L400, \"FALL\",'Master List'!F2:F400, \"2017\",'Master List'!P2:P400, \"n/a\",  'Master List'!D2:D400,  \"nov\")","v":0},{"$f":"COUNTIFS('Master List'!L2:L400, \"FALL\",'Master List'!F2:F400, \"2017\",'Master List'!P2:P400, \"n/a\",  'Master List'!D2:D400,  \"dec\")","v":0},0,{"$f":"SUM(H162:J162)","v":0},0,0]
[null,null,"Other",{"$f":"COUNTIFS('Master List'!L2:L400, \"FALL\",'Master List'!F2:F400, \"2017\",'Master List'!P2:P400, \"other\")","v":0},{"$f":"COUNTIFS('Master List'!L2:L400, \"FALL\",'Master List'!F2:F400, \"2017\",'Master List'!P2:P400, \"other\",'Master List'!D2:D400, \"JAN\")","v":0},{"$f":"COUNTIFS('Master List'!L2:L400, \"FALL\",'Master List'!F2:F400, \"2017\",'Master List'!P2:P400, \"other\",  'Master List'!D2:D400, \"feb\")","v":0},{"$f":"COUNTIFS('Master List'!L2:L400, \"FALL\",'Master List'!F2:F400, \"2017\",'Master List'!P2:P400, \"other\",  'Master List'!D2:D400,  \"Mar\")","v":0},{"$f":"COUNTIFS('Master List'!L2:L400, \"FALL\",'Master List'!F2:F400, \"2017\",'Master List'!P2:P400, \"other\",  'Master List'!D2:D400,  \"apr\")","v":0},{"$f":"COUNTIFS('Master List'!L2:L400, \"FALL\",'Master List'!F2:F400, \"2017\",'Master List'!P2:P400, \"other\",  'Master List'!D2:D400,  \"may\")","v":0},{"$f":"COUNTIFS('Master List'!L2:L400, \"FALL\",'Master List'!F2:F400, \"2017\",'Master List'!P2:P400, \"other\",  'Master List'!D2:D400, \"jun\")","v":0},{"$f":"COUNTIFS('Master List'!L2:L400, \"FALL\",'Master List'!F2:F400, \"2017\",'Master List'!P2:P400, \"other\",  'Master List'!D2:D400,  \"jul\")","v":0},{"$f":"COUNTIFS('Master List'!L2:L400, \"FALL\",'Master List'!F2:F400, \"2017\",'Master List'!P2:P400, \"other\",  'Master List'!D2:D400, \"aug\")","v":0},{"$f":"COUNTIFS('Master List'!L2:L400, \"FALL\",'Master List'!F2:F400, \"2017\",'Master List'!P2:P400, \"other\",  'Master List'!D2:D400,  \"sep\")","v":0},{"$f":"COUNTIFS('Master List'!L2:L400, \"FALL\",'Master List'!F2:F400, \"2017\",'Master List'!P2:P400, \"other\",  'Master List'!D2:D400,  \"oct\")","v":0},{"$f":"COUNTIFS('Master List'!L2:L400, \"FALL\",'Master List'!F2:F400, \"2017\",'Master List'!P2:P400, \"other\",  'Master List'!D2:D400,  \"nov\")","v":0},{"$f":"COUNTIFS('Master List'!L2:L400, \"FALL\",'Master List'!F2:F400, \"2017\",'Master List'!P2:P400, \"other\",  'Master List'!D2:D400,  \"dec\")","v":0},0,{"$f":"SUM(H163:J163)","v":0},0,0]
[]
[]
[]
[]
[]
[]
[]
[]
[]
[]
[]
[]
[]
[]
[]
[]
[]
[]
[]
[]
[null,null,"Falls per Activity - 2017"]
[null,null,null,"Total 2017","jan ","feb","mar","apr","may","jun","jul","aug","sept","oct","nov","dec ","q1","q2","q3","q4"]
[null,null,"Ambulating",{"$f":"COUNTIFS('Master List'!L2:L400, \"FALL\",'Master List'!F2:F400, \"2017\",'Master List'!Q2:Q400, \"Ambulating\")","v":4},{"$f":"COUNTIFS('Master List'!L2:L400, \"FALL\",'Master List'!F2:F400, \"2017\",'Master List'!Q2:Q400, \"Ambulating\",  'Master List'!D2:D400, \"jan\")","v":4},{"$f":"COUNTIFS('Master List'!L2:L400, \"FALL\",'Master List'!F2:F400, \"2017\",'Master List'!Q2:Q400, \"Ambulating\",  'Master List'!D2:D400,  \"Feb\",  'Master List'!D2:D400, \"feb\")","v":0},{"$f":"COUNTIFS('Master List'!L2:L400, \"FALL\",'Master List'!F2:F400, \"2017\",'Master List'!Q2:Q400, \"Ambulating\",  'Master List'!D2:D400,  \"Mar\")","v":0},{"$f":"COUNTIFS('Master List'!L2:L400, \"FALL\",'Master List'!F2:F400, \"2017\",'Master List'!Q2:Q400, \"Ambulating\",  'Master List'!D2:D400,  \"apr\")","v":0},{"$f":"COUNTIFS('Master List'!L2:L400, \"FALL\",'Master List'!F2:F400, \"2017\",'Master List'!Q2:Q400, \"Ambulating\",  'Master List'!D2:D400,  \"may\")","v":0},{"$f":"COUNTIFS('Master List'!L2:L400, \"FALL\",'Master List'!F2:F400, \"2017\",'Master List'!Q2:Q400, \"Ambulating\",  'Master List'!D2:D400, \"jun\")","v":0},{"$f":"COUNTIFS('Master List'!L2:L400, \"FALL\",'Master List'!F2:F400, \"2017\",'Master List'!Q2:Q400, \"Ambulating\",  'Master List'!D2:D400,  \"jul\")","v":0},{"$f":"COUNTIFS('Master List'!L2:L400, \"FALL\",'Master List'!F2:F400, \"2017\",'Master List'!Q2:Q400, \"Ambulating\",  'Master List'!D2:D400, \"aug\")","v":0},{"$f":"COUNTIFS('Master List'!L2:L400, \"FALL\",'Master List'!F2:F400, \"2017\",'Master List'!Q2:Q400, \"Ambulating\",  'Master List'!D2:D400,  \"sep\")","v":0},{"$f":"COUNTIFS('Master List'!L2:L400, \"FALL\",'Master List'!F2:F400, \"2017\",'Master List'!Q2:Q400, \"Ambulating\",  'Master List'!D2:D400,  \"oct\")","v":0},{"$f":"COUNTIFS('Master List'!L2:L400, \"FALL\",'Master List'!F2:F400, \"2017\",'Master List'!Q2:Q400, \"Ambulating\",  'Master List'!D2:D400,  \"nov\")","v":0},{"$f":"COUNTIFS('Master List'!L2:L400, \"FALL\",'Master List'!F2:F400, \"2017\",'Master List'!Q2:Q400, \"Ambulating\",  'Master List'!D2:D400,  \"dec\")","v":0},{"$f":"SUM(E186:G186)","v":4},{"$f":"SUM(H186:J186)","v":0},{"$f":"SUM(K186:M186)","v":0},{"$f":"SUM(N186:P186)","v":0}]
[null,null,"Transferring",{"$f":"COUNTIFS('Master List'!L2:L400, \"FALL\",'Master List'!F2:F400, \"2017\",'Master List'!Q2:Q400, \"Transferring\")","v":1},{"$f":"COUNTIFS('Master List'!L2:L400, \"FALL\",'Master List'!F2:F400, \"2017\",'Master List'!Q2:Q400, \"Transferring\",'Master List'!D2:D400, \"JAN\")","v":1},{"$f":"COUNTIFS('Master List'!L2:L400, \"FALL\",'Master List'!F2:F400, \"2017\",'Master List'!Q2:Q400, \"Transferring\",  'Master List'!D2:D400, \"feb\")","v":0},{"$f":"COUNTIFS('Master List'!L2:L400, \"FALL\",'Master List'!F2:F400, \"2017\",'Master List'!Q2:Q400, \"Transferring\",  'Master List'!D2:D400,  \"Mar\")","v":0},{"$f":"COUNTIFS('Master List'!L2:L400, \"FALL\",'Master List'!F2:F400, \"2017\",'Master List'!Q2:Q400, \"Transferring\",  'Master List'!D2:D400,  \"apr\")","v":0},{"$f":"COUNTIFS('Master List'!L2:L400, \"FALL\",'Master List'!F2:F400, \"2017\",'Master List'!Q2:Q400, \"Transferring\",  'Master List'!D2:D400,  \"may\")","v":0},{"$f":"COUNTIFS('Master List'!L2:L400, \"FALL\",'Master List'!F2:F400, \"2017\",'Master List'!Q2:Q400, \"Transferring\",  'Master List'!D2:D400, \"jun\")","v":0},{"$f":"COUNTIFS('Master List'!L2:L400, \"FALL\",'Master List'!F2:F400, \"2017\",'Master List'!Q2:Q400, \"Transferring\",  'Master List'!D2:D400,  \"jul\")","v":0},{"$f":"COUNTIFS('Master List'!L2:L400, \"FALL\",'Master List'!F2:F400, \"2017\",'Master List'!Q2:Q400, \"Transferring\",  'Master List'!D2:D400, \"aug\")","v":0},{"$f":"COUNTIFS('Master List'!L2:L400, \"FALL\",'Master List'!F2:F400, \"2017\",'Master List'!Q2:Q400, \"Transferring\",  'Master List'!D2:D400,  \"sep\")","v":0},{"$f":"COUNTIFS('Master List'!L2:L400, \"FALL\",'Master List'!F2:F400, \"2017\",'Master List'!Q2:Q400, \"Transferring\",  'Master List'!D2:D400,  \"oct\")","v":0},{"$f":"COUNTIFS('Master List'!L2:L400, \"FALL\",'Master List'!F2:F400, \"2017\",'Master List'!Q2:Q400, \"Transferring\",  'Master List'!D2:D400,  \"nov\")","v":0},{"$f":"COUNTIFS('Master List'!L2:L400, \"FALL\",'Master List'!F2:F400, \"2017\",'Master List'!Q2:Q400, \"Transferring\",  'Master List'!D2:D400,  \"dec\")","v":0},1,{"$f":"SUM(H187:K187)","v":0},0,0]
[null,null,"In Bed",{"$f":"COUNTIFS('Master List'!L2:L400, \"FALL\",'Master List'!F2:F400, \"2017\",'Master List'!Q2:Q400, \"In Bed\")","v":0},{"$f":"COUNTIFS('Master List'!L2:L400, \"FALL\",'Master List'!F2:F400, \"2017\",'Master List'!Q2:Q400, \"In Bed\",'Master List'!D2:D400, \"JAN\")","v":0},{"$f":"COUNTIFS('Master List'!L2:L400, \"FALL\",'Master List'!F2:F400, \"2017\",'Master List'!Q2:Q400, \"In Bed\",  'Master List'!D2:D400, \"feb\")","v":0},{"$f":"COUNTIFS('Master List'!L2:L400, \"FALL\",'Master List'!F2:F400, \"2017\",'Master List'!Q2:Q400, \"In Bed\",  'Master List'!D2:D400,  \"Mar\")","v":0},{"$f":"COUNTIFS('Master List'!L2:L400, \"FALL\",'Master List'!F2:F400, \"2017\",'Master List'!Q2:Q400, \"In Bed\",  'Master List'!D2:D400,  \"apr\")","v":0},{"$f":"COUNTIFS('Master List'!L2:L400, \"FALL\",'Master List'!F2:F400, \"2017\",'Master List'!Q2:Q400, \"In Bed\",  'Master List'!D2:D400,  \"may\")","v":0},{"$f":"COUNTIFS('Master List'!L2:L400, \"FALL\",'Master List'!F2:F400, \"2017\",'Master List'!Q2:Q400, \"In Bed\",  'Master List'!D2:D400, \"jun\")","v":0},{"$f":"COUNTIFS('Master List'!L2:L400, \"FALL\",'Master List'!F2:F400, \"2017\",'Master List'!Q2:Q400, \"In Bed\",  'Master List'!D2:D400,  \"jul\")","v":0},{"$f":"COUNTIFS('Master List'!L2:L400, \"FALL\",'Master List'!F2:F400, \"2017\",'Master List'!Q2:Q400, \"In Bed\",  'Master List'!D2:D400, \"aug\")","v":0},{"$f":"COUNTIFS('Master List'!L2:L400, \"FALL\",'Master List'!F2:F400, \"2017\",'Master List'!Q2:Q400, \"In Bed\",  'Master List'!D2:D400,  \"sep\")","v":0},{"$f":"COUNTIFS('Master List'!L2:L400, \"FALL\",'Master List'!F2:F400, \"2017\",'Master List'!Q2:Q400, \"In Bed\",  'Master List'!D2:D400,  \"oct\")","v":0},{"$f":"COUNTIFS('Master List'!L2:L400, \"FALL\",'Master List'!F2:F400, \"2017\",'Master List'!Q2:Q400, \"In Bed\",  'Master List'!D2:D400,  \"nov\")","v":0},{"$f":"COUNTIFS('Master List'!L2:L400, \"FALL\",'Master List'!F2:F400, \"2017\",'Master List'!Q2:Q400, \"In Bed\",  'Master List'!D2:D400,  \"dec\")","v":0},0,{"$f":"SUM(H188:J188)","v":0},0,0]
[null,null,"In Chair",{"$f":"COUNTIFS('Master List'!L2:L400, \"FALL\",'Master List'!F2:F400, \"2017\",'Master List'!Q2:Q400, \"In Chair\")","v":1},{"$f":"COUNTIFS('Master List'!L2:L400, \"FALL\",'Master List'!F2:F400, \"2017\",'Master List'!Q2:Q400, \"In Chair\", 'Master List'!D2:D400, \"JAN\")","v":1},{"$f":"COUNTIFS('Master List'!L2:L400, \"FALL\",'Master List'!F2:F400, \"2017\",'Master List'!Q2:Q400, \"In Chair\",  'Master List'!D2:D400, \"feb\")","v":0},{"$f":"COUNTIFS('Master List'!L2:L400, \"FALL\",'Master List'!F2:F400, \"2017\",'Master List'!Q2:Q400, \"In Chair\",  'Master List'!D2:D400,  \"Mar\")","v":0},{"$f":"COUNTIFS('Master List'!L2:L400, \"FALL\",'Master List'!F2:F400, \"2017\",'Master List'!Q2:Q400, \"In Chair\",  'Master List'!D2:D400,  \"apr\")","v":0},{"$f":"COUNTIFS('Master List'!L2:L400, \"FALL\",'Master List'!F2:F400, \"2017\",'Master List'!Q2:Q400, \"In Chair\",  'Master List'!D2:D400,  \"may\")","v":0},{"$f":"COUNTIFS('Master List'!L2:L400, \"FALL\",'Master List'!F2:F400, \"2017\",'Master List'!Q2:Q400, \"In Chair\",  'Master List'!D2:D400, \"jun\")","v":0},{"$f":"COUNTIFS('Master List'!L2:L400, \"FALL\",'Master List'!F2:F400, \"2017\",'Master List'!Q2:Q400, \"In Chair\",  'Master List'!D2:D400,  \"jul\")","v":0},{"$f":"COUNTIFS('Master List'!L2:L400, \"FALL\",'Master List'!F2:F400, \"2017\",'Master List'!Q2:Q400, \"In Chair\",  'Master List'!D2:D400, \"aug\")","v":0},{"$f":"COUNTIFS('Master List'!L2:L400, \"FALL\",'Master List'!F2:F400, \"2017\",'Master List'!Q2:Q400, \"In Chair\",  'Master List'!D2:D400,  \"sep\")","v":0},{"$f":"COUNTIFS('Master List'!L2:L400, \"FALL\",'Master List'!F2:F400, \"2017\",'Master List'!Q2:Q400, \"In Chair\",  'Master List'!D2:D400,  \"oct\")","v":0},{"$f":"COUNTIFS('Master List'!L2:L400, \"FALL\",'Master List'!F2:F400, \"2017\",'Master List'!Q2:Q400, \"In Chair\",  'Master List'!D2:D400,  \"nov\")","v":0},{"$f":"COUNTIFS('Master List'!L2:L400, \"FALL\",'Master List'!F2:F400, \"2017\",'Master List'!Q2:Q400, \"In Chair\",  'Master List'!D2:D400,  \"dec\")","v":0},1,0,0,0]
[null,null,"Toileting",{"$f":"COUNTIFS('Master List'!L2:L400, \"FALL\",'Master List'!F2:F400, \"2017\",'Master List'!Q2:Q400, \"Toileting\")","v":0},{"$f":"COUNTIFS('Master List'!L2:L400, \"FALL\",'Master List'!F2:F400, \"2017\",'Master List'!Q2:Q400, \"Toileting\",'Master List'!D2:D400, \"JAN\")","v":0},{"$f":"COUNTIFS('Master List'!L2:L400, \"FALL\",'Master List'!F2:F400, \"2017\",'Master List'!Q2:Q400, \"Toileting\",  'Master List'!D2:D400, \"feb\")","v":0},{"$f":"COUNTIFS('Master List'!L2:L400, \"FALL\",'Master List'!F2:F400, \"2017\",'Master List'!Q2:Q400, \"Toileting\",  'Master List'!D2:D400,  \"Mar\")","v":0},{"$f":"COUNTIFS('Master List'!L2:L400, \"FALL\",'Master List'!F2:F400, \"2017\",'Master List'!Q2:Q400, \"Toileting\",  'Master List'!D2:D400,  \"apr\")","v":0},{"$f":"COUNTIFS('Master List'!L2:L400, \"FALL\",'Master List'!F2:F400, \"2017\",'Master List'!Q2:Q400, \"Toileting\",  'Master List'!D2:D400,  \"may\")","v":0},{"$f":"COUNTIFS('Master List'!L2:L400, \"FALL\",'Master List'!F2:F400, \"2017\",'Master List'!Q2:Q400, \"Toileting\",  'Master List'!D2:D400, \"jun\")","v":0},{"$f":"COUNTIFS('Master List'!L2:L400, \"FALL\",'Master List'!F2:F400, \"2017\",'Master List'!Q2:Q400, \"Toileting\",  'Master List'!D2:D400,  \"jul\")","v":0},{"$f":"COUNTIFS('Master List'!L2:L400, \"FALL\",'Master List'!F2:F400, \"2017\",'Master List'!Q2:Q400, \"Toileting\",  'Master List'!D2:D400, \"aug\")","v":0},{"$f":"COUNTIFS('Master List'!L2:L400, \"FALL\",'Master List'!F2:F400, \"2017\",'Master List'!Q2:Q400, \"Toileting\",  'Master List'!D2:D400,  \"sep\")","v":0},{"$f":"COUNTIFS('Master List'!L2:L400, \"FALL\",'Master List'!F2:F400, \"2017\",'Master List'!Q2:Q400, \"Toileting\",  'Master List'!D2:D400,  \"oct\")","v":0},{"$f":"COUNTIFS('Master List'!L2:L400, \"FALL\",'Master List'!F2:F400, \"2017\",'Master List'!Q2:Q400, \"Toileting\",  'Master List'!D2:D400,  \"nov\")","v":0},{"$f":"COUNTIFS('Master List'!L2:L400, \"FALL\",'Master List'!F2:F400, \"2017\",'Master List'!Q2:Q400, \"Toileting\",  'Master List'!D2:D400,  \"dec\")","v":0},0,0,0,0]
[null,null,"Reaching/Leaning",{"$f":"COUNTIFS('Master List'!L2:L400, \"FALL\",'Master List'!F2:F400, \"2017\",'Master List'!Q2:Q400, \"reaching/leaning\")","v":0},{"$f":"COUNTIFS('Master List'!L2:L400, \"FALL\",'Master List'!F2:F400, \"2017\",'Master List'!Q2:Q400, \"reaching/leaning\",'Master List'!D2:D400, \"JAN\")","v":0},{"$f":"COUNTIFS('Master List'!L2:L400, \"FALL\",'Master List'!F2:F400, \"2017\",'Master List'!Q2:Q400, \"reaching/leaning\",  'Master List'!D2:D400, \"feb\")","v":0},{"$f":"COUNTIFS('Master List'!L2:L400, \"FALL\",'Master List'!F2:F400, \"2017\",'Master List'!Q2:Q400, \"reaching/leaning\",  'Master List'!D2:D400,  \"Mar\")","v":0},{"$f":"COUNTIFS('Master List'!L2:L400, \"FALL\",'Master List'!F2:F400, \"2017\",'Master List'!Q2:Q400, \"reaching/leaning\",  'Master List'!D2:D400,  \"apr\")","v":0},{"$f":"COUNTIFS('Master List'!L2:L400, \"FALL\",'Master List'!F2:F400, \"2017\",'Master List'!Q2:Q400, \"reaching/leaning\",  'Master List'!D2:D400,  \"may\")","v":0},{"$f":"COUNTIFS('Master List'!L2:L400, \"FALL\",'Master List'!F2:F400, \"2017\",'Master List'!Q2:Q400, \"reaching/leaning\",  'Master List'!D2:D400, \"jun\")","v":0},{"$f":"COUNTIFS('Master List'!L2:L400, \"FALL\",'Master List'!F2:F400, \"2017\",'Master List'!Q2:Q400, \"reaching/leaning\",  'Master List'!D2:D400,  \"jul\")","v":0},{"$f":"COUNTIFS('Master List'!L2:L400, \"FALL\",'Master List'!F2:F400, \"2017\",'Master List'!Q2:Q400, \"reaching/leaning\",  'Master List'!D2:D400, \"aug\")","v":0},{"$f":"COUNTIFS('Master List'!L2:L400, \"FALL\",'Master List'!F2:F400, \"2017\",'Master List'!Q2:Q400, \"reaching/leaning\",  'Master List'!D2:D400,  \"sep\")","v":0},{"$f":"COUNTIFS('Master List'!L2:L400, \"FALL\",'Master List'!F2:F400, \"2017\",'Master List'!Q2:Q400, \"reaching/leaning\",  'Master List'!D2:D400,  \"oct\")","v":0},{"$f":"COUNTIFS('Master List'!L2:L400, \"FALL\",'Master List'!F2:F400, \"2017\",'Master List'!Q2:Q400, \"reaching/leaning\",  'Master List'!D2:D400,  \"nov\")","v":0},{"$f":"COUNTIFS('Master List'!L2:L400, \"FALL\",'Master List'!F2:F400, \"2017\",'Master List'!Q2:Q400, \"reaching/leaning\",  'Master List'!D2:D400,  \"dec\")","v":0},0,0,0,0]
[null,null,"Standing Up",{"$f":"COUNTIFS('Master List'!L2:L400, \"FALL\",'Master List'!F2:F400, \"2017\",'Master List'!Q2:Q400, \"standing up\")","v":4},{"$f":"COUNTIFS('Master List'!L2:L400, \"FALL\",'Master List'!F2:F400, \"2017\",'Master List'!Q2:Q400, \"standing up\",'Master List'!D2:D400, \"JAN\")","v":4},{"$f":"COUNTIFS('Master List'!L2:L400, \"FALL\",'Master List'!F2:F400, \"2017\",'Master List'!Q2:Q400, \"standing up\",  'Master List'!D2:D400, \"feb\")","v":0},{"$f":"COUNTIFS('Master List'!L2:L400, \"FALL\",'Master List'!F2:F400, \"2017\",'Master List'!Q2:Q400, \"standing up\",  'Master List'!D2:D400,  \"Mar\")","v":0},{"$f":"COUNTIFS('Master List'!L2:L400, \"FALL\",'Master List'!F2:F400, \"2017\",'Master List'!Q2:Q400, \"standing up\",  'Master List'!D2:D400,  \"apr\")","v":0},{"$f":"COUNTIFS('Master List'!L2:L400, \"FALL\",'Master List'!F2:F400, \"2017\",'Master List'!Q2:Q400, \"standing up\",  'Master List'!D2:D400,  \"may\")","v":0},{"$f":"COUNTIFS('Master List'!L2:L400, \"FALL\",'Master List'!F2:F400, \"2017\",'Master List'!Q2:Q400, \"standing up\",  'Master List'!D2:D400, \"jun\")","v":0},{"$f":"COUNTIFS('Master List'!L2:L400, \"FALL\",'Master List'!F2:F400, \"2017\",'Master List'!Q2:Q400, \"standing up\",  'Master List'!D2:D400,  \"jul\")","v":0},{"$f":"COUNTIFS('Master List'!L2:L400, \"FALL\",'Master List'!F2:F400, \"2017\",'Master List'!Q2:Q400, \"standing up\",  'Master List'!D2:D400, \"aug\")","v":0},{"$f":"COUNTIFS('Master List'!L2:L400, \"FALL\",'Master List'!F2:F400, \"2017\",'Master List'!Q2:Q400, \"standing up\",  'Master List'!D2:D400,  \"sep\")","v":0},{"$f":"COUNTIFS('Master List'!L2:L400, \"FALL\",'Master List'!F2:F400, \"2017\",'Master List'!Q2:Q400, \"standing up\",  'Master List'!D2:D400,  \"oct\")","v":0},{"$f":"COUNTIFS('Master List'!L2:L400, \"FALL\",'Master List'!F2:F400, \"2017\",'Master List'!Q2:Q400, \"standing up\",  'Master List'!D2:D400,  \"nov\")","v":0},{"$f":"COUNTIFS('Master List'!L2:L400, \"FALL\",'Master List'!F2:F400, \"2017\",'Master List'!Q2:Q400, \"standing up\",  'Master List'!D2:D400,  \"dec\")","v":0},4,0,0,0]
[null,null,"Unknown",{"$f":"COUNTIFS('Master List'!L2:L400, \"FALL\",'Master List'!F2:F400, \"2017\",'Master List'!Q2:Q400, \"Unknown\")","v":1},{"$f":"COUNTIFS('Master List'!L3:L401, \"FALL\",'Master List'!F3:F401, \"2017\",'Master List'!Q3:Q401, \"unknown\",'Master List'!D32:D430, \"JAN\")","v":0},{"$f":"COUNTIFS('Master List'!L3:L401, \"FALL\",'Master List'!F3:F401, \"2017\",'Master List'!Q3:Q401, \"unknown\",  'Master List'!D32:D430, \"feb\")","v":0},{"$f":"COUNTIFS('Master List'!L3:L401, \"FALL\",'Master List'!F3:F401, \"2017\",'Master List'!Q3:Q401, \"unknown\",  'Master List'!D32:D430,  \"Mar\")","v":0},{"$f":"COUNTIFS('Master List'!L3:L401, \"FALL\",'Master List'!F3:F401, \"2017\",'Master List'!Q3:Q401, \"unknown\",  'Master List'!D32:D430,  \"apr\")","v":0},{"$f":"COUNTIFS('Master List'!L3:L401, \"FALL\",'Master List'!F3:F401, \"2017\",'Master List'!Q3:Q401, \"unknown\",  'Master List'!D32:D430,  \"may\")","v":0},{"$f":"COUNTIFS('Master List'!L3:L401, \"FALL\",'Master List'!F3:F401, \"2017\",'Master List'!Q3:Q401, \"unknown\",  'Master List'!D32:D430, \"jun\")","v":0},{"$f":"COUNTIFS('Master List'!L3:L401, \"FALL\",'Master List'!F3:F401, \"2017\",'Master List'!Q3:Q401, \"unknown\",  'Master List'!D32:D430,  \"jul\")","v":0},{"$f":"COUNTIFS('Master List'!L3:L401, \"FALL\",'Master List'!F3:F401, \"2017\",'Master List'!Q3:Q401, \"unknown\",  'Master List'!D32:D430, \"aug\")","v":0},{"$f":"COUNTIFS('Master List'!L3:L401, \"FALL\",'Master List'!F3:F401, \"2017\",'Master List'!Q3:Q401, \"unknown\",  'Master List'!D32:D430,  \"sep\")","v":0},{"$f":"COUNTIFS('Master List'!L3:L401, \"FALL\",'Master List'!F3:F401, \"2017\",'Master List'!Q3:Q401, \"unknown\",  'Master List'!D32:D430,  \"oct\")","v":0},{"$f":"COUNTIFS('Master List'!L3:L401, \"FALL\",'Master List'!F3:F401, \"2017\",'Master List'!Q3:Q401, \"unknown\",  'Master List'!D32:D430,  \"nov\")","v":0},{"$f":"COUNTIFS('Master List'!L3:L401, \"FALL\",'Master List'!F3:F401, \"2017\",'Master List'!Q3:Q401, \"unknown\",  'Master List'!D32:D430,  \"dec\")","v":0},0,0,0,0]
[null,null,"N/A",{"$f":"COUNTIFS('Master List'!L2:L400, \"FALL\",'Master List'!F2:F400, \"2017\",'Master List'!Q2:Q400, \"n/a\")","v":0},{"$f":"COUNTIFS('Master List'!L4:L402, \"FALL\",'Master List'!F4:F402, \"2017\",'Master List'!Q4:Q402, \"n/a\",'Master List'!D33:D431, \"JAN\")","v":0},{"$f":"COUNTIFS('Master List'!L4:L402, \"FALL\",'Master List'!F4:F402, \"2017\",'Master List'!Q4:Q402, \"n/a\",  'Master List'!D33:D431, \"feb\")","v":0},{"$f":"COUNTIFS('Master List'!L4:L402, \"FALL\",'Master List'!F4:F402, \"2017\",'Master List'!Q4:Q402, \"n/a\",  'Master List'!D33:D431,  \"Mar\")","v":0},{"$f":"COUNTIFS('Master List'!L4:L402, \"FALL\",'Master List'!F4:F402, \"2017\",'Master List'!Q4:Q402, \"n/a\",  'Master List'!D33:D431,  \"apr\")","v":0},{"$f":"COUNTIFS('Master List'!L4:L402, \"FALL\",'Master List'!F4:F402, \"2017\",'Master List'!Q4:Q402, \"n/a\",  'Master List'!D33:D431,  \"may\")","v":0},{"$f":"COUNTIFS('Master List'!L4:L402, \"FALL\",'Master List'!F4:F402, \"2017\",'Master List'!Q4:Q402, \"n/a\",  'Master List'!D33:D431, \"jun\")","v":0},{"$f":"COUNTIFS('Master List'!L4:L402, \"FALL\",'Master List'!F4:F402, \"2017\",'Master List'!Q4:Q402, \"n/a\",  'Master List'!D33:D431,  \"jul\")","v":0},{"$f":"COUNTIFS('Master List'!L4:L402, \"FALL\",'Master List'!F4:F402, \"2017\",'Master List'!Q4:Q402, \"n/a\",  'Master List'!D33:D431, \"aug\")","v":0},{"$f":"COUNTIFS('Master List'!L4:L402, \"FALL\",'Master List'!F4:F402, \"2017\",'Master List'!Q4:Q402, \"n/a\",  'Master List'!D33:D431,  \"sep\")","v":0},{"$f":"COUNTIFS('Master List'!L4:L402, \"FALL\",'Master List'!F4:F402, \"2017\",'Master List'!Q4:Q402, \"n/a\",  'Master List'!D33:D431,  \"oct\")","v":0},{"$f":"COUNTIFS('Master List'!L4:L402, \"FALL\",'Master List'!F4:F402, \"2017\",'Master List'!Q4:Q402, \"n/a\",  'Master List'!D33:D431,  \"nov\")","v":0},{"$f":"COUNTIFS('Master List'!L4:L402, \"FALL\",'Master List'!F4:F402, \"2017\",'Master List'!Q4:Q402, \"n/a\",  'Master List'!D33:D431,  \"dec\")","v":0},0,0,0,0]
[null,null,"Other",{"$f":"COUNTIFS('Master List'!L2:L400, \"FALL\",'Master List'!F2:F400, \"2017\",'Master List'!Q2:Q400, \"other\")","v":0},{"$f":"COUNTIFS('Master List'!L5:L403, \"FALL\",'Master List'!F5:F403, \"2017\",'Master List'!Q5:Q403, \"other\",'Master List'!D34:D432, \"JAN\")","v":0},{"$f":"COUNTIFS('Master List'!L5:L403, \"FALL\",'Master List'!F5:F403, \"2017\",'Master List'!Q5:Q403, \"other\",  'Master List'!D34:D432, \"feb\")","v":0},{"$f":"COUNTIFS('Master List'!L5:L403, \"FALL\",'Master List'!F5:F403, \"2017\",'Master List'!Q5:Q403, \"other\",  'Master List'!D34:D432,  \"Mar\")","v":0},{"$f":"COUNTIFS('Master List'!L5:L403, \"FALL\",'Master List'!F5:F403, \"2017\",'Master List'!Q5:Q403, \"other\",  'Master List'!D34:D432,  \"apr\")","v":0},{"$f":"COUNTIFS('Master List'!L5:L403, \"FALL\",'Master List'!F5:F403, \"2017\",'Master List'!Q5:Q403, \"other\",  'Master List'!D34:D432,  \"may\")","v":0},{"$f":"COUNTIFS('Master List'!L5:L403, \"FALL\",'Master List'!F5:F403, \"2017\",'Master List'!Q5:Q403, \"other\",  'Master List'!D34:D432, \"jun\")","v":0},{"$f":"COUNTIFS('Master List'!L5:L403, \"FALL\",'Master List'!F5:F403, \"2017\",'Master List'!Q5:Q403, \"other\",  'Master List'!D34:D432,  \"jul\")","v":0},{"$f":"COUNTIFS('Master List'!L5:L403, \"FALL\",'Master List'!F5:F403, \"2017\",'Master List'!Q5:Q403, \"other\",  'Master List'!D34:D432, \"aug\")","v":0},{"$f":"COUNTIFS('Master List'!L5:L403, \"FALL\",'Master List'!F5:F403, \"2017\",'Master List'!Q5:Q403, \"other\",  'Master List'!D34:D432,  \"sep\")","v":0},{"$f":"COUNTIFS('Master List'!L5:L403, \"FALL\",'Master List'!F5:F403, \"2017\",'Master List'!Q5:Q403, \"other\",  'Master List'!D34:D432,  \"oct\")","v":0},{"$f":"COUNTIFS('Master List'!L5:L403, \"FALL\",'Master List'!F5:F403, \"2017\",'Master List'!Q5:Q403, \"other\",  'Master List'!D34:D432,  \"nov\")","v":0},{"$f":"COUNTIFS('Master List'!L5:L403, \"FALL\",'Master List'!F5:F403, \"2017\",'Master List'!Q5:Q403, \"other\",  'Master List'!D34:D432,  \"dec\")","v":0},0,0,0,0]
[]
[]
[]
[]
[]
[]
[]
[]
[]
[]
[]
[]
[]
[]
[]
[]
[]
[]
[]
[]
[]
[null,null,"Falls by Severity - 2017"]
[null,null,null,"Total 2017","jan ","feb","mar","apr","may","jun","jul","aug","sept","oct","nov","dec ","q1","q2","q3","q4"]
[null,null,"A- Unsafe Condition No Event",{"$f":"COUNTIFS('Master List'!L2:L400, \"FALL\",'Master List'!F2:F400, \"2017\",'Master List'!R2:R400, \"A- Unsafe Condition No Event\")","v":0},{"$f":"COUNTIFS('Master List'!L2:L400, \"FALL\",'Master List'!F2:F400, \"2017\",'Master List'!R2:R400, \"A- Unsafe Condition No Event\",  'Master List'!D2:D400, \"jan\")","v":0},{"$f":"COUNTIFS('Master List'!L2:L400, \"FALL\",'Master List'!F2:F400, \"2017\",'Master List'!R2:R400, \"A- Unsafe Condition No Event\",  'Master List'!D2:D400,  \"Feb\",  'Master List'!D2:D400, \"feb\")","v":0},{"$f":"COUNTIFS('Master List'!L2:L400, \"FALL\",'Master List'!F2:F400, \"2017\",'Master List'!R2:R400, \"A- Unsafe Condition No Event\",  'Master List'!D2:D400,  \"Mar\")","v":0},{"$f":"COUNTIFS('Master List'!L2:L400, \"FALL\",'Master List'!F2:F400, \"2017\",'Master List'!R2:R400, \"A- Unsafe Condition No Event\",  'Master List'!D2:D400,  \"apr\")","v":0},{"$f":"COUNTIFS('Master List'!L2:L400, \"FALL\",'Master List'!F2:F400, \"2017\",'Master List'!R2:R400, \"A- Unsafe Condition No Event\",  'Master List'!D2:D400,  \"may\")","v":0},{"$f":"COUNTIFS('Master List'!L2:L400, \"FALL\",'Master List'!F2:F400, \"2017\",'Master List'!R2:R400, \"A- Unsafe Condition No Event\",  'Master List'!D2:D400, \"jun\")","v":0},{"$f":"COUNTIFS('Master List'!L2:L400, \"FALL\",'Master List'!F2:F400, \"2017\",'Master List'!R2:R400, \"A- Unsafe Condition No Event\",  'Master List'!D2:D400,  \"jul\")","v":0},{"$f":"COUNTIFS('Master List'!L2:L400, \"FALL\",'Master List'!F2:F400, \"2017\",'Master List'!R2:R400, \"A- Unsafe Condition No Event\",  'Master List'!D2:D400, \"aug\")","v":0},{"$f":"COUNTIFS('Master List'!L2:L400, \"FALL\",'Master List'!F2:F400, \"2017\",'Master List'!R2:R400, \"A- Unsafe Condition No Event\",  'Master List'!D2:D400,  \"sep\")","v":0},{"$f":"COUNTIFS('Master List'!L2:L400, \"FALL\",'Master List'!F2:F400, \"2017\",'Master List'!R2:R400, \"A- Unsafe Condition No Event\",  'Master List'!D2:D400,  \"oct\")","v":0},{"$f":"COUNTIFS('Master List'!L2:L400, \"FALL\",'Master List'!F2:F400, \"2017\",'Master List'!R2:R400, \"A- Unsafe Condition No Event\",  'Master List'!D2:D400,  \"nov\")","v":0},{"$f":"COUNTIFS('Master List'!L2:L400, \"FALL\",'Master List'!F2:F400, \"2017\",'Master List'!R2:R400, \"A- Unsafe Condition No Event\",  'Master List'!D2:D400,  \"dec\")","v":0},{"$f":"SUM(E219:G219)","v":0},{"$f":"SUM(H219:J219)","v":0},{"$f":"SUM(K219:M219)","v":0},{"$f":"SUM(N219:P219)","v":0}]
[null,null,"B- Near Miss, Event did not reach resident",{"$f":"COUNTIFS('Master List'!L2:L400, \"FALL\",'Master List'!F2:F400, \"2017\",'Master List'!R2:R400, \"B- Near Miss, Event did not reach resident\")","v":0},{"$f":"COUNTIFS('Master List'!L2:L400, \"FALL\",'Master List'!F2:F400, \"2017\",'Master List'!R2:R400, \"B- Near Miss, Event did not reach resident\",'Master List'!D2:D400, \"JAN\")","v":0},{"$f":"COUNTIFS('Master List'!L2:L400, \"FALL\",'Master List'!F2:F400, \"2017\",'Master List'!R2:R400, \"B- Near Miss, Event did not reach resident\",  'Master List'!D2:D400, \"feb\")","v":0},{"$f":"COUNTIFS('Master List'!L2:L400, \"FALL\",'Master List'!F2:F400, \"2017\",'Master List'!R2:R400, \"B- Near Miss, Event did not reach resident\",  'Master List'!D2:D400,  \"Mar\")","v":0},{"$f":"COUNTIFS('Master List'!L2:L400, \"FALL\",'Master List'!F2:F400, \"2017\",'Master List'!R2:R400, \"B- Near Miss, Event did not reach resident\",  'Master List'!D2:D400,  \"apr\")","v":0},{"$f":"COUNTIFS('Master List'!L2:L400, \"FALL\",'Master List'!F2:F400, \"2017\",'Master List'!R2:R400, \"B- Near Miss, Event did not reach resident\",  'Master List'!D2:D400,  \"may\")","v":0},{"$f":"COUNTIFS('Master List'!L2:L400, \"FALL\",'Master List'!F2:F400, \"2017\",'Master List'!R2:R400, \"B- Near Miss, Event did not reach resident\",  'Master List'!D2:D400, \"jun\")","v":0},{"$f":"COUNTIFS('Master List'!L2:L400, \"FALL\",'Master List'!F2:F400, \"2017\",'Master List'!R2:R400, \"B- Near Miss, Event did not reach resident\",  'Master List'!D2:D400,  \"jul\")","v":0},{"$f":"COUNTIFS('Master List'!L2:L400, \"FALL\",'Master List'!F2:F400, \"2017\",'Master List'!R2:R400, \"B- Near Miss, Event did not reach resident\",  'Master List'!D2:D400, \"aug\")","v":0},{"$f":"COUNTIFS('Master List'!L2:L400, \"FALL\",'Master List'!F2:F400, \"2017\",'Master List'!R2:R400, \"B- Near Miss, Event did not reach resident\",  'Master List'!D2:D400,  \"sep\")","v":0},{"$f":"COUNTIFS('Master List'!L2:L400, \"FALL\",'Master List'!F2:F400, \"2017\",'Master List'!R2:R400, \"B- Near Miss, Event did not reach resident\",  'Master List'!D2:D400,  \"oct\")","v":0},{"$f":"COUNTIFS('Master List'!L2:L400, \"FALL\",'Master List'!F2:F400, \"2017\",'Master List'!R2:R400, \"B- Near Miss, Event did not reach resident\",  'Master List'!D2:D400,  \"nov\")","v":0},{"$f":"COUNTIFS('Master List'!L2:L400, \"FALL\",'Master List'!F2:F400, \"2017\",'Master List'!R2:R400, \"B- Near Miss, Event did not reach resident\",  'Master List'!D2:D400,  \"dec\")","v":0},0,{"$f":"SUM(H220:K220)","v":0},0,0]
[null,null,"C- No Injury Event",{"$f":"COUNTIFS('Master List'!L2:L400, \"FALL\",'Master List'!F2:F400, \"2017\",'Master List'!R2:R400, \"C- No Injury Event\")","v":8},{"$f":"COUNTIFS('Master List'!L2:L400, \"FALL\",'Master List'!F2:F400, \"2017\",'Master List'!R2:R400, \"C- No Injury Event\",'Master List'!D2:D400, \"JAN\")","v":8},{"$f":"COUNTIFS('Master List'!L2:L400, \"FALL\",'Master List'!F2:F400, \"2017\",'Master List'!R2:R400, \"C- No Injury Event\",  'Master List'!D2:D400, \"feb\")","v":0},{"$f":"COUNTIFS('Master List'!L2:L400, \"FALL\",'Master List'!F2:F400, \"2017\",'Master List'!R2:R400, \"C- No Injury Event\",  'Master List'!D2:D400,  \"Mar\")","v":0},{"$f":"COUNTIFS('Master List'!L2:L400, \"FALL\",'Master List'!F2:F400, \"2017\",'Master List'!R2:R400, \"C- No Injury Event\",  'Master List'!D2:D400,  \"apr\")","v":0},{"$f":"COUNTIFS('Master List'!L2:L400, \"FALL\",'Master List'!F2:F400, \"2017\",'Master List'!R2:R400, \"C- No Injury Event\",  'Master List'!D2:D400,  \"may\")","v":0},{"$f":"COUNTIFS('Master List'!L2:L400, \"FALL\",'Master List'!F2:F400, \"2017\",'Master List'!R2:R400, \"C- No Injury Event\",  'Master List'!D2:D400, \"jun\")","v":0},{"$f":"COUNTIFS('Master List'!L2:L400, \"FALL\",'Master List'!F2:F400, \"2017\",'Master List'!R2:R400, \"C- No Injury Event\",  'Master List'!D2:D400,  \"jul\")","v":0},{"$f":"COUNTIFS('Master List'!L2:L400, \"FALL\",'Master List'!F2:F400, \"2017\",'Master List'!R2:R400, \"C- No Injury Event\",  'Master List'!D2:D400, \"aug\")","v":0},{"$f":"COUNTIFS('Master List'!L2:L400, \"FALL\",'Master List'!F2:F400, \"2017\",'Master List'!R2:R400, \"C- No Injury Event\",  'Master List'!D2:D400,  \"sep\")","v":0},{"$f":"COUNTIFS('Master List'!L2:L400, \"FALL\",'Master List'!F2:F400, \"2017\",'Master List'!R2:R400, \"C- No Injury Event\",  'Master List'!D2:D400,  \"oct\")","v":0},{"$f":"COUNTIFS('Master List'!L2:L400, \"FALL\",'Master List'!F2:F400, \"2017\",'Master List'!R2:R400, \"C- No Injury Event\",  'Master List'!D2:D400,  \"nov\")","v":0},{"$f":"COUNTIFS('Master List'!L2:L400, \"FALL\",'Master List'!F2:F400, \"2017\",'Master List'!R2:R400, \"C- No Injury Event\",  'Master List'!D2:D400,  \"dec\")","v":0},8,{"$f":"SUM(H221:J221)","v":0},0,0]
[null,null,"D- No harm, but monitoring needed ex. Skin tear",{"$f":"COUNTIFS('Master List'!L2:L400, \"FALL\",'Master List'!F2:F400, \"2017\",'Master List'!R2:R400, \"D- No harm, but monitoring needed ex. Skin tear\")","v":3},{"$f":"COUNTIFS('Master List'!L2:L400, \"FALL\",'Master List'!F2:F400, \"2017\",'Master List'!R2:R400, \"D- No harm, but monitoring needed ex. Skin tear\", 'Master List'!D2:D400, \"JAN\")","v":3},{"$f":"COUNTIFS('Master List'!L2:L400, \"FALL\",'Master List'!F2:F400, \"2017\",'Master List'!R2:R400, \"D- No harm, but monitoring needed ex. Skin tear\",  'Master List'!D2:D400, \"feb\")","v":0},{"$f":"COUNTIFS('Master List'!L2:L400, \"FALL\",'Master List'!F2:F400, \"2017\",'Master List'!R2:R400, \"D- No harm, but monitoring needed ex. Skin tear\",  'Master List'!D2:D400,  \"Mar\")","v":0},{"$f":"COUNTIFS('Master List'!L2:L400, \"FALL\",'Master List'!F2:F400, \"2017\",'Master List'!R2:R400, \"D- No harm, but monitoring needed ex. Skin tear\",  'Master List'!D2:D400,  \"apr\")","v":0},{"$f":"COUNTIFS('Master List'!L2:L400, \"FALL\",'Master List'!F2:F400, \"2017\",'Master List'!R2:R400, \"D- No harm, but monitoring needed ex. Skin tear\",  'Master List'!D2:D400,  \"may\")","v":0},{"$f":"COUNTIFS('Master List'!L2:L400, \"FALL\",'Master List'!F2:F400, \"2017\",'Master List'!R2:R400, \"D- No harm, but monitoring needed ex. Skin tear\",  'Master List'!D2:D400, \"jun\")","v":0},{"$f":"COUNTIFS('Master List'!L2:L400, \"FALL\",'Master List'!F2:F400, \"2017\",'Master List'!R2:R400, \"D- No harm, but monitoring needed ex. Skin tear\",  'Master List'!D2:D400,  \"jul\")","v":0},{"$f":"COUNTIFS('Master List'!L2:L400, \"FALL\",'Master List'!F2:F400, \"2017\",'Master List'!R2:R400, \"D- No harm, but monitoring needed ex. Skin tear\",  'Master List'!D2:D400, \"aug\")","v":0},{"$f":"COUNTIFS('Master List'!L2:L400, \"FALL\",'Master List'!F2:F400, \"2017\",'Master List'!R2:R400, \"D- No harm, but monitoring needed ex. Skin tear\",  'Master List'!D2:D400,  \"sep\")","v":0},{"$f":"COUNTIFS('Master List'!L2:L400, \"FALL\",'Master List'!F2:F400, \"2017\",'Master List'!R2:R400, \"D- No harm, but monitoring needed ex. Skin tear\",  'Master List'!D2:D400,  \"oct\")","v":0},{"$f":"COUNTIFS('Master List'!L2:L400, \"FALL\",'Master List'!F2:F400, \"2017\",'Master List'!R2:R400, \"D- No harm, but monitoring needed ex. Skin tear\",  'Master List'!D2:D400,  \"nov\")","v":0},{"$f":"COUNTIFS('Master List'!L2:L400, \"FALL\",'Master List'!F2:F400, \"2017\",'Master List'!R2:R400, \"D- No harm, but monitoring needed ex. Skin tear\",  'Master List'!D2:D400,  \"dec\")","v":0},3,0,0,0]
[null,null,"E- Temporary harm, ex. Sutures",{"$f":"COUNTIFS('Master List'!L2:L400, \"FALL\",'Master List'!F2:F400, \"2017\",'Master List'!R2:R400, \"E- Temporary harm, ex. Sutures\")","v":0},{"$f":"COUNTIFS('Master List'!L2:L400, \"FALL\",'Master List'!F2:F400, \"2017\",'Master List'!R2:R400, \"E- Temporary harm, ex. Sutures\",'Master List'!D2:D400, \"JAN\")","v":0},{"$f":"COUNTIFS('Master List'!L2:L400, \"FALL\",'Master List'!F2:F400, \"2017\",'Master List'!R2:R400, \"E- Temporary harm, ex. Sutures\",  'Master List'!D2:D400, \"feb\")","v":0},{"$f":"COUNTIFS('Master List'!L2:L400, \"FALL\",'Master List'!F2:F400, \"2017\",'Master List'!R2:R400, \"E- Temporary harm, ex. Sutures\",  'Master List'!D2:D400,  \"Mar\")","v":0},{"$f":"COUNTIFS('Master List'!L2:L400, \"FALL\",'Master List'!F2:F400, \"2017\",'Master List'!R2:R400, \"E- Temporary harm, ex. Sutures\",  'Master List'!D2:D400,  \"apr\")","v":0},{"$f":"COUNTIFS('Master List'!L2:L400, \"FALL\",'Master List'!F2:F400, \"2017\",'Master List'!R2:R400, \"E- Temporary harm, ex. Sutures\",  'Master List'!D2:D400,  \"may\")","v":0},{"$f":"COUNTIFS('Master List'!L2:L400, \"FALL\",'Master List'!F2:F400, \"2017\",'Master List'!R2:R400, \"E- Temporary harm, ex. Sutures\",  'Master List'!D2:D400, \"jun\")","v":0},{"$f":"COUNTIFS('Master List'!L2:L400, \"FALL\",'Master List'!F2:F400, \"2017\",'Master List'!R2:R400, \"E- Temporary harm, ex. Sutures\",  'Master List'!D2:D400,  \"jul\")","v":0},{"$f":"COUNTIFS('Master List'!L2:L400, \"FALL\",'Master List'!F2:F400, \"2017\",'Master List'!R2:R400, \"E- Temporary harm, ex. Sutures\",  'Master List'!D2:D400, \"aug\")","v":0},{"$f":"COUNTIFS('Master List'!L2:L400, \"FALL\",'Master List'!F2:F400, \"2017\",'Master List'!R2:R400, \"E- Temporary harm, ex. Sutures\",  'Master List'!D2:D400,  \"sep\")","v":0},{"$f":"COUNTIFS('Master List'!L2:L400, \"FALL\",'Master List'!F2:F400, \"2017\",'Master List'!R2:R400, \"E- Temporary harm, ex. Sutures\",  'Master List'!D2:D400,  \"oct\")","v":0},{"$f":"COUNTIFS('Master List'!L2:L400, \"FALL\",'Master List'!F2:F400, \"2017\",'Master List'!R2:R400, \"E- Temporary harm, ex. Sutures\",  'Master List'!D2:D400,  \"nov\")","v":0},{"$f":"COUNTIFS('Master List'!L2:L400, \"FALL\",'Master List'!F2:F400, \"2017\",'Master List'!R2:R400, \"E- Temporary harm, ex. Sutures\",  'Master List'!D2:D400,  \"dec\")","v":0},0,0,0,0]
[null,null,"F- Temporary harm with hospitalization ex. PU with hosptialization for tx",{"$f":"COUNTIFS('Master List'!L2:L400, \"FALL\",'Master List'!F2:F400, \"2017\",'Master List'!R2:R400, \"F- Temporary harm with hospitalization ex. PU with hosptialization for tx\")","v":0},{"$f":"COUNTIFS('Master List'!L2:L400, \"FALL\",'Master List'!F2:F400, \"2017\",'Master List'!R2:R400, \"F- Temporary harm with hospitalization ex. PU with hosptialization for tx\",'Master List'!D2:D400, \"JAN\")","v":0},{"$f":"COUNTIFS('Master List'!L2:L400, \"FALL\",'Master List'!F2:F400, \"2017\",'Master List'!R2:R400, \"F- Temporary harm with hospitalization ex. PU with hosptialization for tx\",  'Master List'!D2:D400, \"feb\")","v":0},{"$f":"COUNTIFS('Master List'!L2:L400, \"FALL\",'Master List'!F2:F400, \"2017\",'Master List'!R2:R400, \"F- Temporary harm with hospitalization ex. PU with hosptialization for tx\",  'Master List'!D2:D400,  \"Mar\")","v":0},{"$f":"COUNTIFS('Master List'!L2:L400, \"FALL\",'Master List'!F2:F400, \"2017\",'Master List'!R2:R400, \"F- Temporary harm with hospitalization ex. PU with hosptialization for tx\",  'Master List'!D2:D400,  \"apr\")","v":0},{"$f":"COUNTIFS('Master List'!L2:L400, \"FALL\",'Master List'!F2:F400, \"2017\",'Master List'!R2:R400, \"F- Temporary harm with hospitalization ex. PU with hosptialization for tx\",  'Master List'!D2:D400,  \"may\")","v":0},{"$f":"COUNTIFS('Master List'!L2:L400, \"FALL\",'Master List'!F2:F400, \"2017\",'Master List'!R2:R400, \"F- Temporary harm with hospitalization ex. PU with hosptialization for tx\",  'Master List'!D2:D400, \"jun\")","v":0},{"$f":"COUNTIFS('Master List'!L2:L400, \"FALL\",'Master List'!F2:F400, \"2017\",'Master List'!R2:R400, \"F- Temporary harm with hospitalization ex. PU with hosptialization for tx\",  'Master List'!D2:D400,  \"jul\")","v":0},{"$f":"COUNTIFS('Master List'!L2:L400, \"FALL\",'Master List'!F2:F400, \"2017\",'Master List'!R2:R400, \"F- Temporary harm with hospitalization ex. PU with hosptialization for tx\",  'Master List'!D2:D400, \"aug\")","v":0},{"$f":"COUNTIFS('Master List'!L2:L400, \"FALL\",'Master List'!F2:F400, \"2017\",'Master List'!R2:R400, \"F- Temporary harm with hospitalization ex. PU with hosptialization for tx\",  'Master List'!D2:D400,  \"sep\")","v":0},{"$f":"COUNTIFS('Master List'!L2:L400, \"FALL\",'Master List'!F2:F400, \"2017\",'Master List'!R2:R400, \"F- Temporary harm with hospitalization ex. PU with hosptialization for tx\",  'Master List'!D2:D400,  \"oct\")","v":0},{"$f":"COUNTIFS('Master List'!L2:L400, \"FALL\",'Master List'!F2:F400, \"2017\",'Master List'!R2:R400, \"F- Temporary harm with hospitalization ex. PU with hosptialization for tx\",  'Master List'!D2:D400,  \"nov\")","v":0},{"$f":"COUNTIFS('Master List'!L2:L400, \"FALL\",'Master List'!F2:F400, \"2017\",'Master List'!R2:R400, \"F- Temporary harm with hospitalization ex. PU with hosptialization for tx\",  'Master List'!D2:D400,  \"dec\")","v":0},0,0,0,0]
[null,null,"G- May have contributed to permanent harm ex. Bone fracture, surgical intervention",{"$f":"COUNTIFS('Master List'!L2:L400, \"FALL\",'Master List'!F2:F400, \"2017\",'Master List'!R2:R400, \"G- May have contributed to permanent harm ex. Bone fracture, surgical intervention\")","v":0},{"$f":"COUNTIFS('Master List'!L2:L400, \"FALL\",'Master List'!F2:F400, \"2017\",'Master List'!R2:R400, \"G- May have contributed to permanent harm ex. Bone fracture, surgical intervention\",'Master List'!D2:D400, \"JAN\")","v":0},{"$f":"COUNTIFS('Master List'!L2:L400, \"FALL\",'Master List'!F2:F400, \"2017\",'Master List'!R2:R400, \"G- May have contributed to permanent harm ex. Bone fracture, surgical intervention\",  'Master List'!D2:D400, \"feb\")","v":0},{"$f":"COUNTIFS('Master List'!L2:L400, \"FALL\",'Master List'!F2:F400, \"2017\",'Master List'!R2:R400, \"G- May have contributed to permanent harm ex. Bone fracture, surgical intervention\",  'Master List'!D2:D400,  \"Mar\")","v":0},{"$f":"COUNTIFS('Master List'!L2:L400, \"FALL\",'Master List'!F2:F400, \"2017\",'Master List'!R2:R400, \"G- May have contributed to permanent harm ex. Bone fracture, surgical intervention\",  'Master List'!D2:D400,  \"apr\")","v":0},{"$f":"COUNTIFS('Master List'!L2:L400, \"FALL\",'Master List'!F2:F400, \"2017\",'Master List'!R2:R400, \"G- May have contributed to permanent harm ex. Bone fracture, surgical intervention\",  'Master List'!D2:D400,  \"may\")","v":0},{"$f":"COUNTIFS('Master List'!L2:L400, \"FALL\",'Master List'!F2:F400, \"2017\",'Master List'!R2:R400, \"G- May have contributed to permanent harm ex. Bone fracture, surgical intervention\",  'Master List'!D2:D400, \"jun\")","v":0},{"$f":"COUNTIFS('Master List'!L2:L400, \"FALL\",'Master List'!F2:F400, \"2017\",'Master List'!R2:R400, \"G- May have contributed to permanent harm ex. Bone fracture, surgical intervention\",  'Master List'!D2:D400,  \"jul\")","v":0},{"$f":"COUNTIFS('Master List'!L2:L400, \"FALL\",'Master List'!F2:F400, \"2017\",'Master List'!R2:R400, \"G- May have contributed to permanent harm ex. Bone fracture, surgical intervention\",  'Master List'!D2:D400, \"aug\")","v":0},{"$f":"COUNTIFS('Master List'!L2:L400, \"FALL\",'Master List'!F2:F400, \"2017\",'Master List'!R2:R400, \"G- May have contributed to permanent harm ex. Bone fracture, surgical intervention\",  'Master List'!D2:D400,  \"sep\")","v":0},{"$f":"COUNTIFS('Master List'!L2:L400, \"FALL\",'Master List'!F2:F400, \"2017\",'Master List'!R2:R400, \"G- May have contributed to permanent harm ex. Bone fracture, surgical intervention\",  'Master List'!D2:D400,  \"oct\")","v":0},{"$f":"COUNTIFS('Master List'!L2:L400, \"FALL\",'Master List'!F2:F400, \"2017\",'Master List'!R2:R400, \"G- May have contributed to permanent harm ex. Bone fracture, surgical intervention\",  'Master List'!D2:D400,  \"nov\")","v":0},{"$f":"COUNTIFS('Master List'!L2:L400, \"FALL\",'Master List'!F2:F400, \"2017\",'Master List'!R2:R400, \"G- May have contributed to permanent harm ex. Bone fracture, surgical intervention\",  'Master List'!D2:D400,  \"dec\")","v":0},0,0,0,0]
[null,null,"H- Near death circumstances ex. Elopement w/hypothermia, anaphalactic reaction",{"$f":"COUNTIFS('Master List'!L2:L400, \"FALL\",'Master List'!F2:F400, \"2017\",'Master List'!R2:R400, \"H- Near death circumstances ex. Elopement w/hypothermia, anaphalactic reaction\")","v":0},{"$f":"COUNTIFS('Master List'!L36:L434, \"FALL\",'Master List'!F36:F434, \"2017\",'Master List'!Q36:Q434, \"H- Near death circumstances ex. Elopement w/hypothermia, anaphalactic reaction\",'Master List'!D65:D463, \"JAN\")","v":0},{"$f":"COUNTIFS('Master List'!L36:L434, \"FALL\",'Master List'!F36:F434, \"2017\",'Master List'!Q36:Q434, \"H- Near death circumstances ex. Elopement w/hypothermia, anaphalactic reaction\",  'Master List'!D65:D463, \"feb\")","v":0},{"$f":"COUNTIFS('Master List'!L36:L434, \"FALL\",'Master List'!F36:F434, \"2017\",'Master List'!Q36:Q434, \"H- Near death circumstances ex. Elopement w/hypothermia, anaphalactic reaction\",  'Master List'!D65:D463,  \"Mar\")","v":0},{"$f":"COUNTIFS('Master List'!L36:L434, \"FALL\",'Master List'!F36:F434, \"2017\",'Master List'!Q36:Q434, \"H- Near death circumstances ex. Elopement w/hypothermia, anaphalactic reaction\",  'Master List'!D65:D463,  \"apr\")","v":0},{"$f":"COUNTIFS('Master List'!L36:L434, \"FALL\",'Master List'!F36:F434, \"2017\",'Master List'!Q36:Q434, \"H- Near death circumstances ex. Elopement w/hypothermia, anaphalactic reaction\",  'Master List'!D65:D463,  \"may\")","v":0},{"$f":"COUNTIFS('Master List'!L36:L434, \"FALL\",'Master List'!F36:F434, \"2017\",'Master List'!Q36:Q434, \"H- Near death circumstances ex. Elopement w/hypothermia, anaphalactic reaction\",  'Master List'!D65:D463, \"jun\")","v":0},{"$f":"COUNTIFS('Master List'!L36:L434, \"FALL\",'Master List'!F36:F434, \"2017\",'Master List'!Q36:Q434, \"H- Near death circumstances ex. Elopement w/hypothermia, anaphalactic reaction\",  'Master List'!D65:D463,  \"jul\")","v":0},{"$f":"COUNTIFS('Master List'!L36:L434, \"FALL\",'Master List'!F36:F434, \"2017\",'Master List'!Q36:Q434, \"H- Near death circumstances ex. Elopement w/hypothermia, anaphalactic reaction\",  'Master List'!D65:D463, \"aug\")","v":0},{"$f":"COUNTIFS('Master List'!L36:L434, \"FALL\",'Master List'!F36:F434, \"2017\",'Master List'!Q36:Q434, \"H- Near death circumstances ex. Elopement w/hypothermia, anaphalactic reaction\",  'Master List'!D65:D463,  \"sep\")","v":0},{"$f":"COUNTIFS('Master List'!L36:L434, \"FALL\",'Master List'!F36:F434, \"2017\",'Master List'!Q36:Q434, \"H- Near death circumstances ex. Elopement w/hypothermia, anaphalactic reaction\",  'Master List'!D65:D463,  \"oct\")","v":0},{"$f":"COUNTIFS('Master List'!L36:L434, \"FALL\",'Master List'!F36:F434, \"2017\",'Master List'!Q36:Q434, \"H- Near death circumstances ex. Elopement w/hypothermia, anaphalactic reaction\",  'Master List'!D65:D463,  \"nov\")","v":0},{"$f":"COUNTIFS('Master List'!L36:L434, \"FALL\",'Master List'!F36:F434, \"2017\",'Master List'!Q36:Q434, \"H- Near death circumstances ex. Elopement w/hypothermia, anaphalactic reaction\",  'Master List'!D65:D463,  \"dec\")","v":0},0,0,0,0]
[null,null,"I- Event contributed to or resulted in death",{"$f":"COUNTIFS('Master List'!L2:L400, \"FALL\",'Master List'!F2:F400, \"2017\",'Master List'!R2:R400, \"I- Event contributed to or resulted in death\")","v":0},{"$f":"COUNTIFS('Master List'!L37:L435, \"FALL\",'Master List'!F37:F435, \"2017\",'Master List'!Q37:Q435, \"I- Event contributed to or resulted in death\",'Master List'!D66:D464, \"JAN\")","v":0},{"$f":"COUNTIFS('Master List'!L37:L435, \"FALL\",'Master List'!F37:F435, \"2017\",'Master List'!Q37:Q435, \"I- Event contributed to or resulted in death\",  'Master List'!D66:D464, \"feb\")","v":0},{"$f":"COUNTIFS('Master List'!L37:L435, \"FALL\",'Master List'!F37:F435, \"2017\",'Master List'!Q37:Q435, \"I- Event contributed to or resulted in death\",  'Master List'!D66:D464,  \"Mar\")","v":0},{"$f":"COUNTIFS('Master List'!L37:L435, \"FALL\",'Master List'!F37:F435, \"2017\",'Master List'!Q37:Q435, \"I- Event contributed to or resulted in death\",  'Master List'!D66:D464,  \"apr\")","v":0},{"$f":"COUNTIFS('Master List'!L37:L435, \"FALL\",'Master List'!F37:F435, \"2017\",'Master List'!Q37:Q435, \"I- Event contributed to or resulted in death\",  'Master List'!D66:D464,  \"may\")","v":0},{"$f":"COUNTIFS('Master List'!L37:L435, \"FALL\",'Master List'!F37:F435, \"2017\",'Master List'!Q37:Q435, \"I- Event contributed to or resulted in death\",  'Master List'!D66:D464, \"jun\")","v":0},{"$f":"COUNTIFS('Master List'!L37:L435, \"FALL\",'Master List'!F37:F435, \"2017\",'Master List'!Q37:Q435, \"I- Event contributed to or resulted in death\",  'Master List'!D66:D464,  \"jul\")","v":0},{"$f":"COUNTIFS('Master List'!L37:L435, \"FALL\",'Master List'!F37:F435, \"2017\",'Master List'!Q37:Q435, \"I- Event contributed to or resulted in death\",  'Master List'!D66:D464, \"aug\")","v":0},{"$f":"COUNTIFS('Master List'!L37:L435, \"FALL\",'Master List'!F37:F435, \"2017\",'Master List'!Q37:Q435, \"I- Event contributed to or resulted in death\",  'Master List'!D66:D464,  \"sep\")","v":0},{"$f":"COUNTIFS('Master List'!L37:L435, \"FALL\",'Master List'!F37:F435, \"2017\",'Master List'!Q37:Q435, \"I- Event contributed to or resulted in death\",  'Master List'!D66:D464,  \"oct\")","v":0},{"$f":"COUNTIFS('Master List'!L37:L435, \"FALL\",'Master List'!F37:F435, \"2017\",'Master List'!Q37:Q435, \"I- Event contributed to or resulted in death\",  'Master List'!D66:D464,  \"nov\")","v":0},{"$f":"COUNTIFS('Master List'!L37:L435, \"FALL\",'Master List'!F37:F435, \"2017\",'Master List'!Q37:Q435, \"I- Event contributed to or resulted in death\",  'Master List'!D66:D464,  \"dec\")","v":0},0,0,0,0]
[null,null,"U- Cannot assess harm at this time",{"$f":"COUNTIFS('Master List'!L2:L400, \"FALL\",'Master List'!F2:F400, \"2017\",'Master List'!R2:R400, \"U- Cannot assess harm at this time\")","v":0},{"$f":"COUNTIFS('Master List'!L38:L436, \"FALL\",'Master List'!F38:F436, \"2017\",'Master List'!Q38:Q436, \"U- Cannot assess harm at this time\",'Master List'!D67:D465, \"JAN\")","v":0},{"$f":"COUNTIFS('Master List'!L38:L436, \"FALL\",'Master List'!F38:F436, \"2017\",'Master List'!Q38:Q436, \"U- Cannot assess harm at this time\",  'Master List'!D67:D465, \"feb\")","v":0},{"$f":"COUNTIFS('Master List'!L38:L436, \"FALL\",'Master List'!F38:F436, \"2017\",'Master List'!Q38:Q436, \"U- Cannot assess harm at this time\",  'Master List'!D67:D465,  \"Mar\")","v":0},{"$f":"COUNTIFS('Master List'!L38:L436, \"FALL\",'Master List'!F38:F436, \"2017\",'Master List'!Q38:Q436, \"U- Cannot assess harm at this time\",  'Master List'!D67:D465,  \"apr\")","v":0},{"$f":"COUNTIFS('Master List'!L38:L436, \"FALL\",'Master List'!F38:F436, \"2017\",'Master List'!Q38:Q436, \"U- Cannot assess harm at this time\",  'Master List'!D67:D465,  \"may\")","v":0},{"$f":"COUNTIFS('Master List'!L38:L436, \"FALL\",'Master List'!F38:F436, \"2017\",'Master List'!Q38:Q436, \"U- Cannot assess harm at this time\",  'Master List'!D67:D465, \"jun\")","v":0},{"$f":"COUNTIFS('Master List'!L38:L436, \"FALL\",'Master List'!F38:F436, \"2017\",'Master List'!Q38:Q436, \"U- Cannot assess harm at this time\",  'Master List'!D67:D465,  \"jul\")","v":0},{"$f":"COUNTIFS('Master List'!L38:L436, \"FALL\",'Master List'!F38:F436, \"2017\",'Master List'!Q38:Q436, \"U- Cannot assess harm at this time\",  'Master List'!D67:D465, \"aug\")","v":0},{"$f":"COUNTIFS('Master List'!L38:L436, \"FALL\",'Master List'!F38:F436, \"2017\",'Master List'!Q38:Q436, \"U- Cannot assess harm at this time\",  'Master List'!D67:D465,  \"sep\")","v":0},{"$f":"COUNTIFS('Master List'!L38:L436, \"FALL\",'Master List'!F38:F436, \"2017\",'Master List'!Q38:Q436, \"U- Cannot assess harm at this time\",  'Master List'!D67:D465,  \"oct\")","v":0},{"$f":"COUNTIFS('Master List'!L38:L436, \"FALL\",'Master List'!F38:F436, \"2017\",'Master List'!Q38:Q436, \"U- Cannot assess harm at this time\",  'Master List'!D67:D465,  \"nov\")","v":0},{"$f":"COUNTIFS('Master List'!L38:L436, \"FALL\",'Master List'!F38:F436, \"2017\",'Master List'!Q38:Q436, \"U- Cannot assess harm at this time\",  'Master List'!D67:D465,  \"dec\")","v":0},0,0,0,0]

{"sheet":"2018 Graphs","index":3,"n_rows":228,"n_cols":22,"rows_kept":228,"cut":false,"hidden":false,"merged":[]}
[]
[]
[null,null,"Incidents By Count",null,null,"2018 Full Year","2018 Jan","Feb","March","Apr","May","June","July","Aug","Sept","Oct","Nov","Dec","q1","q2","q3","q4"]
[]
[null,null,"Fall",null,null,{"$f":"COUNTIFS('Master List'!L2:L600, \"FALL\",'Master List'!F2:F600, \"2018\")","v":0},{"$f":"COUNTIFS('Master List'!L2:L600, \"FALL\", 'Master List'!D2:D600, \"JAN\")","v":11},{"$f":"COUNTIFS('Master List'!L2:L600, \"FALL\", 'Master List'!D2:D600, \"Feb\", 'Master List'!F2:F600, \"2018\")","v":0},{"$f":"COUNTIFS('Master List'!L2:L600, \"FALL\", 'Master List'!D2:D600, \"Mar\", 'Master List'!F2:F600, \"2018\")","v":0},{"$f":"COUNTIFS('Master List'!L2:L600, \"FALL\", 'Master List'!D2:D600, \"apr\", 'Master List'!F2:F600, \"2018\")","v":0},{"$f":"COUNTIFS('Master List'!L2:L600, \"FALL\", 'Master List'!D2:D600, \"may\", 'Master List'!F2:F600, \"2018\")","v":0},{"$f":"COUNTIFS('Master List'!L2:L600,\"FALL\",'Master List'!D2:D600,\"JUN\", 'Master List'!F2:F600, \"2018\")","v":0},{"$f":"COUNTIFS('Master List'!L2:L600, \"FALL\", 'Master List'!D2:D600, \"JUL\", 'Master List'!F2:F600, \"2018\")","v":0},{"$f":"COUNTIFS('Master List'!L2:L600, \"FALL\", 'Master List'!D2:D600, \"Aug\", 'Master List'!F2:F600, \"2018\")","v":0},{"$f":"COUNTIFS('Master List'!L2:L600, \"FALL\", 'Master List'!D2:D600, \"sep\", 'Master List'!F2:F600, \"2018\")","v":0},{"$f":"COUNTIFS('Master List'!L2:L600, \"FALL\", 'Master List'!D2:D600, \"oct\", 'Master List'!F2:F600, \"2018\")","v":0},{"$f":"COUNTIFS('Master List'!L2:L600, \"FALL\", 'Master List'!D2:D600, \"nov\", 'Master List'!F2:F600, \"2018\")","v":0},{"$f":"COUNTIFS('Master List'!L2:L600, \"FALL\", 'Master List'!D2:D600, \"Dec\", 'Master List'!F2:F600, \"2018\")","v":0},{"$f":"SUM(G5:I5)","v":11},{"$f":"SUM(J5:L5)","v":0},{"$f":"SUM(M5:O5)","v":0},{"$f":"SUM(P5:R5)","v":0}]
[null,null,"Skin",null,null,{"$f":"COUNTIFS('Master List'!L2:L600, \"skin\",'Master List'!L2:L600, \"2018\")","v":0},{"$f":"COUNTIFS('Master List'!L2:L600, \"skin\", 'Master List'!D2:D600, \"JAN\", 'Master List'!F2:F600, \"2018\")","v":0},{"$f":"COUNTIFS('Master List'!L2:L600, \"skin\", 'Master List'!D2:D600, \"feb\", 'Master List'!F2:F600, \"2018\")","v":0},{"$f":"COUNTIFS('Master List'!L2:L600, \"skin\", 'Master List'!D2:D600, \"mar\", 'Master List'!F2:F600, \"2018\")","v":0},{"$f":"COUNTIFS('Master List'!L2:L600, \"skin\", 'Master List'!D2:D600, \"apr\", 'Master List'!F2:F600, \"2018\")","v":0},{"$f":"COUNTIFS('Master List'!L2:L600, \"skin\", 'Master List'!D2:D600, \"May\", 'Master List'!F2:F600, \"2018\")","v":0},{"$f":"COUNTIFS('Master List'!L2:L600, \"skin\", 'Master List'!D2:D600, \"jun\", 'Master List'!F2:F600, \"2018\")","v":0},{"$f":"COUNTIFS('Master List'!L2:L600, \"skin\", 'Master List'!D2:D600, \"Jul\", 'Master List'!F2:F600, \"2018\")","v":0},{"$f":"COUNTIFS('Master List'!L2:L600, \"skin\", 'Master List'!D2:D600, \"aug\", 'Master List'!F2:F600, \"2018\")","v":0},{"$f":"COUNTIFS('Master List'!L2:L600, \"skin\", 'Master List'!D2:D600, \"sep\", 'Master List'!F2:F600, \"2018\")","v":0},{"$f":"COUNTIFS('Master List'!L2:L600, \"skin\", 'Master List'!D2:D600, \"oct\", 'Master List'!F2:F600, \"2018\")","v":0},{"$f":"COUNTIFS('Master List'!L2:L600, \"skin\", 'Master List'!D2:D600, \"nov\", 'Master List'!F2:F600, \"2018\")","v":0},{"$f":"COUNTIFS('Master List'!L2:L600, \"skin\", 'Master List'!D2:D600, \"dec\", 'Master List'!F2:F600, \"2018\")","v":0},0,{"$f":"SUM(J6:L6)","v":0},{"$f":"SUM(M6:O6)","v":0},{"$f":"SUM(P6:R6)","v":0}]
[null,null,"PU-Facility Acquired",null,null,{"$f":"COUNTIFS('Master List'!L2:L600, \"PU-Facility Acquired\", 'Master List'!F2:F600, \"2018\")","v":0},{"$f":"COUNTIFS('Master List'!L2:L600, \"PU-Facility Acquired\", 'Master List'!D2:D600, \"JAN\", 'Master List'!F2:F600, \"2018\")","v":0},{"$f":"COUNTIFS('Master List'!L2:L600, \"PU-Facility Acquired\", 'Master List'!D2:D600, \"feb\", 'Master List'!F2:F600, \"2018\")","v":0},{"$f":"COUNTIFS('Master List'!L2:L600, \"PU-Facility Acquired\", 'Master List'!D2:D600, \"mar\", 'Master List'!F2:F600, \"2018\")","v":0},{"$f":"COUNTIFS('Master List'!L2:L600, \"PU-Facility Acquired\", 'Master List'!D2:D600, \"apr\", 'Master List'!F2:F600, \"2018\")","v":0},{"$f":"COUNTIFS('Master List'!L2:L600, \"PU-Facility Acquired\", 'Master List'!D2:D600, \"May\", 'Master List'!F2:F600, \"2018\")","v":0},{"$f":"COUNTIFS('Master List'!L2:L600, \"PU-Facility Acquired\", 'Master List'!D2:D600, \"jun\", 'Master List'!F2:F600, \"2018\")","v":0},{"$f":"COUNTIFS('Master List'!L2:L600, \"PU-Facility Acquired\", 'Master List'!D2:D600, \"Jul\", 'Master List'!F2:F600, \"2018\")","v":0},{"$f":"COUNTIFS('Master List'!L2:L600, \"PU-Facility Acquired\", 'Master List'!D2:D600, \"aug\", 'Master List'!F2:F600, \"2018\")","v":0},{"$f":"COUNTIFS('Master List'!L2:L600, \"PU-Facility Acquired\", 'Master List'!D2:D600, \"sep\", 'Master List'!F2:F600, \"2018\")","v":0},{"$f":"COUNTIFS('Master List'!L2:L600, \"PU-Facility Acquired\", 'Master List'!D2:D600, \"oct\", 'Master List'!F2:F600, \"2018\")","v":0},{"$f":"COUNTIFS('Master List'!L2:L600, \"PU-Facility Acquired\", 'Master List'!D2:D600, \"nov\", 'Master List'!F2:F600, \"2018\")","v":0},{"$f":"COUNTIFS('Master List'!L2:L600, \"PU-Facility Acquired\", 'Master List'!D2:D600, \"dec\")","v":0},0,0,0,0]
[null,null,"PU-Present at Admission",null,null,{"$f":"COUNTIFS('Master List'!L2:L600, \"PU-Present at Admission\", 'Master List'!F2:F600, \"2018\")","v":0},{"$f":"COUNTIFS('Master List'!L2:L600, \"PU-Present at Admission\", 'Master List'!D2:D600, \"JAN\", 'Master List'!F2:F600, \"2018\")","v":0},{"$f":"COUNTIFS('Master List'!L2:L600,  \"PU-Present at Admission\", 'Master List'!D2:D600, \"feb\", 'Master List'!F2:F600, \"2018\")","v":0},{"$f":"COUNTIFS('Master List'!L2:L600,  \"PU-Present at Admission\", 'Master List'!D2:D600, \"mar\", 'Master List'!F2:F600, \"2018\")","v":0},{"$f":"COUNTIFS('Master List'!L2:L600,  \"PU-Present at Admission\", 'Master List'!D2:D600, \"apr\", 'Master List'!F2:F600, \"2018\")","v":0},{"$f":"COUNTIFS('Master List'!L2:L600,  \"PU-Present at Admission\", 'Master List'!D2:D600, \"May\", 'Master List'!F2:F600, \"2018\")","v":0},{"$f":"COUNTIFS('Master List'!L2:L600,  \"PU-Present at Admission\", 'Master List'!D2:D600, \"jun\", 'Master List'!F2:F600, \"2018\")","v":0},{"$f":"COUNTIFS('Master List'!L2:L600,  \"PU-Present at Admission\", 'Master List'!D2:D600, \"Jul\", 'Master List'!F2:F600, \"2018\")","v":0},{"$f":"COUNTIFS('Master List'!L2:L600,  \"PU-Present at Admission\", 'Master List'!D2:D600, \"aug\", 'Master List'!F2:F600, \"2018\")","v":0},{"$f":"COUNTIFS('Master List'!L2:L600,  \"PU-Present at Admission\", 'Master List'!D2:D600, \"sep\", 'Master List'!F2:F600, \"2018\")","v":0},{"$f":"COUNTIFS('Master List'!L2:L600,  \"PU-Present at Admission\", 'Master List'!D2:D600, \"oct\", 'Master List'!F2:F600, \"2018\")","v":0},{"$f":"COUNTIFS('Master List'!L2:L600,  \"PU-Present at Admission\", 'Master List'!D2:D600, \"nov\", 'Master List'!F2:F600, \"2018\")","v":0},{"$f":"COUNTIFS('Master List'!L2:L600,  \"PU-Present at Admission\", 'Master List'!D2:D600, \"dec\", 'Master List'!F2:F600, \"2018\")","v":0},0,0,0,0]
[null,null,"Med Error",null,null,{"$f":"COUNTIFS('Master List'!L2:L600, \"Med Error\", 'Master List'!F2:F600, \"2018\")","v":0},{"$f":"COUNTIFS('Master List'!L2:L600, \"Med Error\", 'Master List'!D2:D600, \"JAN\", 'Master List'!F2:F600, \"2018\")","v":0},{"$f":"COUNTIFS('Master List'!L2:L600, \"Med Error\", 'Master List'!D2:D600, \"feb\", 'Master List'!F2:F600, \"2018\")","v":0},{"$f":"COUNTIFS('Master List'!L2:L600, \"Med Error\", 'Master List'!D2:D600, \"mar\", 'Master List'!F2:F600, \"2018\")","v":0},{"$f":"COUNTIFS('Master List'!L2:L600, \"Med Error\", 'Master List'!D2:D600, \"apr\", 'Master List'!F2:F600, \"2018\")","v":0},{"$f":"COUNTIFS('Master List'!L2:L600, \"Med Error\", 'Master List'!D2:D600, \"May\", 'Master List'!F2:F600, \"2018\")","v":0},{"$f":"COUNTIFS('Master List'!L2:L600, \"Med Error\", 'Master List'!D2:D600, \"jun\", 'Master List'!F2:F600, \"2018\")","v":0},{"$f":"COUNTIFS('Master List'!L2:L600, \"Med Error\", 'Master List'!D2:D600, \"Jul\", 'Master List'!F2:F600, \"2018\")","v":0},{"$f":"COUNTIFS('Master List'!L2:L600, \"Med Error\", 'Master List'!D2:D600, \"aug\", 'Master List'!F2:F600, \"2018\")","v":0},{"$f":"COUNTIFS('Master List'!L2:L600, \"Med Error\", 'Master List'!D2:D600, \"sep\", 'Master List'!F2:F600, \"2018\")","v":0},{"$f":"COUNTIFS('Master List'!L2:L600, \"Med Error\", 'Master List'!D2:D600, \"oct\", 'Master List'!F2:F600, \"2018\")","v":0},{"$f":"COUNTIFS('Master List'!L2:L600, \"Med Error\", 'Master List'!D2:D600, \"nov\", 'Master List'!F2:F600, \"2018\")","v":0},{"$f":"COUNTIFS('Master List'!L2:L600, \"Med Error\", 'Master List'!D2:D600, \"dec\", 'Master List'!F2:F600, \"2018\")","v":0},0,0,0,0]
[null,null,"Elopement",null,null,{"$f":"COUNTIFS('Master List'!L2:L600, \"Elopement\", 'Master List'!F2:F600, \"2018\")","v":0},{"$f":"COUNTIFS('Master List'!L2:L600, \"Elopement\", 'Master List'!D2:D600, \"JAN\", 'Master List'!F2:F600, \"2018\")","v":0},{"$f":"COUNTIFS('Master List'!L2:L600, \"Elopement\", 'Master List'!D2:D600, \"feb\", 'Master List'!F2:F600, \"2018\")","v":0},{"$f":"COUNTIFS('Master List'!L2:L600, \"Elopement\", 'Master List'!D2:D600, \"mar\", 'Master List'!F2:F600, \"2018\")","v":0},{"$f":"COUNTIFS('Master List'!L2:L600, \"Elopement\", 'Master List'!D2:D600, \"apr\", 'Master List'!F2:F600, \"2018\")","v":0},{"$f":"COUNTIFS('Master List'!L2:L600, \"Elopement\", 'Master List'!D2:D600, \"May\", 'Master List'!F2:F600, \"2018\")","v":0},{"$f":"COUNTIFS('Master List'!L2:L600, \"Elopement\", 'Master List'!D2:D600, \"jun\", 'Master List'!F2:F600, \"2018\")","v":0},{"$f":"COUNTIFS('Master List'!L2:L600, \"Elopement\", 'Master List'!D2:D600, \"Jul\", 'Master List'!F2:F600, \"2018\")","v":0},{"$f":"COUNTIFS('Master List'!L2:L600, \"Elopement\", 'Master List'!D2:D600, \"aug\", 'Master List'!F2:F600, \"2018\")","v":0},{"$f":"COUNTIFS('Master List'!L2:L600, \"Elopement\", 'Master List'!D2:D600, \"sep\", 'Master List'!F2:F600, \"2018\")","v":0},{"$f":"COUNTIFS('Master List'!L2:L600, \"Elopement\", 'Master List'!D2:D600, \"oct\", 'Master List'!F2:F600, \"2018\")","v":0},{"$f":"COUNTIFS('Master List'!L2:L600, \"Elopement\", 'Master List'!D2:D600, \"nov\", 'Master List'!F2:F600, \"2018\")","v":0},{"$f":"COUNTIFS('Master List'!L2:L600, \"Elopement\", 'Master List'!D2:D600, \"dec\", 'Master List'!F2:F600, \"2018\")","v":0},0,0,0,0]
[null,null,"Missing Item",null,null,{"$f":"COUNTIFS('Master List'!L2:L600, \"Missing Item\", 'Master List'!F2:F600, \"2018\")","v":0},{"$f":"COUNTIFS('Master List'!L2:L600, \"Missing Item\", 'Master List'!D2:D600, \"JAN\", 'Master List'!F2:F600, \"2018\")","v":0},{"$f":"COUNTIFS('Master List'!L2:L600, \"Missing Item\", 'Master List'!D2:D600, \"feb\", 'Master List'!F2:F600, \"2018\")","v":0},{"$f":"COUNTIFS('Master List'!L2:L600, \"Missing Item\", 'Master List'!D2:D600, \"mar\", 'Master List'!F2:F600, \"2018\")","v":0},{"$f":"COUNTIFS('Master List'!L2:L600, \"Missing Item\", 'Master List'!D2:D600, \"apr\", 'Master List'!F2:F600, \"2018\")","v":0},{"$f":"COUNTIFS('Master List'!L2:L600, \"Missing Item\", 'Master List'!D2:D600, \"May\", 'Master List'!F2:F600, \"2018\")","v":0},{"$f":"COUNTIFS('Master List'!L2:L600, \"Missing Item\", 'Master List'!D2:D600, \"jun\", 'Master List'!F2:F600, \"2018\")","v":0},{"$f":"COUNTIFS('Master List'!L2:L600, \"Missing Item\", 'Master List'!D2:D600, \"Jul\", 'Master List'!F2:F600, \"2018\")","v":0},{"$f":"COUNTIFS('Master List'!L2:L600, \"Missing Item\", 'Master List'!D2:D600, \"aug\", 'Master List'!F2:F600, \"2018\")","v":0},{"$f":"COUNTIFS('Master List'!L2:L600, \"Missing Item\", 'Master List'!D2:D600, \"sep\", 'Master List'!F2:F600, \"2018\")","v":0},{"$f":"COUNTIFS('Master List'!L2:L600, \"Missing Item\", 'Master List'!D2:D600, \"oct\", 'Master List'!F2:F600, \"2018\")","v":0},{"$f":"COUNTIFS('Master List'!L2:L600, \"Missing Item\", 'Master List'!D2:D600, \"nov\", 'Master List'!F2:F600, \"2018\")","v":0},{"$f":"COUNTIFS('Master List'!L2:L600, \"Missing Item\", 'Master List'!D2:D600, \"dec\", 'Master List'!F2:F600, \"2018\")","v":0},0,0,0,0]
[null,null,"Other",null,null,{"$f":"COUNTIFS('Master List'!L2:L600, \"Other\", 'Master List'!F2:F600, \"2018\")","v":0},{"$f":"COUNTIFS('Master List'!L2:L600, \"Other\", 'Master List'!D2:D600, \"JAN\", 'Master List'!F2:F600, \"2018\")","v":0},{"$f":"COUNTIFS('Master List'!L2:L600, \"Other\", 'Master List'!D2:D600, \"feb\", 'Master List'!F2:F600, \"2018\")","v":0},{"$f":"COUNTIFS('Master List'!L2:L600, \"Other\", 'Master List'!D2:D600, \"mar\", 'Master List'!F2:F600, \"2018\")","v":0},{"$f":"COUNTIFS('Master List'!L2:L600, \"Other\", 'Master List'!D2:D600, \"apr\", 'Master List'!F2:F600, \"2018\")","v":0},{"$f":"COUNTIFS('Master List'!L2:L600, \"Other\", 'Master List'!D2:D600, \"May\", 'Master List'!F2:F600, \"2018\")","v":0},{"$f":"COUNTIFS('Master List'!L2:L600, \"Other\", 'Master List'!D2:D600, \"jun\", 'Master List'!F2:F600, \"2018\")","v":0},{"$f":"COUNTIFS('Master List'!L2:L600, \"Other\", 'Master List'!D2:D600, \"Jul\", 'Master List'!F2:F600, \"2018\")","v":0},{"$f":"COUNTIFS('Master List'!L2:L600, \"Other\", 'Master List'!D2:D600, \"aug\", 'Master List'!F2:F600, \"2018\")","v":0},{"$f":"COUNTIFS('Master List'!L2:L600, \"Other\", 'Master List'!D2:D600, \"sep\", 'Master List'!F2:F600, \"2018\")","v":0},{"$f":"COUNTIFS('Master List'!L2:L600, \"Other\", 'Master List'!D2:D600, \"oct\", 'Master List'!F2:F600, \"2018\")","v":0},{"$f":"COUNTIFS('Master List'!L2:L600, \"Other\", 'Master List'!D2:D600, \"nov\", 'Master List'!F2:F600, \"2018\")","v":0},{"$f":"COUNTIFS('Master List'!L2:L600, \"Other\", 'Master List'!D2:D600, \"dec\", 'Master List'!F2:F600, \"2018\")","v":0},0,0,0,0]
[]
[]
[]
[]
[]
[]
[]
[]
[]
[]
[]
[]
[]
[]
[]
[]
[]
[]
[]
[]
[]
[]
[]
[]
[]
[]
[]
[]
[]
[]
[]
[]
[]
[]
[]
[]
[]
[]
[]
[]
[]
[]
[null,null,"Falls Per Household - 2018"]
[null,null,null,"Total 2018","jan ","feb","mar","apr","may","jun","jul","aug","sept","oct","nov","dec ","q1","q2","q3","q4"]
[null,null,"Arbor",{"$f":"COUNTIFS('Master List'!L2:L600, \"FALL\",'Master List'!F2:F600, \"2018\",'Master List'!J2:J600, \"Arbor\")","v":0},{"$f":"COUNTIFS('Master List'!D2:D600, \"JAN\",'Master List'!L2:L600, \"FALL\",'Master List'!F2:F600, \"2018\",'Master List'!J2:J600, \"Arbor\")","v":0},{"$f":"COUNTIFS('Master List'!L2:L600, \"FALL\",'Master List'!F2:F600, \"2018\",'Master List'!J2:J600, \"Arbor\", 'Master List'!D2:D600, \"Feb\")","v":0},{"$f":"COUNTIFS('Master List'!L2:L600, \"FALL\",'Master List'!F2:F600, \"2018\",'Master List'!J2:J600, \"Arbor\", 'Master List'!D2:D600, \"Mar\")","v":0},{"$f":"COUNTIFS('Master List'!L2:L600, \"FALL\",'Master List'!F2:F600, \"2018\",'Master List'!J2:J600, \"Arbor\", 'Master List'!D2:D600, \"apr\")","v":0},{"$f":"COUNTIFS('Master List'!L2:L600, \"FALL\",'Master List'!F2:F600, \"2018\",'Master List'!J2:J600, \"Arbor\", 'Master List'!D2:D600, \"may\")","v":0},{"$f":"COUNTIFS('Master List'!L2:L600, \"FALL\",'Master List'!F2:F600, \"2018\",'Master List'!J2:J600, \"Arbor\", 'Master List'!D2:D600, \"jun\")","v":0},{"$f":"COUNTIFS('Master List'!L2:L600, \"FALL\",'Master List'!F2:F600, \"2018\",'Master List'!J2:J600, \"Arbor\", 'Master List'!D2:D600, \"jul\")","v":0},{"$f":"COUNTIFS('Master List'!L2:L600, \"FALL\",'Master List'!F2:F600, \"2018\",'Master List'!J2:J600, \"Arbor\", 'Master List'!D2:D600, \"aug\")","v":0},{"$f":"COUNTIFS('Master List'!L2:L600, \"FALL\",'Master List'!F2:F600, \"2018\",'Master List'!J2:J600, \"Arbor\", 'Master List'!D2:D600, \"sep\")","v":0},{"$f":"COUNTIFS('Master List'!L2:L600, \"FALL\",'Master List'!F2:F600, \"2018\",'Master List'!J2:J600, \"Arbor\", 'Master List'!D2:D600, \"oct\")","v":0},{"$f":"COUNTIFS('Master List'!L2:L600, \"FALL\",'Master List'!F2:F600, \"2018\",'Master List'!J2:J600, \"Arbor\", 'Master List'!D2:D600, \"nov\")","v":0},{"$f":"COUNTIFS('Master List'!L2:L600, \"FALL\",'Master List'!F2:F600, \"2018\",'Master List'!J2:J600, \"Arbor\", 'Master List'!D2:D600, \"dec\")","v":0},{"$f":"SUM(E57:G57)","v":0},{"$f":"SUM(H57:J57)","v":0},{"$f":"SUM(K57:M57)","v":0},{"$f":"SUM(N57:P57)","v":0}]
[null,null,"Butterfly",{"$f":"COUNTIFS('Master List'!L2:L600, \"FALL\",'Master List'!F2:F600, \"2018\",'Master List'!J2:J600, \"Butterfly\")","v":0},{"$f":"COUNTIFS('Master List'!L2:L600, \"FALL\",'Master List'!F2:F600, \"2018\",'Master List'!J2:J600, \"Butterfly\", 'Master List'!D2:D600, \"JAN\")","v":0},{"$f":"COUNTIFS('Master List'!L2:L600, \"FALL\",'Master List'!F2:F600, \"2018\",'Master List'!J2:J600, \"Butterfly\", 'Master List'!D2:D600, \"Feb\")","v":0},{"$f":"COUNTIFS('Master List'!L2:L600, \"FALL\",'Master List'!F2:F600, \"2018\",'Master List'!J2:J600, \"Butterfly\", 'Master List'!D2:D600, \"Mar\")","v":0},{"$f":"COUNTIFS('Master List'!L2:L600, \"FALL\",'Master List'!F2:F600, \"2018\",'Master List'!J2:J600, \"Butterfly\", 'Master List'!D2:D600, \"apr\")","v":0},{"$f":"COUNTIFS('Master List'!L2:L600, \"FALL\",'Master List'!F2:F600, \"2018\",'Master List'!J2:J600, \"Butterfly\", 'Master List'!D2:D600, \"may\")","v":0},{"$f":"COUNTIFS('Master List'!L2:L600, \"FALL\",'Master List'!F2:F600, \"2018\",'Master List'!J2:J600, \"Butterfly\", 'Master List'!D2:D600, \"jun\")","v":0},{"$f":"COUNTIFS('Master List'!L2:L600, \"FALL\",'Master List'!F2:F600, \"2018\",'Master List'!J2:J600, \"Butterfly\", 'Master List'!D2:D600, \"jul\")","v":0},{"$f":"COUNTIFS('Master List'!L2:L600, \"FALL\",'Master List'!F2:F600, \"2018\",'Master List'!J2:J600, \"Butterfly\", 'Master List'!D2:D600, \"aug\")","v":0},{"$f":"COUNTIFS('Master List'!L2:L600, \"FALL\",'Master List'!F2:F600, \"2018\",'Master List'!J2:J600, \"Butterfly\", 'Master List'!D2:D600, \"sep\")","v":0},{"$f":"COUNTIFS('Master List'!L2:L600, \"FALL\",'Master List'!F2:F600, \"2018\",'Master List'!J2:J600, \"Butterfly\", 'Master List'!D2:D600, \"oct\")","v":0},{"$f":"COUNTIFS('Master List'!L2:L600, \"FALL\",'Master List'!F2:F600, \"2018\",'Master List'!J2:J600, \"Butterfly\", 'Master List'!D2:D600, \"nov\")","v":0},{"$f":"COUNTIFS('Master List'!L2:L600, \"FALL\",'Master List'!F2:F600, \"2018\",'Master List'!J2:J600, \"Butterfly\", 'Master List'!D2:D600, \"dec\")","v":0},0,{"$f":"SUM(H58:K58)","v":0},0,0]
[null,null,"Country",{"$f":"COUNTIFS('Master List'!L2:L600, \"FALL\",'Master List'!F2:F600, \"2018\",'Master List'!J2:J600, \"Country\")","v":0},{"$f":"COUNTIFS('Master List'!L2:L600, \"FALL\",'Master List'!F2:F600, \"2018\",'Master List'!J2:J600, \"Country\", 'Master List'!D2:D600, \"JAN\")","v":0},{"$f":"COUNTIFS('Master List'!L2:L600, \"FALL\",'Master List'!F2:F600, \"2018\",'Master List'!J2:J600, \"Country\", 'Master List'!D2:D600, \"Feb\")","v":0},{"$f":"COUNTIFS('Master List'!L2:L600, \"FALL\",'Master List'!F2:F600, \"2018\",'Master List'!J2:J600, \"Country\", 'Master List'!D2:D600, \"Mar\")","v":0},{"$f":"COUNTIFS('Master List'!L2:L600, \"FALL\",'Master List'!F2:F600, \"2018\",'Master List'!J2:J600, \"Country\", 'Master List'!D2:D600, \"apr\")","v":0},{"$f":"COUNTIFS('Master List'!L2:L600, \"FALL\",'Master List'!F2:F600, \"2018\",'Master List'!J2:J600, \"Country\", 'Master List'!D2:D600, \"may\")","v":0},{"$f":"COUNTIFS('Master List'!L2:L600, \"FALL\",'Master List'!F2:F600, \"2018\",'Master List'!J2:J600, \"Country\", 'Master List'!D2:D600, \"jun\")","v":0},{"$f":"COUNTIFS('Master List'!L2:L600, \"FALL\",'Master List'!F2:F600, \"2018\",'Master List'!J2:J600, \"Country\", 'Master List'!D2:D600, \"jul\")","v":0},{"$f":"COUNTIFS('Master List'!L2:L600, \"FALL\",'Master List'!F2:F600, \"2018\",'Master List'!J2:J600, \"Country\", 'Master List'!D2:D600, \"aug\")","v":0},{"$f":"COUNTIFS('Master List'!L2:L600, \"FALL\",'Master List'!F2:F600, \"2018\",'Master List'!J2:J600, \"Country\", 'Master List'!D2:D600, \"sep\")","v":0},{"$f":"COUNTIFS('Master List'!L2:L600, \"FALL\",'Master List'!F2:F600, \"2018\",'Master List'!J2:J600, \"Country\", 'Master List'!D2:D600, \"oct\")","v":0},{"$f":"COUNTIFS('Master List'!L2:L600, \"FALL\",'Master List'!F2:F600, \"2018\",'Master List'!J2:J600, \"Country\", 'Master List'!D2:D600, \"nov\")","v":0},{"$f":"COUNTIFS('Master List'!L2:L600, \"FALL\",'Master List'!F2:F600, \"2018\",'Master List'!J2:J600, \"Country\", 'Master List'!D2:D600, \"dec\")","v":0},0,{"$f":"SUM(H59:J59)","v":0},0,0]
[null,null,"PH 400",{"$f":"COUNTIFS('Master List'!L2:L600, \"FALL\",'Master List'!F2:F600, \"2018\",'Master List'!J2:J600, \"PH 400\")","v":0},{"$f":"COUNTIFS('Master List'!L2:L600, \"FALL\",'Master List'!F2:F600, \"2018\",'Master List'!J2:J600, \"PH 400\", 'Master List'!D2:D600, \"JAN\")","v":0},{"$f":"COUNTIFS('Master List'!L2:L600, \"FALL\",'Master List'!F2:F600, \"2018\",'Master List'!J2:J600, \"PH 400\", 'Master List'!D2:D600, \"Feb\")","v":0},{"$f":"COUNTIFS('Master List'!L2:L600, \"FALL\",'Master List'!F2:F600, \"2018\",'Master List'!J2:J600, \"PH 400\", 'Master List'!D2:D600, \"Mar\")","v":0},{"$f":"COUNTIFS('Master List'!L2:L600, \"FALL\",'Master List'!F2:F600, \"2018\",'Master List'!J2:J600, \"PH 400\", 'Master List'!D2:D600, \"apr\")","v":0},{"$f":"COUNTIFS('Master List'!L2:L600, \"FALL\",'Master List'!F2:F600, \"2018\",'Master List'!J2:J600, \"PH 400\", 'Master List'!D2:D600, \"may\")","v":0},{"$f":"COUNTIFS('Master List'!L2:L600, \"FALL\",'Master List'!F2:F600, \"2018\",'Master List'!J2:J600, \"PH 400\", 'Master List'!D2:D600, \"jun\")","v":0},{"$f":"COUNTIFS('Master List'!L2:L600, \"FALL\",'Master List'!F2:F600, \"2018\",'Master List'!J2:J600, \"PH 400\", 'Master List'!D2:D600, \"jul\")","v":0},{"$f":"COUNTIFS('Master List'!L2:L600, \"FALL\",'Master List'!F2:F600, \"2018\",'Master List'!J2:J600, \"PH 400\", 'Master List'!D2:D600, \"aug\")","v":0},{"$f":"COUNTIFS('Master List'!L2:L600, \"FALL\",'Master List'!F2:F600, \"2018\",'Master List'!J2:J600, \"PH 400\", 'Master List'!D2:D600, \"sep\")","v":0},{"$f":"COUNTIFS('Master List'!L2:L600, \"FALL\",'Master List'!F2:F600, \"2018\",'Master List'!J2:J600, \"PH 400\", 'Master List'!D2:D600, \"oct\")","v":0},{"$f":"COUNTIFS('Master List'!L2:L600, \"FALL\",'Master List'!F2:F600, \"2018\",'Master List'!J2:J600, \"PH 400\", 'Master List'!D2:D600, \"nov\")","v":0},{"$f":"COUNTIFS('Master List'!L2:L600, \"FALL\",'Master List'!F2:F600, \"2018\",'Master List'!J2:J600, \"PH 400\", 'Master List'!D2:D600, \"dec\")","v":0},0,{"$f":"SUM(H60:J60)","v":0},0,0]
[null,null,"PH 500",{"$f":"COUNTIFS('Master List'!L2:L600, \"FALL\",'Master List'!F2:F600, \"2018\",'Master List'!J2:J600, \"PH 500\")","v":0},{"$f":"COUNTIFS('Master List'!L2:L600, \"FALL\",'Master List'!F2:F600, \"2018\",'Master List'!J2:J600, \"PH 500\", 'Master List'!D2:D600, \"JAN\")","v":0},{"$f":"COUNTIFS('Master List'!L2:L600, \"FALL\",'Master List'!F2:F600, \"2018\",'Master List'!J2:J600, \"PH 500\", 'Master List'!D2:D600, \"Feb\")","v":0},{"$f":"COUNTIFS('Master List'!L2:L600, \"FALL\",'Master List'!F2:F600, \"2018\",'Master List'!J2:J600, \"PH 500\", 'Master List'!D2:D600, \"Mar\")","v":0},{"$f":"COUNTIFS('Master List'!L2:L600, \"FALL\",'Master List'!F2:F600, \"2018\",'Master List'!J2:J600, \"PH 500\", 'Master List'!D2:D600, \"apr\")","v":0},{"$f":"COUNTIFS('Master List'!L2:L600, \"FALL\",'Master List'!F2:F600, \"2018\",'Master List'!J2:J600, \"PH 500\", 'Master List'!D2:D600, \"may\")","v":0},{"$f":"COUNTIFS('Master List'!L2:L600, \"FALL\",'Master List'!F2:F600, \"2018\",'Master List'!J2:J600, \"PH 500\", 'Master List'!D2:D600, \"jun\")","v":0},{"$f":"COUNTIFS('Master List'!L2:L600, \"FALL\",'Master List'!F2:F600, \"2018\",'Master List'!J2:J600, \"PH 500\", 'Master List'!D2:D600, \"jul\")","v":0},{"$f":"COUNTIFS('Master List'!L2:L600, \"FALL\",'Master List'!F2:F600, \"2018\",'Master List'!J2:J600, \"PH 500\", 'Master List'!D2:D600, \"aug\")","v":0},{"$f":"COUNTIFS('Master List'!L2:L600, \"FALL\",'Master List'!F2:F600, \"2018\",'Master List'!J2:J600, \"PH 500\", 'Master List'!D2:D600, \"sep\")","v":0},{"$f":"COUNTIFS('Master List'!L2:L600, \"FALL\",'Master List'!F2:F600, \"2018\",'Master List'!J2:J600, \"PH 500\", 'Master List'!D2:D600, \"oct\")","v":0},{"$f":"COUNTIFS('Master List'!L2:L600, \"FALL\",'Master List'!F2:F600, \"2018\",'Master List'!J2:J600, \"PH 500\", 'Master List'!D2:D600, \"nov\")","v":0},{"$f":"COUNTIFS('Master List'!L2:L600, \"FALL\",'Master List'!F2:F600, \"2018\",'Master List'!J2:J600, \"PH 500\", 'Master List'!D2:D600, \"dec\")","v":0},0,{"$f":"SUM(H61:J61)","v":0},0,0]
[null,null,"AL",{"$f":"COUNTIFS('Master List'!L2:L600, \"FALL\",'Master List'!F2:F600, \"2018\",'Master List'!J2:J600, \"AL\")","v":0},{"$f":"COUNTIFS('Master List'!L2:L600, \"FALL\",'Master List'!F2:F600, \"2018\",'Master List'!J2:J600, \"AL\", 'Master List'!D2:D600, \"JAN\")","v":0},{"$f":"COUNTIFS('Master List'!L2:L600, \"FALL\",'Master List'!F2:F600, \"2018\",'Master List'!J2:J600, \"AL\", 'Master List'!D2:D600, \"Feb\")","v":0},{"$f":"COUNTIFS('Master List'!L2:L600, \"FALL\",'Master List'!F2:F600, \"2018\",'Master List'!J2:J600, \"AL\", 'Master List'!D2:D600, \"Mar\")","v":0},{"$f":"COUNTIFS('Master List'!L2:L600, \"FALL\",'Master List'!F2:F600, \"2018\",'Master List'!J2:J600, \"AL\", 'Master List'!D2:D600, \"apr\")","v":0},{"$f":"COUNTIFS('Master List'!L2:L600, \"FALL\",'Master List'!F2:F600, \"2018\",'Master List'!J2:J600, \"AL\", 'Master List'!D2:D600, \"may\")","v":0},{"$f":"COUNTIFS('Master List'!L2:L600, \"FALL\",'Master List'!F2:F600, \"2018\",'Master List'!J2:J600, \"AL\", 'Master List'!D2:D600, \"jun\")","v":0},{"$f":"COUNTIFS('Master List'!L2:L600, \"FALL\",'Master List'!F2:F600, \"2018\",'Master List'!J2:J600, \"AL\", 'Master List'!D2:D600, \"jul\")","v":0},{"$f":"COUNTIFS('Master List'!L2:L600, \"FALL\",'Master List'!F2:F600, \"2018\",'Master List'!J2:J600, \"AL\", 'Master List'!D2:D600, \"aug\")","v":0},{"$f":"COUNTIFS('Master List'!L2:L600, \"FALL\",'Master List'!F2:F600, \"2018\",'Master List'!J2:J600, \"AL\", 'Master List'!D2:D600, \"sep\")","v":0},{"$f":"COUNTIFS('Master List'!L2:L600, \"FALL\",'Master List'!F2:F600, \"2018\",'Master List'!J2:J600, \"AL\", 'Master List'!D2:D600, \"oct\")","v":0},{"$f":"COUNTIFS('Master List'!L2:L600, \"FALL\",'Master List'!F2:F600, \"2018\",'Master List'!J2:J600, \"AL\", 'Master List'!D2:D600, \"nov\")","v":0},{"$f":"COUNTIFS('Master List'!L2:L600, \"FALL\",'Master List'!F2:F600, \"2018\",'Master List'!J2:J600, \"AL\", 'Master List'!D2:D600, \"dec\")","v":0},0,{"$f":"SUM(H62:J62)","v":0},0,0]
[null,null,"IL",{"$f":"COUNTIFS('Master List'!L2:L600, \"FALL\",'Master List'!F2:F600, \"2018\",'Master List'!J2:J600, \"IL\")","v":0},{"$f":"COUNTIFS('Master List'!L2:L600, \"FALL\",'Master List'!F2:F600, \"2018\",'Master List'!J2:J600, \"IL\", 'Master List'!D2:D600, \"JAN\")","v":0},{"$f":"COUNTIFS('Master List'!L2:L600, \"FALL\",'Master List'!F2:F600, \"2018\",'Master List'!J2:J600, \"IL\", 'Master List'!D2:D600, \"Feb\")","v":0},{"$f":"COUNTIFS('Master List'!L2:L600, \"FALL\",'Master List'!F2:F600, \"2018\",'Master List'!J2:J600, \"IL\", 'Master List'!D2:D600, \"Mar\")","v":0},{"$f":"COUNTIFS('Master List'!L2:L600, \"FALL\",'Master List'!F2:F600, \"2018\",'Master List'!J2:J600, \"IL\", 'Master List'!D2:D600, \"apr\")","v":0},{"$f":"COUNTIFS('Master List'!L2:L600, \"FALL\",'Master List'!F2:F600, \"2018\",'Master List'!J2:J600, \"IL\", 'Master List'!D2:D600, \"may\")","v":0},{"$f":"COUNTIFS('Master List'!L2:L600, \"FALL\",'Master List'!F2:F600, \"2018\",'Master List'!J2:J600, \"IL\", 'Master List'!D2:D600, \"jun\")","v":0},{"$f":"COUNTIFS('Master List'!L2:L600, \"FALL\",'Master List'!F2:F600, \"2018\",'Master List'!J2:J600, \"IL\", 'Master List'!D2:D600, \"jul\")","v":0},{"$f":"COUNTIFS('Master List'!L2:L600, \"FALL\",'Master List'!F2:F600, \"2018\",'Master List'!J2:J600, \"IL\", 'Master List'!D2:D600, \"aug\")","v":0},{"$f":"COUNTIFS('Master List'!L2:L600, \"FALL\",'Master List'!F2:F600, \"2018\",'Master List'!J2:J600, \"IL\", 'Master List'!D2:D600, \"sep\")","v":0},{"$f":"COUNTIFS('Master List'!L2:L600, \"FALL\",'Master List'!F2:F600, \"2018\",'Master List'!J2:J600, \"IL\", 'Master List'!D2:D600, \"oct\")","v":0},{"$f":"COUNTIFS('Master List'!L2:L600, \"FALL\",'Master List'!F2:F600, \"2018\",'Master List'!J2:J600, \"IL\", 'Master List'!D2:D600, \"nov\")","v":0},{"$f":"COUNTIFS('Master List'!L2:L600, \"FALL\",'Master List'!F2:F600, \"2018\",'Master List'!J2:J600, \"IL\", 'Master List'!D2:D600, \"dec\")","v":0},0,{"$f":"SUM(H63:J63)","v":0},0,0]
[]
[]
[]
[]
[]
[]
[]
[]
[]
[]
[]
[]
[]
[]
[]
[]
[]
[]
[]
[]
[]
[]
[]
[]
[]
[]
[]
[]
[]
[]
[]
[]
[]
[]
[]
[]
[]
[]
[null,null,"Falls Per Shift - 2018"]
[null,null,null,"Total 2018","jan ","feb","mar","apr","may","jun","jul","aug","sept","oct","nov","dec ","q1","q2","q3","q4"]
[null,null,"AM",{"$f":"COUNTIFS('Master List'!L2:L600, \"FALL\",'Master List'!F2:F600, \"2018\",'Master List'!I2:I600, \"AM\")","v":0},{"$f":"COUNTIFS('Master List'!L2:L600, \"FALL\",'Master List'!F2:F600, \"2018\",'Master List'!I2:I600, \"AM\", 'Master List'!D2:D600, \"JAN\")","v":0},{"$f":"COUNTIFS('Master List'!L2:L600, \"FALL\",'Master List'!F2:F600, \"2018\",'Master List'!I2:I600, \"AM\", 'Master List'!D2:D600, \"feb\")","v":0},{"$f":"COUNTIFS('Master List'!L2:L600, \"FALL\",'Master List'!F2:F600, \"2018\",'Master List'!I2:I600, \"AM\", 'Master List'!D2:D600, \"mar\")","v":0},{"$f":"COUNTIFS('Master List'!L2:L600, \"FALL\",'Master List'!F2:F600, \"2018\",'Master List'!I2:I600, \"AM\", 'Master List'!D2:D600, \"apr\")","v":0},{"$f":"COUNTIFS('Master List'!L2:L600, \"FALL\",'Master List'!F2:F600, \"2018\",'Master List'!I2:I600, \"AM\", 'Master List'!D2:D600, \"may\")","v":0},{"$f":"COUNTIFS('Master List'!L2:L600, \"FALL\",'Master List'!F2:F600, \"2018\",'Master List'!I2:I600, \"AM\", 'Master List'!D2:D600, \"Jun\")","v":0},{"$f":"COUNTIFS('Master List'!L2:L600, \"FALL\",'Master List'!F2:F600, \"2018\",'Master List'!I2:I600, \"AM\", 'Master List'!D2:D600, \"Jul\")","v":0},{"$f":"COUNTIFS('Master List'!L2:L600, \"FALL\",'Master List'!F2:F600, \"2018\",'Master List'!I2:I600, \"AM\", 'Master List'!D2:D600, \"aug\")","v":0},{"$f":"COUNTIFS('Master List'!L2:L600, \"FALL\",'Master List'!F2:F600, \"2018\",'Master List'!I2:I600, \"AM\", 'Master List'!D2:D600, \"sep\")","v":0},{"$f":"COUNTIFS('Master List'!L2:L600, \"FALL\",'Master List'!F2:F600, \"2018\",'Master List'!I2:I600, \"AM\", 'Master List'!D2:D600, \"oct\")","v":0},{"$f":"COUNTIFS('Master List'!L2:L600, \"FALL\",'Master List'!F2:F600, \"2018\",'Master List'!I2:I600, \"AM\", 'Master List'!D2:D600, \"nov\")","v":0},{"$f":"COUNTIFS('Master List'!L2:L600, \"FALL\",'Master List'!F2:F600, \"2018\",'Master List'!I2:I600, \"AM\", 'Master List'!D2:D600, \"dec\")","v":0},{"$f":"SUM(E104:G104)","v":0},{"$f":"SUM(H104:J104)","v":0},{"$f":"SUM(K104:M104)","v":0},{"$f":"SUM(N104:P104)","v":0}]
[null,null,"PM",{"$f":"COUNTIFS('Master List'!L2:L600, \"FALL\",'Master List'!F2:F600, \"2018\",'Master List'!I2:I600, \"PM\")","v":0},{"$f":"COUNTIFS('Master List'!L2:L600, \"FALL\",'Master List'!F2:F600, \"2018\",'Master List'!I2:I600, \"PM\", 'Master List'!D2:D600, \"JAN\")","v":0},{"$f":"COUNTIFS('Master List'!L2:L600, \"FALL\",'Master List'!F2:F600, \"2018\",'Master List'!I2:I600, \"PM\", 'Master List'!D2:D600, \"feb\")","v":0},{"$f":"COUNTIFS('Master List'!L2:L600, \"FALL\",'Master List'!F2:F600, \"2018\",'Master List'!I2:I600, \"PM\", 'Master List'!D2:D600, \"mar\")","v":0},{"$f":"COUNTIFS('Master List'!L2:L600, \"FALL\",'Master List'!F2:F600, \"2018\",'Master List'!I2:I600, \"PM\", 'Master List'!D2:D600, \"apr\")","v":0},{"$f":"COUNTIFS('Master List'!L2:L600, \"FALL\",'Master List'!F2:F600, \"2018\",'Master List'!I2:I600, \"PM\", 'Master List'!D2:D600, \"may\")","v":0},{"$f":"COUNTIFS('Master List'!L2:L600, \"FALL\",'Master List'!F2:F600, \"2018\",'Master List'!I2:I600, \"PM\", 'Master List'!D2:D600, \"Jun\")","v":0},{"$f":"COUNTIFS('Master List'!L2:L600, \"FALL\",'Master List'!F2:F600, \"2018\",'Master List'!I2:I600, \"PM\", 'Master List'!D2:D600, \"Jul\")","v":0},{"$f":"COUNTIFS('Master List'!L2:L600, \"FALL\",'Master List'!F2:F600, \"2018\",'Master List'!I2:I600, \"PM\", 'Master List'!D2:D600, \"aug\")","v":0},{"$f":"COUNTIFS('Master List'!L2:L600, \"FALL\",'Master List'!F2:F600, \"2018\",'Master List'!I2:I600, \"PM\", 'Master List'!D2:D600, \"sep\")","v":0},{"$f":"COUNTIFS('Master List'!L2:L600, \"FALL\",'Master List'!F2:F600, \"2018\",'Master List'!I2:I600, \"PM\", 'Master List'!D2:D600, \"oct\")","v":0},{"$f":"COUNTIFS('Master List'!L2:L600, \"FALL\",'Master List'!F2:F600, \"2018\",'Master List'!I2:I600, \"PM\", 'Master List'!D2:D600, \"nov\")","v":0},{"$f":"COUNTIFS('Master List'!L2:L600, \"FALL\",'Master List'!F2:F600, \"2018\",'Master List'!I2:I600, \"PM\", 'Master List'!D2:D600, \"dec\")","v":0},{"$f":"SUM(E105:G105)","v":0},{"$f":"SUM(H105:K105)","v":0},{"$f":"SUM(K105:M105)","v":0},{"$f":"SUM(N105:P105)","v":0}]
[null,null,"Night",{"$f":"COUNTIFS('Master List'!L2:L600, \"FALL\",'Master List'!F2:F600, \"2018\",'Master List'!I2:I600, \"Night\")","v":0},{"$f":"COUNTIFS('Master List'!L2:L600, \"FALL\",'Master List'!F2:F600, \"2018\",'Master List'!I2:I600, \"Night\", 'Master List'!D2:D600, \"JAN\")","v":0},{"$f":"COUNTIFS('Master List'!L2:L600, \"FALL\",'Master List'!F2:F600, \"2018\",'Master List'!I2:I600, \"Night\", 'Master List'!D2:D600, \"feb\")","v":0},{"$f":"COUNTIFS('Master List'!L2:L600, \"FALL\",'Master List'!F2:F600, \"2018\",'Master List'!I2:I600, \"Night\", 'Master List'!D2:D600, \"mar\")","v":0},{"$f":"COUNTIFS('Master List'!L2:L600, \"FALL\",'Master List'!F2:F600, \"2018\",'Master List'!I2:I600, \"Night\", 'Master List'!D2:D600, \"apr\")","v":0},{"$f":"COUNTIFS('Master List'!L2:L600, \"FALL\",'Master List'!F2:F600, \"2018\",'Master List'!I2:I600, \"Night\", 'Master List'!D2:D600, \"may\")","v":0},{"$f":"COUNTIFS('Master List'!L2:L600, \"FALL\",'Master List'!F2:F600, \"2018\",'Master List'!I2:I600, \"Night\", 'Master List'!D2:D600, \"Jun\")","v":0},{"$f":"COUNTIFS('Master List'!L2:L600, \"FALL\",'Master List'!F2:F600, \"2018\",'Master List'!I2:I600, \"Night\", 'Master List'!D2:D600, \"Jul\")","v":0},{"$f":"COUNTIFS('Master List'!L2:L600, \"FALL\",'Master List'!F2:F600, \"2018\",'Master List'!I2:I600, \"Night\", 'Master List'!D2:D600, \"aug\")","v":0},{"$f":"COUNTIFS('Master List'!L2:L600, \"FALL\",'Master List'!F2:F600, \"2018\",'Master List'!I2:I600, \"Night\", 'Master List'!D2:D600, \"sep\")","v":0},{"$f":"COUNTIFS('Master List'!L2:L600, \"FALL\",'Master List'!F2:F600, \"2018\",'Master List'!I2:I600, \"Night\", 'Master List'!D2:D600, \"oct\")","v":0},{"$f":"COUNTIFS('Master List'!L2:L600, \"FALL\",'Master List'!F2:F600, \"2018\",'Master List'!I2:I600, \"Night\", 'Master List'!D2:D600, \"nov\")","v":0},{"$f":"COUNTIFS('Master List'!L2:L600, \"FALL\",'Master List'!F2:F600, \"2018\",'Master List'!I2:I600, \"Night\", 'Master List'!D2:D600, \"dec\")","v":0},{"$f":"SUM(E106:G106)","v":0},{"$f":"SUM(H106:J106)","v":0},{"$f":"SUM(K106:M106)","v":0},{"$f":"SUM(N106:P106)","v":0}]
[]
[]
[]
[]
[]
[]
[]
[]
[]
[]
[]
[]
[]
[]
[]
[]
[]
[]
[]
[null,null,"Falls Per Day of the Week - 2018"]
[null,null,null,"Total 2018","jan ","feb","mar","apr","may","jun","jul","aug","sept","oct","nov","dec ","q1","q2","q3","q4"]
[null,null,"Monday",{"$f":"COUNTIFS('Master List'!L2:L600, \"FALL\",'Master List'!F2:F600, \"2018\",'Master List'!G2:G600, \"Mon\")","v":0},{"$f":"COUNTIFS('Master List'!L2:L600, \"FALL\",'Master List'!F2:F600, \"2018\",'Master List'!G2:G600, \"Mon\",  'Master List'!D2:D600, \"jan\")","v":0},{"$f":"COUNTIFS('Master List'!L2:L600, \"FALL\",'Master List'!F2:F600, \"2018\",'Master List'!G2:G600, \"Mon\",  'Master List'!D2:D600,  \"Feb\",  'Master List'!D2:D600, \"feb\")","v":0},{"$f":"COUNTIFS('Master List'!L2:L600, \"FALL\",'Master List'!F2:F600, \"2018\",'Master List'!G2:G600, \"Mon\",  'Master List'!D2:D600,  \"Mar\")","v":0},{"$f":"COUNTIFS('Master List'!L2:L600, \"FALL\",'Master List'!F2:F600, \"2018\",'Master List'!G2:G600, \"Mon\",  'Master List'!D2:D600,  \"apr\")","v":0},{"$f":"COUNTIFS('Master List'!L2:L600, \"FALL\",'Master List'!F2:F600, \"2018\",'Master List'!G2:G600, \"Mon\",  'Master List'!D2:D600,  \"may\")","v":0},{"$f":"COUNTIFS('Master List'!L2:L600, \"FALL\",'Master List'!F2:F600, \"2018\",'Master List'!G2:G600, \"Mon\",  'Master List'!D2:D600, \"jun\")","v":0},{"$f":"COUNTIFS('Master List'!L2:L600, \"FALL\",'Master List'!F2:F600, \"2018\",'Master List'!G2:G600, \"Mon\",  'Master List'!D2:D600,  \"jul\")","v":0},{"$f":"COUNTIFS('Master List'!L2:L600, \"FALL\",'Master List'!F2:F600, \"2018\",'Master List'!G2:G600, \"Mon\",  'Master List'!D2:D600, \"aug\")","v":0},{"$f":"COUNTIFS('Master List'!L2:L600, \"FALL\",'Master List'!F2:F600, \"2018\",'Master List'!G2:G600, \"Mon\",  'Master List'!D2:D600,  \"sep\")","v":0},{"$f":"COUNTIFS('Master List'!L2:L600, \"FALL\",'Master List'!F2:F600, \"2018\",'Master List'!G2:G600, \"Mon\",  'Master List'!D2:D600,  \"oct\")","v":0},{"$f":"COUNTIFS('Master List'!L2:L600, \"FALL\",'Master List'!F2:F600, \"2018\",'Master List'!G2:G600, \"Mon\",  'Master List'!D2:D600,  \"nov\")","v":0},{"$f":"COUNTIFS('Master List'!L2:L600, \"FALL\",'Master List'!F2:F600, \"2018\",'Master List'!G2:G600, \"Mon\",  'Master List'!D2:D600,  \"dec\")","v":0},{"$f":"SUM(E128:G128)","v":0},{"$f":"SUM(H128:J128)","v":0},{"$f":"SUM(K128:M128)","v":0},{"$f":"SUM(N128:P128)","v":0}]
[null,null,"Tuesday",{"$f":"COUNTIFS('Master List'!L2:L600, \"FALL\",'Master List'!F2:F600, \"2018\",'Master List'!G2:G600, \"Tue\")","v":0},{"$f":"COUNTIFS('Master List'!L2:L600, \"FALL\",'Master List'!F2:F600, \"2018\",'Master List'!G2:G600, \"Tue\",'Master List'!D2:D600, \"JAN\")","v":0},{"$f":"COUNTIFS('Master List'!L2:L600, \"FALL\",'Master List'!F2:F600, \"2018\",'Master List'!G2:G600, \"Tue\",  'Master List'!D2:D600, \"feb\")","v":0},{"$f":"COUNTIFS('Master List'!L2:L600, \"FALL\",'Master List'!F2:F600, \"2018\",'Master List'!G2:G600, \"Tue\",  'Master List'!D2:D600,  \"Mar\")","v":0},{"$f":"COUNTIFS('Master List'!L2:L600, \"FALL\",'Master List'!F2:F600, \"2018\",'Master List'!G2:G600, \"Tue\",  'Master List'!D2:D600,  \"apr\")","v":0},{"$f":"COUNTIFS('Master List'!L2:L600, \"FALL\",'Master List'!F2:F600, \"2018\",'Master List'!G2:G600, \"Tue\",  'Master List'!D2:D600,  \"may\")","v":0},{"$f":"COUNTIFS('Master List'!L2:L600, \"FALL\",'Master List'!F2:F600, \"2018\",'Master List'!G2:G600, \"Tue\",  'Master List'!D2:D600, \"jun\")","v":0},{"$f":"COUNTIFS('Master List'!L2:L600, \"FALL\",'Master List'!F2:F600, \"2018\",'Master List'!G2:G600, \"Tue\",  'Master List'!D2:D600,  \"jul\")","v":0},{"$f":"COUNTIFS('Master List'!L2:L600, \"FALL\",'Master List'!F2:F600, \"2018\",'Master List'!G2:G600, \"Tue\",  'Master List'!D2:D600, \"aug\")","v":0},{"$f":"COUNTIFS('Master List'!L2:L600, \"FALL\",'Master List'!F2:F600, \"2018\",'Master List'!G2:G600, \"Tue\",  'Master List'!D2:D600,  \"sep\")","v":0},{"$f":"COUNTIFS('Master List'!L2:L600, \"FALL\",'Master List'!F2:F600, \"2018\",'Master List'!G2:G600, \"Tue\",  'Master List'!D2:D600,  \"oct\")","v":0},{"$f":"COUNTIFS('Master List'!L2:L600, \"FALL\",'Master List'!F2:F600, \"2018\",'Master List'!G2:G600, \"Tue\",  'Master List'!D2:D600,  \"nov\")","v":0},{"$f":"COUNTIFS('Master List'!L2:L600, \"FALL\",'Master List'!F2:F600, \"2018\",'Master List'!G2:G600, \"Tue\",  'Master List'!D2:D600,  \"dec\")","v":0},0,{"$f":"SUM(H129:K129)","v":0},0,0]
[null,null,"Wednesday",{"$f":"COUNTIFS('Master List'!L2:L600, \"FALL\",'Master List'!F2:F600, \"2018\",'Master List'!G2:G600, \"wed\")","v":0},{"$f":"COUNTIFS('Master List'!L2:L600, \"FALL\",'Master List'!F2:F600, \"2018\",'Master List'!G2:G600, \"wed\",'Master List'!D2:D600, \"JAN\")","v":0},{"$f":"COUNTIFS('Master List'!L2:L600, \"FALL\",'Master List'!F2:F600, \"2018\",'Master List'!G2:G600, \"wed\",  'Master List'!D2:D600, \"feb\")","v":0},{"$f":"COUNTIFS('Master List'!L2:L600, \"FALL\",'Master List'!F2:F600, \"2018\",'Master List'!G2:G600, \"wed\",  'Master List'!D2:D600,  \"Mar\")","v":0},{"$f":"COUNTIFS('Master List'!L2:L600, \"FALL\",'Master List'!F2:F600, \"2018\",'Master List'!G2:G600, \"wed\",  'Master List'!D2:D600,  \"apr\")","v":0},{"$f":"COUNTIFS('Master List'!L2:L600, \"FALL\",'Master List'!F2:F600, \"2018\",'Master List'!G2:G600, \"wed\",  'Master List'!D2:D600,  \"may\")","v":0},{"$f":"COUNTIFS('Master List'!L2:L600, \"FALL\",'Master List'!F2:F600, \"2018\",'Master List'!G2:G600, \"wed\",  'Master List'!D2:D600, \"jun\")","v":0},{"$f":"COUNTIFS('Master List'!L2:L600, \"FALL\",'Master List'!F2:F600, \"2018\",'Master List'!G2:G600, \"wed\",  'Master List'!D2:D600,  \"jul\")","v":0},{"$f":"COUNTIFS('Master List'!L2:L600, \"FALL\",'Master List'!F2:F600, \"2018\",'Master List'!G2:G600, \"wed\",  'Master List'!D2:D600, \"aug\")","v":0},{"$f":"COUNTIFS('Master List'!L2:L600, \"FALL\",'Master List'!F2:F600, \"2018\",'Master List'!G2:G600, \"wed\",  'Master List'!D2:D600,  \"sep\")","v":0},{"$f":"COUNTIFS('Master List'!L2:L600, \"FALL\",'Master List'!F2:F600, \"2018\",'Master List'!G2:G600, \"wed\",  'Master List'!D2:D600,  \"oct\")","v":0},{"$f":"COUNTIFS('Master List'!L2:L600, \"FALL\",'Master List'!F2:F600, \"2018\",'Master List'!G2:G600, \"wed\",  'Master List'!D2:D600,  \"nov\")","v":0},{"$f":"COUNTIFS('Master List'!L2:L600, \"FALL\",'Master List'!F2:F600, \"2018\",'Master List'!G2:G600, \"wed\",  'Master List'!D2:D600,  \"dec\")","v":0},0,{"$f":"SUM(H130:J130)","v":0},0,0]
[null,null,"Thursday",{"$f":"COUNTIFS('Master List'!L2:L600, \"FALL\",'Master List'!F2:F600, \"2018\",'Master List'!G2:G600, \"thu\")","v":0},{"$f":"COUNTIFS('Master List'!L2:L600, \"FALL\",'Master List'!F2:F600, \"2018\",'Master List'!G2:G600, \"thu\", 'Master List'!D2:D600, \"JAN\")","v":0},{"$f":"COUNTIFS('Master List'!L2:L600, \"FALL\",'Master List'!F2:F600, \"2018\",'Master List'!G2:G600, \"thu\",  'Master List'!D2:D600, \"feb\")","v":0},{"$f":"COUNTIFS('Master List'!L2:L600, \"FALL\",'Master List'!F2:F600, \"2018\",'Master List'!G2:G600, \"thu\",  'Master List'!D2:D600,  \"Mar\")","v":0},{"$f":"COUNTIFS('Master List'!L2:L600, \"FALL\",'Master List'!F2:F600, \"2018\",'Master List'!G2:G600, \"thu\",  'Master List'!D2:D600,  \"apr\")","v":0},{"$f":"COUNTIFS('Master List'!L2:L600, \"FALL\",'Master List'!F2:F600, \"2018\",'Master List'!G2:G600, \"thu\",  'Master List'!D2:D600,  \"may\")","v":0},{"$f":"COUNTIFS('Master List'!L2:L600, \"FALL\",'Master List'!F2:F600, \"2018\",'Master List'!G2:G600, \"thu\",  'Master List'!D2:D600, \"jun\")","v":0},{"$f":"COUNTIFS('Master List'!L2:L600, \"FALL\",'Master List'!F2:F600, \"2018\",'Master List'!G2:G600, \"thu\",  'Master List'!D2:D600,  \"jul\")","v":0},{"$f":"COUNTIFS('Master List'!L2:L600, \"FALL\",'Master List'!F2:F600, \"2018\",'Master List'!G2:G600, \"thu\",  'Master List'!D2:D600, \"aug\")","v":0},{"$f":"COUNTIFS('Master List'!L2:L600, \"FALL\",'Master List'!F2:F600, \"2018\",'Master List'!G2:G600, \"thu\",  'Master List'!D2:D600,  \"sep\")","v":0},{"$f":"COUNTIFS('Master List'!L2:L600, \"FALL\",'Master List'!F2:F600, \"2018\",'Master List'!G2:G600, \"thu\",  'Master List'!D2:D600,  \"oct\")","v":0},{"$f":"COUNTIFS('Master List'!L2:L600, \"FALL\",'Master List'!F2:F600, \"2018\",'Master List'!G2:G600, \"thu\",  'Master List'!D2:D600,  \"nov\")","v":0},{"$f":"COUNTIFS('Master List'!L2:L600, \"FALL\",'Master List'!F2:F600, \"2018\",'Master List'!G2:G600, \"thu\",  'Master List'!D2:D600,  \"dec\")","v":0},0,{"$f":"SUM(H131:J131)","v":0},0,0]
[null,null,"Friday",{"$f":"COUNTIFS('Master List'!L2:L600, \"FALL\",'Master List'!F2:F600, \"2018\",'Master List'!G2:G600, \"fri\")","v":0},{"$f":"COUNTIFS('Master List'!L2:L600, \"FALL\",'Master List'!F2:F600, \"2018\",'Master List'!G2:G600, \"fri\",'Master List'!D2:D600, \"JAN\")","v":0},{"$f":"COUNTIFS('Master List'!L2:L600, \"FALL\",'Master List'!F2:F600, \"2018\",'Master List'!G2:G600, \"fri\",  'Master List'!D2:D600, \"feb\")","v":0},{"$f":"COUNTIFS('Master List'!L2:L600, \"FALL\",'Master List'!F2:F600, \"2018\",'Master List'!G2:G600, \"fri\",  'Master List'!D2:D600,  \"Mar\")","v":0},{"$f":"COUNTIFS('Master List'!L2:L600, \"FALL\",'Master List'!F2:F600, \"2018\",'Master List'!G2:G600, \"fri\",  'Master List'!D2:D600,  \"apr\")","v":0},{"$f":"COUNTIFS('Master List'!L2:L600, \"FALL\",'Master List'!F2:F600, \"2018\",'Master List'!G2:G600, \"fri\",  'Master List'!D2:D600,  \"may\")","v":0},{"$f":"COUNTIFS('Master List'!L2:L600, \"FALL\",'Master List'!F2:F600, \"2018\",'Master List'!G2:G600, \"fri\",  'Master List'!D2:D600, \"jun\")","v":0},{"$f":"COUNTIFS('Master List'!L2:L600, \"FALL\",'Master List'!F2:F600, \"2018\",'Master List'!G2:G600, \"fri\",  'Master List'!D2:D600,  \"jul\")","v":0},{"$f":"COUNTIFS('Master List'!L2:L600, \"FALL\",'Master List'!F2:F600, \"2018\",'Master List'!G2:G600, \"fri\",  'Master List'!D2:D600, \"aug\")","v":0},{"$f":"COUNTIFS('Master List'!L2:L600, \"FALL\",'Master List'!F2:F600, \"2018\",'Master List'!G2:G600, \"fri\",  'Master List'!D2:D600,  \"sep\")","v":0},{"$f":"COUNTIFS('Master List'!L2:L600, \"FALL\",'Master List'!F2:F600, \"2018\",'Master List'!G2:G600, \"fri\",  'Master List'!D2:D600,  \"oct\")","v":0},{"$f":"COUNTIFS('Master List'!L2:L600, \"FALL\",'Master List'!F2:F600, \"2018\",'Master List'!G2:G600, \"fri\",  'Master List'!D2:D600,  \"nov\")","v":0},{"$f":"COUNTIFS('Master List'!L2:L600, \"FALL\",'Master List'!F2:F600, \"2018\",'Master List'!G2:G600, \"fri\",  'Master List'!D2:D600,  \"dec\")","v":0},0,{"$f":"SUM(H132:J132)","v":0},0,0]
[null,null,"Saturday",{"$f":"COUNTIFS('Master List'!L2:L600, \"FALL\",'Master List'!F2:F600, \"2018\",'Master List'!G2:G600, \"sat\")","v":0},{"$f":"COUNTIFS('Master List'!L2:L600, \"FALL\",'Master List'!F2:F600, \"2018\",'Master List'!G2:G600, \"sat\",'Master List'!D2:D600, \"JAN\")","v":0},{"$f":"COUNTIFS('Master List'!L2:L600, \"FALL\",'Master List'!F2:F600, \"2018\",'Master List'!G2:G600, \"sat\",  'Master List'!D2:D600, \"feb\")","v":0},{"$f":"COUNTIFS('Master List'!L2:L600, \"FALL\",'Master List'!F2:F600, \"2018\",'Master List'!G2:G600, \"sat\",  'Master List'!D2:D600,  \"Mar\")","v":0},{"$f":"COUNTIFS('Master List'!L2:L600, \"FALL\",'Master List'!F2:F600, \"2018\",'Master List'!G2:G600, \"sat\",  'Master List'!D2:D600,  \"apr\")","v":0},{"$f":"COUNTIFS('Master List'!L2:L600, \"FALL\",'Master List'!F2:F600, \"2018\",'Master List'!G2:G600, \"sat\",  'Master List'!D2:D600,  \"may\")","v":0},{"$f":"COUNTIFS('Master List'!L2:L600, \"FALL\",'Master List'!F2:F600, \"2018\",'Master List'!G2:G600, \"sat\",  'Master List'!D2:D600, \"jun\")","v":0},{"$f":"COUNTIFS('Master List'!L2:L600, \"FALL\",'Master List'!F2:F600, \"2018\",'Master List'!G2:G600, \"sat\",  'Master List'!D2:D600,  \"jul\")","v":0},{"$f":"COUNTIFS('Master List'!L2:L600, \"FALL\",'Master List'!F2:F600, \"2018\",'Master List'!G2:G600, \"sat\",  'Master List'!D2:D600, \"aug\")","v":0},{"$f":"COUNTIFS('Master List'!L2:L600, \"FALL\",'Master List'!F2:F600, \"2018\",'Master List'!G2:G600, \"sat\",  'Master List'!D2:D600,  \"sep\")","v":0},{"$f":"COUNTIFS('Master List'!L2:L600, \"FALL\",'Master List'!F2:F600, \"2018\",'Master List'!G2:G600, \"sat\",  'Master List'!D2:D600,  \"oct\")","v":0},{"$f":"COUNTIFS('Master List'!L2:L600, \"FALL\",'Master List'!F2:F600, \"2018\",'Master List'!G2:G600, \"sat\",  'Master List'!D2:D600,  \"nov\")","v":0},{"$f":"COUNTIFS('Master List'!L2:L600, \"FALL\",'Master List'!F2:F600, \"2018\",'Master List'!G2:G600, \"sat\",  'Master List'!D2:D600,  \"dec\")","v":0},0,{"$f":"SUM(H133:J133)","v":0},0,0]
[null,null,"Sunday",{"$f":"COUNTIFS('Master List'!L2:L600, \"FALL\",'Master List'!F2:F600, \"2018\",'Master List'!G2:G600, \"sun\")","v":0},{"$f":"COUNTIFS('Master List'!L2:L600, \"FALL\",'Master List'!F2:F600, \"2018\",'Master List'!G2:G600, \"sun\",'Master List'!D2:D600, \"JAN\")","v":0},{"$f":"COUNTIFS('Master List'!L2:L600, \"FALL\",'Master List'!F2:F600, \"2018\",'Master List'!G2:G600, \"sun\",  'Master List'!D2:D600, \"feb\")","v":0},{"$f":"COUNTIFS('Master List'!L2:L600, \"FALL\",'Master List'!F2:F600, \"2018\",'Master List'!G2:G600, \"sun\",  'Master List'!D2:D600,  \"Mar\")","v":0},{"$f":"COUNTIFS('Master List'!L2:L600, \"FALL\",'Master List'!F2:F600, \"2018\",'Master List'!G2:G600, \"sun\",  'Master List'!D2:D600,  \"apr\")","v":0},{"$f":"COUNTIFS('Master List'!L2:L600, \"FALL\",'Master List'!F2:F600, \"2018\",'Master List'!G2:G600, \"sun\",  'Master List'!D2:D600,  \"may\")","v":0},{"$f":"COUNTIFS('Master List'!L2:L600, \"FALL\",'Master List'!F2:F600, \"2018\",'Master List'!G2:G600, \"sun\",  'Master List'!D2:D600, \"jun\")","v":0},{"$f":"COUNTIFS('Master List'!L2:L600, \"FALL\",'Master List'!F2:F600, \"2018\",'Master List'!G2:G600, \"sun\",  'Master List'!D2:D600,  \"jul\")","v":0},{"$f":"COUNTIFS('Master List'!L2:L600, \"FALL\",'Master List'!F2:F600, \"2018\",'Master List'!G2:G600, \"sun\",  'Master List'!D2:D600, \"aug\")","v":0},{"$f":"COUNTIFS('Master List'!L2:L600, \"FALL\",'Master List'!F2:F600, \"2018\",'Master List'!G2:G600, \"sun\",  'Master List'!D2:D600,  \"sep\")","v":0},{"$f":"COUNTIFS('Master List'!L2:L600, \"FALL\",'Master List'!F2:F600, \"2018\",'Master List'!G2:G600, \"sun\",  'Master List'!D2:D600,  \"oct\")","v":0},{"$f":"COUNTIFS('Master List'!L2:L600, \"FALL\",'Master List'!F2:F600, \"2018\",'Master List'!G2:G600, \"sun\",  'Master List'!D2:D600,  \"nov\")","v":0},{"$f":"COUNTIFS('Master List'!L2:L600, \"FALL\",'Master List'!F2:F600, \"2018\",'Master List'!G2:G600, \"sun\",  'Master List'!D2:D600,  \"dec\")","v":0},0,{"$f":"SUM(H134:J134)","v":0},0,0]
[]
[]
[]
[]
[]
[]
[]
[]
[]
[]
[]
[]
[]
[]
[]
[]
[]
[]
[]
[]
[null,null,"Falls Per Location - 2018"]
[null,null,null,"Total 2018","jan ","feb","mar","apr","may","jun","jul","aug","sept","oct","nov","dec ","q1","q2","q3","q4"]
[null,null,"Resident Room",{"$f":"COUNTIFS('Master List'!L2:L600, \"FALL\",'Master List'!F2:F600, \"2018\",'Master List'!P2:P600, \"Resident Room\")","v":0},{"$f":"COUNTIFS('Master List'!L2:L600, \"FALL\",'Master List'!F2:F600, \"2018\",'Master List'!P2:P600, \"Resident Room\",  'Master List'!D2:D600, \"jan\")","v":0},{"$f":"COUNTIFS('Master List'!L2:L600, \"FALL\",'Master List'!F2:F600, \"2018\",'Master List'!P2:P600, \"Resident Room\",  'Master List'!D2:D600,  \"Feb\",  'Master List'!D2:D600, \"feb\")","v":0},{"$f":"COUNTIFS('Master List'!L2:L600, \"FALL\",'Master List'!F2:F600, \"2018\",'Master List'!P2:P600, \"Resident Room\",  'Master List'!D2:D600,  \"Mar\")","v":0},{"$f":"COUNTIFS('Master List'!L2:L600, \"FALL\",'Master List'!F2:F600, \"2018\",'Master List'!P2:P600, \"Resident Room\",  'Master List'!D2:D600,  \"apr\")","v":0},{"$f":"COUNTIFS('Master List'!L2:L600, \"FALL\",'Master List'!F2:F600, \"2018\",'Master List'!P2:P600, \"Resident Room\",  'Master List'!D2:D600,  \"may\")","v":0},{"$f":"COUNTIFS('Master List'!L2:L600, \"FALL\",'Master List'!F2:F600, \"2018\",'Master List'!P2:P600, \"Resident Room\",  'Master List'!D2:D600, \"jun\")","v":0},{"$f":"COUNTIFS('Master List'!L2:L600, \"FALL\",'Master List'!F2:F600, \"2018\",'Master List'!P2:P600, \"Resident Room\",  'Master List'!D2:D600,  \"jul\")","v":0},{"$f":"COUNTIFS('Master List'!L2:L600, \"FALL\",'Master List'!F2:F600, \"2018\",'Master List'!P2:P600, \"Resident Room\",  'Master List'!D2:D600, \"aug\")","v":0},{"$f":"COUNTIFS('Master List'!L2:L600, \"FALL\",'Master List'!F2:F600, \"2018\",'Master List'!P2:P600, \"Resident Room\",  'Master List'!D2:D600,  \"sep\")","v":0},{"$f":"COUNTIFS('Master List'!L2:L600, \"FALL\",'Master List'!F2:F600, \"2018\",'Master List'!P2:P600, \"Resident Room\",  'Master List'!D2:D600,  \"oct\")","v":0},{"$f":"COUNTIFS('Master List'!L2:L600, \"FALL\",'Master List'!F2:F600, \"2018\",'Master List'!P2:P600, \"Resident Room\",  'Master List'!D2:D600,  \"nov\")","v":0},{"$f":"COUNTIFS('Master List'!L2:L600, \"FALL\",'Master List'!F2:F600, \"2018\",'Master List'!P2:P600, \"Resident Room\",  'Master List'!D2:D600,  \"dec\")","v":0},{"$f":"SUM(E157:G157)","v":0},{"$f":"SUM(H157:J157)","v":0},{"$f":"SUM(K157:M157)","v":0},{"$f":"SUM(N157:P157)","v":0}]
[null,null,"Bathroom",{"$f":"COUNTIFS('Master List'!L2:L600, \"FALL\",'Master List'!F2:F600, \"2018\",'Master List'!P2:P600, \"Bathroom\")","v":0},{"$f":"COUNTIFS('Master List'!L2:L600, \"FALL\",'Master List'!F2:F600, \"2018\",'Master List'!P2:P600, \"Bathroom\",'Master List'!D2:D600, \"JAN\")","v":0},{"$f":"COUNTIFS('Master List'!L2:L600, \"FALL\",'Master List'!F2:F600, \"2018\",'Master List'!P2:P600, \"Bathroom\",  'Master List'!D2:D600, \"feb\")","v":0},{"$f":"COUNTIFS('Master List'!L2:L600, \"FALL\",'Master List'!F2:F600, \"2018\",'Master List'!P2:P600, \"Bathroom\",  'Master List'!D2:D600,  \"Mar\")","v":0},{"$f":"COUNTIFS('Master List'!L2:L600, \"FALL\",'Master List'!F2:F600, \"2018\",'Master List'!P2:P600, \"Bathroom\",  'Master List'!D2:D600,  \"apr\")","v":0},{"$f":"COUNTIFS('Master List'!L2:L600, \"FALL\",'Master List'!F2:F600, \"2018\",'Master List'!P2:P600, \"Bathroom\",  'Master List'!D2:D600,  \"may\")","v":0},{"$f":"COUNTIFS('Master List'!L2:L600, \"FALL\",'Master List'!F2:F600, \"2018\",'Master List'!P2:P600, \"Bathroom\",  'Master List'!D2:D600, \"jun\")","v":0},{"$f":"COUNTIFS('Master List'!L2:L600, \"FALL\",'Master List'!F2:F600, \"2018\",'Master List'!P2:P600, \"Bathroom\",  'Master List'!D2:D600,  \"jul\")","v":0},{"$f":"COUNTIFS('Master List'!L2:L600, \"FALL\",'Master List'!F2:F600, \"2018\",'Master List'!P2:P600, \"Bathroom\",  'Master List'!D2:D600, \"aug\")","v":0},{"$f":"COUNTIFS('Master List'!L2:L600, \"FALL\",'Master List'!F2:F600, \"2018\",'Master List'!P2:P600, \"Bathroom\",  'Master List'!D2:D600,  \"sep\")","v":0},{"$f":"COUNTIFS('Master List'!L2:L600, \"FALL\",'Master List'!F2:F600, \"2018\",'Master List'!P2:P600, \"Bathroom\",  'Master List'!D2:D600,  \"oct\")","v":0},{"$f":"COUNTIFS('Master List'!L2:L600, \"FALL\",'Master List'!F2:F600, \"2018\",'Master List'!P2:P600, \"Bathroom\",  'Master List'!D2:D600,  \"nov\")","v":0},{"$f":"COUNTIFS('Master List'!L2:L600, \"FALL\",'Master List'!F2:F600, \"2018\",'Master List'!P2:P600, \"Bathroom\",  'Master List'!D2:D600,  \"dec\")","v":0},0,{"$f":"SUM(H158:K158)","v":0},0,0]
[null,null,"Hall",{"$f":"COUNTIFS('Master List'!L2:L600, \"FALL\",'Master List'!F2:F600, \"2018\",'Master List'!P2:P600, \"hall\")","v":0},{"$f":"COUNTIFS('Master List'!L2:L600, \"FALL\",'Master List'!F2:F600, \"2018\",'Master List'!P2:P600, \"hall\",'Master List'!D2:D600, \"JAN\")","v":0},{"$f":"COUNTIFS('Master List'!L2:L600, \"FALL\",'Master List'!F2:F600, \"2018\",'Master List'!P2:P600, \"hall\",  'Master List'!D2:D600, \"feb\")","v":0},{"$f":"COUNTIFS('Master List'!L2:L600, \"FALL\",'Master List'!F2:F600, \"2018\",'Master List'!P2:P600, \"hall\",  'Master List'!D2:D600,  \"Mar\")","v":0},{"$f":"COUNTIFS('Master List'!L2:L600, \"FALL\",'Master List'!F2:F600, \"2018\",'Master List'!P2:P600, \"hall\",  'Master List'!D2:D600,  \"apr\")","v":0},{"$f":"COUNTIFS('Master List'!L2:L600, \"FALL\",'Master List'!F2:F600, \"2018\",'Master List'!P2:P600, \"hall\",  'Master List'!D2:D600,  \"may\")","v":0},{"$f":"COUNTIFS('Master List'!L2:L600, \"FALL\",'Master List'!F2:F600, \"2018\",'Master List'!P2:P600, \"hall\",  'Master List'!D2:D600, \"jun\")","v":0},{"$f":"COUNTIFS('Master List'!L2:L600, \"FALL\",'Master List'!F2:F600, \"2018\",'Master List'!P2:P600, \"hall\",  'Master List'!D2:D600,  \"jul\")","v":0},{"$f":"COUNTIFS('Master List'!L2:L600, \"FALL\",'Master List'!F2:F600, \"2018\",'Master List'!P2:P600, \"hall\",  'Master List'!D2:D600, \"aug\")","v":0},{"$f":"COUNTIFS('Master List'!L2:L600, \"FALL\",'Master List'!F2:F600, \"2018\",'Master List'!P2:P600, \"hall\",  'Master List'!D2:D600,  \"sep\")","v":0},{"$f":"COUNTIFS('Master List'!L2:L600, \"FALL\",'Master List'!F2:F600, \"2018\",'Master List'!P2:P600, \"hall\",  'Master List'!D2:D600,  \"oct\")","v":0},{"$f":"COUNTIFS('Master List'!L2:L600, \"FALL\",'Master List'!F2:F600, \"2018\",'Master List'!P2:P600, \"hall\",  'Master List'!D2:D600,  \"nov\")","v":0},{"$f":"COUNTIFS('Master List'!L2:L600, \"FALL\",'Master List'!F2:F600, \"2018\",'Master List'!P2:P600, \"hall\",  'Master List'!D2:D600,  \"dec\")","v":0},0,{"$f":"SUM(H159:J159)","v":0},0,0]
[null,null,"Dining Room",{"$f":"COUNTIFS('Master List'!L2:L600, \"FALL\",'Master List'!F2:F600, \"2018\",'Master List'!P2:P600, \"dining room\")","v":0},{"$f":"COUNTIFS('Master List'!L2:L600, \"FALL\",'Master List'!F2:F600, \"2018\",'Master List'!P2:P600, \"dining room\", 'Master List'!D2:D600, \"JAN\")","v":0},{"$f":"COUNTIFS('Master List'!L2:L600, \"FALL\",'Master List'!F2:F600, \"2018\",'Master List'!P2:P600, \"dining room\",  'Master List'!D2:D600, \"feb\")","v":0},{"$f":"COUNTIFS('Master List'!L2:L600, \"FALL\",'Master List'!F2:F600, \"2018\",'Master List'!P2:P600, \"dining room\",  'Master List'!D2:D600,  \"Mar\")","v":0},{"$f":"COUNTIFS('Master List'!L2:L600, \"FALL\",'Master List'!F2:F600, \"2018\",'Master List'!P2:P600, \"dining room\",  'Master List'!D2:D600,  \"apr\")","v":0},{"$f":"COUNTIFS('Master List'!L2:L600, \"FALL\",'Master List'!F2:F600, \"2018\",'Master List'!P2:P600, \"dining room\",  'Master List'!D2:D600,  \"may\")","v":0},{"$f":"COUNTIFS('Master List'!L2:L600, \"FALL\",'Master List'!F2:F600, \"2018\",'Master List'!P2:P600, \"dining room\",  'Master List'!D2:D600, \"jun\")","v":0},{"$f":"COUNTIFS('Master List'!L2:L600, \"FALL\",'Master List'!F2:F600, \"2018\",'Master List'!P2:P600, \"dining room\",  'Master List'!D2:D600,  \"jul\")","v":0},{"$f":"COUNTIFS('Master List'!L2:L600, \"FALL\",'Master List'!F2:F600, \"2018\",'Master List'!P2:P600, \"dining room\",  'Master List'!D2:D600, \"aug\")","v":0},{"$f":"COUNTIFS('Master List'!L2:L600, \"FALL\",'Master List'!F2:F600, \"2018\",'Master List'!P2:P600, \"dining room\",  'Master List'!D2:D600,  \"sep\")","v":0},{"$f":"COUNTIFS('Master List'!L2:L600, \"FALL\",'Master List'!F2:F600, \"2018\",'Master List'!P2:P600, \"dining room\",  'Master List'!D2:D600,  \"oct\")","v":0},{"$f":"COUNTIFS('Master List'!L2:L600, \"FALL\",'Master List'!F2:F600, \"2018\",'Master List'!P2:P600, \"dining room\",  'Master List'!D2:D600,  \"nov\")","v":0},{"$f":"COUNTIFS('Master List'!L2:L600, \"FALL\",'Master List'!F2:F600, \"2018\",'Master List'!P2:P600, \"dining room\",  'Master List'!D2:D600,  \"dec\")","v":0},0,{"$f":"SUM(H160:J160)","v":0},0,0]
[null,null,"Living Room",{"$f":"COUNTIFS('Master List'!L2:L600, \"FALL\",'Master List'!F2:F600, \"2018\",'Master List'!P2:P600, \"living room\")","v":0},{"$f":"COUNTIFS('Master List'!L2:L600, \"FALL\",'Master List'!F2:F600, \"2018\",'Master List'!P2:P600, \"living room\",'Master List'!D2:D600, \"JAN\")","v":0},{"$f":"COUNTIFS('Master List'!L2:L600, \"FALL\",'Master List'!F2:F600, \"2018\",'Master List'!P2:P600, \"living room\",  'Master List'!D2:D600, \"feb\")","v":0},{"$f":"COUNTIFS('Master List'!L2:L600, \"FALL\",'Master List'!F2:F600, \"2018\",'Master List'!P2:P600, \"living room\",  'Master List'!D2:D600,  \"Mar\")","v":0},{"$f":"COUNTIFS('Master List'!L2:L600, \"FALL\",'Master List'!F2:F600, \"2018\",'Master List'!P2:P600, \"living room\",  'Master List'!D2:D600,  \"apr\")","v":0},{"$f":"COUNTIFS('Master List'!L2:L600, \"FALL\",'Master List'!F2:F600, \"2018\",'Master List'!P2:P600, \"living room\",  'Master List'!D2:D600,  \"may\")","v":0},{"$f":"COUNTIFS('Master List'!L2:L600, \"FALL\",'Master List'!F2:F600, \"2018\",'Master List'!P2:P600, \"living room\",  'Master List'!D2:D600, \"jun\")","v":0},{"$f":"COUNTIFS('Master List'!L2:L600, \"FALL\",'Master List'!F2:F600, \"2018\",'Master List'!P2:P600, \"living room\",  'Master List'!D2:D600,  \"jul\")","v":0},{"$f":"COUNTIFS('Master List'!L2:L600, \"FALL\",'Master List'!F2:F600, \"2018\",'Master List'!P2:P600, \"living room\",  'Master List'!D2:D600, \"aug\")","v":0},{"$f":"COUNTIFS('Master List'!L2:L600, \"FALL\",'Master List'!F2:F600, \"2018\",'Master List'!P2:P600, \"living room\",  'Master List'!D2:D600,  \"sep\")","v":0},{"$f":"COUNTIFS('Master List'!L2:L600, \"FALL\",'Master List'!F2:F600, \"2018\",'Master List'!P2:P600, \"living room\",  'Master List'!D2:D600,  \"oct\")","v":0},{"$f":"COUNTIFS('Master List'!L2:L600, \"FALL\",'Master List'!F2:F600, \"2018\",'Master List'!P2:P600, \"living room\",  'Master List'!D2:D600,  \"nov\")","v":0},{"$f":"COUNTIFS('Master List'!L2:L600, \"FALL\",'Master List'!F2:F600, \"2018\",'Master List'!P2:P600, \"living room\",  'Master List'!D2:D600,  \"dec\")","v":0},0,{"$f":"SUM(H161:J161)","v":0},0,0]
[null,null,"N/A",{"$f":"COUNTIFS('Master List'!L2:L600, \"FALL\",'Master List'!F2:F600, \"2018\",'Master List'!P2:P600, \"n/a\")","v":0},{"$f":"COUNTIFS('Master List'!L2:L600, \"FALL\",'Master List'!F2:F600, \"2018\",'Master List'!P2:P600, \"n/a\",'Master List'!D2:D600, \"JAN\")","v":0},{"$f":"COUNTIFS('Master List'!L2:L600, \"FALL\",'Master List'!F2:F600, \"2018\",'Master List'!P2:P600, \"n/a\",  'Master List'!D2:D600, \"feb\")","v":0},{"$f":"COUNTIFS('Master List'!L2:L600, \"FALL\",'Master List'!F2:F600, \"2018\",'Master List'!P2:P600, \"n/a\",  'Master List'!D2:D600,  \"Mar\")","v":0},{"$f":"COUNTIFS('Master List'!L2:L600, \"FALL\",'Master List'!F2:F600, \"2018\",'Master List'!P2:P600, \"n/a\",  'Master List'!D2:D600,  \"apr\")","v":0},{"$f":"COUNTIFS('Master List'!L2:L600, \"FALL\",'Master List'!F2:F600, \"2018\",'Master List'!P2:P600, \"n/a\",  'Master List'!D2:D600,  \"may\")","v":0},{"$f":"COUNTIFS('Master List'!L2:L600, \"FALL\",'Master List'!F2:F600, \"2018\",'Master List'!P2:P600, \"n/a\",  'Master List'!D2:D600, \"jun\")","v":0},{"$f":"COUNTIFS('Master List'!L2:L600, \"FALL\",'Master List'!F2:F600, \"2018\",'Master List'!P2:P600, \"n/a\",  'Master List'!D2:D600,  \"jul\")","v":0},{"$f":"COUNTIFS('Master List'!L2:L600, \"FALL\",'Master List'!F2:F600, \"2018\",'Master List'!P2:P600, \"n/a\",  'Master List'!D2:D600, \"aug\")","v":0},{"$f":"COUNTIFS('Master List'!L2:L600, \"FALL\",'Master List'!F2:F600, \"2018\",'Master List'!P2:P600, \"n/a\",  'Master List'!D2:D600,  \"sep\")","v":0},{"$f":"COUNTIFS('Master List'!L2:L600, \"FALL\",'Master List'!F2:F600, \"2018\",'Master List'!P2:P600, \"n/a\",  'Master List'!D2:D600,  \"oct\")","v":0},{"$f":"COUNTIFS('Master List'!L2:L600, \"FALL\",'Master List'!F2:F600, \"2018\",'Master List'!P2:P600, \"n/a\",  'Master List'!D2:D600,  \"nov\")","v":0},{"$f":"COUNTIFS('Master List'!L2:L600, \"FALL\",'Master List'!F2:F600, \"2018\",'Master List'!P2:P600, \"n/a\",  'Master List'!D2:D600,  \"dec\")","v":0},0,{"$f":"SUM(H162:J162)","v":0},0,0]
[null,null,"Other",{"$f":"COUNTIFS('Master List'!L2:L600, \"FALL\",'Master List'!F2:F600, \"2018\",'Master List'!P2:P600, \"other\")","v":0},{"$f":"COUNTIFS('Master List'!L2:L600, \"FALL\",'Master List'!F2:F600, \"2018\",'Master List'!P2:P600, \"other\",'Master List'!D2:D600, \"JAN\")","v":0},{"$f":"COUNTIFS('Master List'!L2:L600, \"FALL\",'Master List'!F2:F600, \"2018\",'Master List'!P2:P600, \"other\",  'Master List'!D2:D600, \"feb\")","v":0},{"$f":"COUNTIFS('Master List'!L2:L600, \"FALL\",'Master List'!F2:F600, \"2018\",'Master List'!P2:P600, \"other\",  'Master List'!D2:D600,  \"Mar\")","v":0},{"$f":"COUNTIFS('Master List'!L2:L600, \"FALL\",'Master List'!F2:F600, \"2018\",'Master List'!P2:P600, \"other\",  'Master List'!D2:D600,  \"apr\")","v":0},{"$f":"COUNTIFS('Master List'!L2:L600, \"FALL\",'Master List'!F2:F600, \"2018\",'Master List'!P2:P600, \"other\",  'Master List'!D2:D600,  \"may\")","v":0},{"$f":"COUNTIFS('Master List'!L2:L600, \"FALL\",'Master List'!F2:F600, \"2018\",'Master List'!P2:P600, \"other\",  'Master List'!D2:D600, \"jun\")","v":0},{"$f":"COUNTIFS('Master List'!L2:L600, \"FALL\",'Master List'!F2:F600, \"2018\",'Master List'!P2:P600, \"other\",  'Master List'!D2:D600,  \"jul\")","v":0},{"$f":"COUNTIFS('Master List'!L2:L600, \"FALL\",'Master List'!F2:F600, \"2018\",'Master List'!P2:P600, \"other\",  'Master List'!D2:D600, \"aug\")","v":0},{"$f":"COUNTIFS('Master List'!L2:L600, \"FALL\",'Master List'!F2:F600, \"2018\",'Master List'!P2:P600, \"other\",  'Master List'!D2:D600,  \"sep\")","v":0},{"$f":"COUNTIFS('Master List'!L2:L600, \"FALL\",'Master List'!F2:F600, \"2018\",'Master List'!P2:P600, \"other\",  'Master List'!D2:D600,  \"oct\")","v":0},{"$f":"COUNTIFS('Master List'!L2:L600, \"FALL\",'Master List'!F2:F600, \"2018\",'Master List'!P2:P600, \"other\",  'Master List'!D2:D600,  \"nov\")","v":0},{"$f":"COUNTIFS('Master List'!L2:L600, \"FALL\",'Master List'!F2:F600, \"2018\",'Master List'!P2:P600, \"other\",  'Master List'!D2:D600,  \"dec\")","v":0},0,{"$f":"SUM(H163:J163)","v":0},0,0]
[]
[]
[]
[]
[]
[]
[]
[]
[]
[]
[]
[]
[]
[]
[]
[]
[]
[]
[]
[]
[null,null,"Falls per Activity - 2018"]
[null,null,null,"Total 2018","jan ","feb","mar","apr","may","jun","jul","aug","sept","oct","nov","dec ","q1","q2","q3","q4"]
[null,null,"Ambulating",{"$f":"COUNTIFS('Master List'!L2:L600, \"FALL\",'Master List'!F2:F600, \"2018\",'Master List'!Q2:Q600, \"Ambulating\")","v":0},{"$f":"COUNTIFS('Master List'!L2:L600, \"FALL\",'Master List'!F2:F600, \"2018\",'Master List'!Q2:Q600, \"Ambulating\",  'Master List'!D2:D600, \"jan\")","v":0},{"$f":"COUNTIFS('Master List'!L2:L600, \"FALL\",'Master List'!F2:F600, \"2018\",'Master List'!Q2:Q600, \"Ambulating\",  'Master List'!D2:D600,  \"Feb\",  'Master List'!D2:D600, \"feb\")","v":0},{"$f":"COUNTIFS('Master List'!L2:L600, \"FALL\",'Master List'!F2:F600, \"2018\",'Master List'!Q2:Q600, \"Ambulating\",  'Master List'!D2:D600,  \"Mar\")","v":0},{"$f":"COUNTIFS('Master List'!L2:L600, \"FALL\",'Master List'!F2:F600, \"2018\",'Master List'!Q2:Q600, \"Ambulating\",  'Master List'!D2:D600,  \"apr\")","v":0},{"$f":"COUNTIFS('Master List'!L2:L600, \"FALL\",'Master List'!F2:F600, \"2018\",'Master List'!Q2:Q600, \"Ambulating\",  'Master List'!D2:D600,  \"may\")","v":0},{"$f":"COUNTIFS('Master List'!L2:L600, \"FALL\",'Master List'!F2:F600, \"2018\",'Master List'!Q2:Q600, \"Ambulating\",  'Master List'!D2:D600, \"jun\")","v":0},{"$f":"COUNTIFS('Master List'!L2:L600, \"FALL\",'Master List'!F2:F600, \"2018\",'Master List'!Q2:Q600, \"Ambulating\",  'Master List'!D2:D600,  \"jul\")","v":0},{"$f":"COUNTIFS('Master List'!L2:L600, \"FALL\",'Master List'!F2:F600, \"2018\",'Master List'!Q2:Q600, \"Ambulating\",  'Master List'!D2:D600, \"aug\")","v":0},{"$f":"COUNTIFS('Master List'!L2:L600, \"FALL\",'Master List'!F2:F600, \"2018\",'Master List'!Q2:Q600, \"Ambulating\",  'Master List'!D2:D600,  \"sep\")","v":0},{"$f":"COUNTIFS('Master List'!L2:L600, \"FALL\",'Master List'!F2:F600, \"2018\",'Master List'!Q2:Q600, \"Ambulating\",  'Master List'!D2:D600,  \"oct\")","v":0},{"$f":"COUNTIFS('Master List'!L2:L600, \"FALL\",'Master List'!F2:F600, \"2018\",'Master List'!Q2:Q600, \"Ambulating\",  'Master List'!D2:D600,  \"nov\")","v":0},{"$f":"COUNTIFS('Master List'!L2:L600, \"FALL\",'Master List'!F2:F600, \"2018\",'Master List'!Q2:Q600, \"Ambulating\",  'Master List'!D2:D600,  \"dec\")","v":0},{"$f":"SUM(E186:G186)","v":0},{"$f":"SUM(H186:J186)","v":0},{"$f":"SUM(K186:M186)","v":0},{"$f":"SUM(N186:P186)","v":0}]
[null,null,"Transferring",{"$f":"COUNTIFS('Master List'!L2:L600, \"FALL\",'Master List'!F2:F600, \"2018\",'Master List'!Q2:Q600, \"Transferring\")","v":0},{"$f":"COUNTIFS('Master List'!L2:L600, \"FALL\",'Master List'!F2:F600, \"2018\",'Master List'!Q2:Q600, \"Transferring\",'Master List'!D2:D600, \"JAN\")","v":0},{"$f":"COUNTIFS('Master List'!L2:L600, \"FALL\",'Master List'!F2:F600, \"2018\",'Master List'!Q2:Q600, \"Transferring\",  'Master List'!D2:D600, \"feb\")","v":0},{"$f":"COUNTIFS('Master List'!L2:L600, \"FALL\",'Master List'!F2:F600, \"2018\",'Master List'!Q2:Q600, \"Transferring\",  'Master List'!D2:D600,  \"Mar\")","v":0},{"$f":"COUNTIFS('Master List'!L2:L600, \"FALL\",'Master List'!F2:F600, \"2018\",'Master List'!Q2:Q600, \"Transferring\",  'Master List'!D2:D600,  \"apr\")","v":0},{"$f":"COUNTIFS('Master List'!L2:L600, \"FALL\",'Master List'!F2:F600, \"2018\",'Master List'!Q2:Q600, \"Transferring\",  'Master List'!D2:D600,  \"may\")","v":0},{"$f":"COUNTIFS('Master List'!L2:L600, \"FALL\",'Master List'!F2:F600, \"2018\",'Master List'!Q2:Q600, \"Transferring\",  'Master List'!D2:D600, \"jun\")","v":0},{"$f":"COUNTIFS('Master List'!L2:L600, \"FALL\",'Master List'!F2:F600, \"2018\",'Master List'!Q2:Q600, \"Transferring\",  'Master List'!D2:D600,  \"jul\")","v":0},{"$f":"COUNTIFS('Master List'!L2:L600, \"FALL\",'Master List'!F2:F600, \"2018\",'Master List'!Q2:Q600, \"Transferring\",  'Master List'!D2:D600, \"aug\")","v":0},{"$f":"COUNTIFS('Master List'!L2:L600, \"FALL\",'Master List'!F2:F600, \"2018\",'Master List'!Q2:Q600, \"Transferring\",  'Master List'!D2:D600,  \"sep\")","v":0},{"$f":"COUNTIFS('Master List'!L2:L600, \"FALL\",'Master List'!F2:F600, \"2018\",'Master List'!Q2:Q600, \"Transferring\",  'Master List'!D2:D600,  \"oct\")","v":0},{"$f":"COUNTIFS('Master List'!L2:L600, \"FALL\",'Master List'!F2:F600, \"2018\",'Master List'!Q2:Q600, \"Transferring\",  'Master List'!D2:D600,  \"nov\")","v":0},{"$f":"COUNTIFS('Master List'!L2:L600, \"FALL\",'Master List'!F2:F600, \"2018\",'Master List'!Q2:Q600, \"Transferring\",  'Master List'!D2:D600,  \"dec\")","v":0},0,{"$f":"SUM(H187:K187)","v":0},0,0]
[null,null,"In Bed",{"$f":"COUNTIFS('Master List'!L2:L600, \"FALL\",'Master List'!F2:F600, \"2018\",'Master List'!Q2:Q600, \"In Bed\")","v":0},{"$f":"COUNTIFS('Master List'!L2:L600, \"FALL\",'Master List'!F2:F600, \"2018\",'Master List'!Q2:Q600, \"In Bed\",'Master List'!D2:D600, \"JAN\")","v":0},{"$f":"COUNTIFS('Master List'!L2:L600, \"FALL\",'Master List'!F2:F600, \"2018\",'Master List'!Q2:Q600, \"In Bed\",  'Master List'!D2:D600, \"feb\")","v":0},{"$f":"COUNTIFS('Master List'!L2:L600, \"FALL\",'Master List'!F2:F600, \"2018\",'Master List'!Q2:Q600, \"In Bed\",  'Master List'!D2:D600,  \"Mar\")","v":0},{"$f":"COUNTIFS('Master List'!L2:L600, \"FALL\",'Master List'!F2:F600, \"2018\",'Master List'!Q2:Q600, \"In Bed\",  'Master List'!D2:D600,  \"apr\")","v":0},{"$f":"COUNTIFS('Master List'!L2:L600, \"FALL\",'Master List'!F2:F600, \"2018\",'Master List'!Q2:Q600, \"In Bed\",  'Master List'!D2:D600,  \"may\")","v":0},{"$f":"COUNTIFS('Master List'!L2:L600, \"FALL\",'Master List'!F2:F600, \"2018\",'Master List'!Q2:Q600, \"In Bed\",  'Master List'!D2:D600, \"jun\")","v":0},{"$f":"COUNTIFS('Master List'!L2:L600, \"FALL\",'Master List'!F2:F600, \"2018\",'Master List'!Q2:Q600, \"In Bed\",  'Master List'!D2:D600,  \"jul\")","v":0},{"$f":"COUNTIFS('Master List'!L2:L600, \"FALL\",'Master List'!F2:F600, \"2018\",'Master List'!Q2:Q600, \"In Bed\",  'Master List'!D2:D600, \"aug\")","v":0},{"$f":"COUNTIFS('Master List'!L2:L600, \"FALL\",'Master List'!F2:F600, \"2018\",'Master List'!Q2:Q600, \"In Bed\",  'Master List'!D2:D600,  \"sep\")","v":0},{"$f":"COUNTIFS('Master List'!L2:L600, \"FALL\",'Master List'!F2:F600, \"2018\",'Master List'!Q2:Q600, \"In Bed\",  'Master List'!D2:D600,  \"oct\")","v":0},{"$f":"COUNTIFS('Master List'!L2:L600, \"FALL\",'Master List'!F2:F600, \"2018\",'Master List'!Q2:Q600, \"In Bed\",  'Master List'!D2:D600,  \"nov\")","v":0},{"$f":"COUNTIFS('Master List'!L2:L600, \"FALL\",'Master List'!F2:F600, \"2018\",'Master List'!Q2:Q600, \"In Bed\",  'Master List'!D2:D600,  \"dec\")","v":0},0,{"$f":"SUM(H188:J188)","v":0},0,0]
[null,null,"In Chair",{"$f":"COUNTIFS('Master List'!L2:L600, \"FALL\",'Master List'!F2:F600, \"2018\",'Master List'!Q2:Q600, \"In Chair\")","v":0},{"$f":"COUNTIFS('Master List'!L2:L600, \"FALL\",'Master List'!F2:F600, \"2018\",'Master List'!Q2:Q600, \"In Chair\", 'Master List'!D2:D600, \"JAN\")","v":0},{"$f":"COUNTIFS('Master List'!L2:L600, \"FALL\",'Master List'!F2:F600, \"2018\",'Master List'!Q2:Q600, \"In Chair\",  'Master List'!D2:D600, \"feb\")","v":0},{"$f":"COUNTIFS('Master List'!L2:L600, \"FALL\",'Master List'!F2:F600, \"2018\",'Master List'!Q2:Q600, \"In Chair\",  'Master List'!D2:D600,  \"Mar\")","v":0},{"$f":"COUNTIFS('Master List'!L2:L600, \"FALL\",'Master List'!F2:F600, \"2018\",'Master List'!Q2:Q600, \"In Chair\",  'Master List'!D2:D600,  \"apr\")","v":0},{"$f":"COUNTIFS('Master List'!L2:L600, \"FALL\",'Master List'!F2:F600, \"2018\",'Master List'!Q2:Q600, \"In Chair\",  'Master List'!D2:D600,  \"may\")","v":0},{"$f":"COUNTIFS('Master List'!L2:L600, \"FALL\",'Master List'!F2:F600, \"2018\",'Master List'!Q2:Q600, \"In Chair\",  'Master List'!D2:D600, \"jun\")","v":0},{"$f":"COUNTIFS('Master List'!L2:L600, \"FALL\",'Master List'!F2:F600, \"2018\",'Master List'!Q2:Q600, \"In Chair\",  'Master List'!D2:D600,  \"jul\")","v":0},{"$f":"COUNTIFS('Master List'!L2:L600, \"FALL\",'Master List'!F2:F600, \"2018\",'Master List'!Q2:Q600, \"In Chair\",  'Master List'!D2:D600, \"aug\")","v":0},{"$f":"COUNTIFS('Master List'!L2:L600, \"FALL\",'Master List'!F2:F600, \"2018\",'Master List'!Q2:Q600, \"In Chair\",  'Master List'!D2:D600,  \"sep\")","v":0},{"$f":"COUNTIFS('Master List'!L2:L600, \"FALL\",'Master List'!F2:F600, \"2018\",'Master List'!Q2:Q600, \"In Chair\",  'Master List'!D2:D600,  \"oct\")","v":0},{"$f":"COUNTIFS('Master List'!L2:L600, \"FALL\",'Master List'!F2:F600, \"2018\",'Master List'!Q2:Q600, \"In Chair\",  'Master List'!D2:D600,  \"nov\")","v":0},{"$f":"COUNTIFS('Master List'!L2:L600, \"FALL\",'Master List'!F2:F600, \"2018\",'Master List'!Q2:Q600, \"In Chair\",  'Master List'!D2:D600,  \"dec\")","v":0},0,0,0,0]
[null,null,"Toileting",{"$f":"COUNTIFS('Master List'!L2:L600, \"FALL\",'Master List'!F2:F600, \"2018\",'Master List'!Q2:Q600, \"Toileting\")","v":0},{"$f":"COUNTIFS('Master List'!L2:L600, \"FALL\",'Master List'!F2:F600, \"2018\",'Master List'!Q2:Q600, \"Toileting\",'Master List'!D2:D600, \"JAN\")","v":0},{"$f":"COUNTIFS('Master List'!L2:L600, \"FALL\",'Master List'!F2:F600, \"2018\",'Master List'!Q2:Q600, \"Toileting\",  'Master List'!D2:D600, \"feb\")","v":0},{"$f":"COUNTIFS('Master List'!L2:L600, \"FALL\",'Master List'!F2:F600, \"2018\",'Master List'!Q2:Q600, \"Toileting\",  'Master List'!D2:D600,  \"Mar\")","v":0},{"$f":"COUNTIFS('Master List'!L2:L600, \"FALL\",'Master List'!F2:F600, \"2018\",'Master List'!Q2:Q600, \"Toileting\",  'Master List'!D2:D600,  \"apr\")","v":0},{"$f":"COUNTIFS('Master List'!L2:L600, \"FALL\",'Master List'!F2:F600, \"2018\",'Master List'!Q2:Q600, \"Toileting\",  'Master List'!D2:D600,  \"may\")","v":0},{"$f":"COUNTIFS('Master List'!L2:L600, \"FALL\",'Master List'!F2:F600, \"2018\",'Master List'!Q2:Q600, \"Toileting\",  'Master List'!D2:D600, \"jun\")","v":0},{"$f":"COUNTIFS('Master List'!L2:L600, \"FALL\",'Master List'!F2:F600, \"2018\",'Master List'!Q2:Q600, \"Toileting\",  'Master List'!D2:D600,  \"jul\")","v":0},{"$f":"COUNTIFS('Master List'!L2:L600, \"FALL\",'Master List'!F2:F600, \"2018\",'Master List'!Q2:Q600, \"Toileting\",  'Master List'!D2:D600, \"aug\")","v":0},{"$f":"COUNTIFS('Master List'!L2:L600, \"FALL\",'Master List'!F2:F600, \"2018\",'Master List'!Q2:Q600, \"Toileting\",  'Master List'!D2:D600,  \"sep\")","v":0},{"$f":"COUNTIFS('Master List'!L2:L600, \"FALL\",'Master List'!F2:F600, \"2018\",'Master List'!Q2:Q600, \"Toileting\",  'Master List'!D2:D600,  \"oct\")","v":0},{"$f":"COUNTIFS('Master List'!L2:L600, \"FALL\",'Master List'!F2:F600, \"2018\",'Master List'!Q2:Q600, \"Toileting\",  'Master List'!D2:D600,  \"nov\")","v":0},{"$f":"COUNTIFS('Master List'!L2:L600, \"FALL\",'Master List'!F2:F600, \"2018\",'Master List'!Q2:Q600, \"Toileting\",  'Master List'!D2:D600,  \"dec\")","v":0},0,0,0,0]
[null,null,"Reaching/Leaning",{"$f":"COUNTIFS('Master List'!L2:L600, \"FALL\",'Master List'!F2:F600, \"2018\",'Master List'!Q2:Q600, \"reaching/leaning\")","v":0},{"$f":"COUNTIFS('Master List'!L2:L600, \"FALL\",'Master List'!F2:F600, \"2018\",'Master List'!Q2:Q600, \"reaching/leaning\",'Master List'!D2:D600, \"JAN\")","v":0},{"$f":"COUNTIFS('Master List'!L2:L600, \"FALL\",'Master List'!F2:F600, \"2018\",'Master List'!Q2:Q600, \"reaching/leaning\",  'Master List'!D2:D600, \"feb\")","v":0},{"$f":"COUNTIFS('Master List'!L2:L600, \"FALL\",'Master List'!F2:F600, \"2018\",'Master List'!Q2:Q600, \"reaching/leaning\",  'Master List'!D2:D600,  \"Mar\")","v":0},{"$f":"COUNTIFS('Master List'!L2:L600, \"FALL\",'Master List'!F2:F600, \"2018\",'Master List'!Q2:Q600, \"reaching/leaning\",  'Master List'!D2:D600,  \"apr\")","v":0},{"$f":"COUNTIFS('Master List'!L2:L600, \"FALL\",'Master List'!F2:F600, \"2018\",'Master List'!Q2:Q600, \"reaching/leaning\",  'Master List'!D2:D600,  \"may\")","v":0},{"$f":"COUNTIFS('Master List'!L2:L600, \"FALL\",'Master List'!F2:F600, \"2018\",'Master List'!Q2:Q600, \"reaching/leaning\",  'Master List'!D2:D600, \"jun\")","v":0},{"$f":"COUNTIFS('Master List'!L2:L600, \"FALL\",'Master List'!F2:F600, \"2018\",'Master List'!Q2:Q600, \"reaching/leaning\",  'Master List'!D2:D600,  \"jul\")","v":0},{"$f":"COUNTIFS('Master List'!L2:L600, \"FALL\",'Master List'!F2:F600, \"2018\",'Master List'!Q2:Q600, \"reaching/leaning\",  'Master List'!D2:D600, \"aug\")","v":0},{"$f":"COUNTIFS('Master List'!L2:L600, \"FALL\",'Master List'!F2:F600, \"2018\",'Master List'!Q2:Q600, \"reaching/leaning\",  'Master List'!D2:D600,  \"sep\")","v":0},{"$f":"COUNTIFS('Master List'!L2:L600, \"FALL\",'Master List'!F2:F600, \"2018\",'Master List'!Q2:Q600, \"reaching/leaning\",  'Master List'!D2:D600,  \"oct\")","v":0},{"$f":"COUNTIFS('Master List'!L2:L600, \"FALL\",'Master List'!F2:F600, \"2018\",'Master List'!Q2:Q600, \"reaching/leaning\",  'Master List'!D2:D600,  \"nov\")","v":0},{"$f":"COUNTIFS('Master List'!L2:L600, \"FALL\",'Master List'!F2:F600, \"2018\",'Master List'!Q2:Q600, \"reaching/leaning\",  'Master List'!D2:D600,  \"dec\")","v":0},0,0,0,0]
[null,null,"Standing Up",{"$f":"COUNTIFS('Master List'!L2:L600, \"FALL\",'Master List'!F2:F600, \"2018\",'Master List'!Q2:Q600, \"standing up\")","v":0},{"$f":"COUNTIFS('Master List'!L2:L600, \"FALL\",'Master List'!F2:F600, \"2018\",'Master List'!Q2:Q600, \"standing up\",'Master List'!D2:D600, \"JAN\")","v":0},{"$f":"COUNTIFS('Master List'!L2:L600, \"FALL\",'Master List'!F2:F600, \"2018\",'Master List'!Q2:Q600, \"standing up\",  'Master List'!D2:D600, \"feb\")","v":0},{"$f":"COUNTIFS('Master List'!L2:L600, \"FALL\",'Master List'!F2:F600, \"2018\",'Master List'!Q2:Q600, \"standing up\",  'Master List'!D2:D600,  \"Mar\")","v":0},{"$f":"COUNTIFS('Master List'!L2:L600, \"FALL\",'Master List'!F2:F600, \"2018\",'Master List'!Q2:Q600, \"standing up\",  'Master List'!D2:D600,  \"apr\")","v":0},{"$f":"COUNTIFS('Master List'!L2:L600, \"FALL\",'Master List'!F2:F600, \"2018\",'Master List'!Q2:Q600, \"standing up\",  'Master List'!D2:D600,  \"may\")","v":0},{"$f":"COUNTIFS('Master List'!L2:L600, \"FALL\",'Master List'!F2:F600, \"2018\",'Master List'!Q2:Q600, \"standing up\",  'Master List'!D2:D600, \"jun\")","v":0},{"$f":"COUNTIFS('Master List'!L2:L600, \"FALL\",'Master List'!F2:F600, \"2018\",'Master List'!Q2:Q600, \"standing up\",  'Master List'!D2:D600,  \"jul\")","v":0},{"$f":"COUNTIFS('Master List'!L2:L600, \"FALL\",'Master List'!F2:F600, \"2018\",'Master List'!Q2:Q600, \"standing up\",  'Master List'!D2:D600, \"aug\")","v":0},{"$f":"COUNTIFS('Master List'!L2:L600, \"FALL\",'Master List'!F2:F600, \"2018\",'Master List'!Q2:Q600, \"standing up\",  'Master List'!D2:D600,  \"sep\")","v":0},{"$f":"COUNTIFS('Master List'!L2:L600, \"FALL\",'Master List'!F2:F600, \"2018\",'Master List'!Q2:Q600, \"standing up\",  'Master List'!D2:D600,  \"oct\")","v":0},{"$f":"COUNTIFS('Master List'!L2:L600, \"FALL\",'Master List'!F2:F600, \"2018\",'Master List'!Q2:Q600, \"standing up\",  'Master List'!D2:D600,  \"nov\")","v":0},{"$f":"COUNTIFS('Master List'!L2:L600, \"FALL\",'Master List'!F2:F600, \"2018\",'Master List'!Q2:Q600, \"standing up\",  'Master List'!D2:D600,  \"dec\")","v":0},0,0,0,0]
[null,null,"Unknown",{"$f":"COUNTIFS('Master List'!L2:L600, \"FALL\",'Master List'!F2:F600, \"2018\",'Master List'!Q2:Q600, \"Unknown\")","v":0},{"$f":"COUNTIFS('Master List'!L3:L401, \"FALL\",'Master List'!F3:F401, \"2018\",'Master List'!Q3:Q401, \"unknown\",'Master List'!D32:D430, \"JAN\")","v":0},{"$f":"COUNTIFS('Master List'!L3:L401, \"FALL\",'Master List'!F3:F401, \"2018\",'Master List'!Q3:Q401, \"unknown\",  'Master List'!D32:D430, \"feb\")","v":0},{"$f":"COUNTIFS('Master List'!L3:L401, \"FALL\",'Master List'!F3:F401, \"2018\",'Master List'!Q3:Q401, \"unknown\",  'Master List'!D32:D430,  \"Mar\")","v":0},{"$f":"COUNTIFS('Master List'!L3:L401, \"FALL\",'Master List'!F3:F401, \"2018\",'Master List'!Q3:Q401, \"unknown\",  'Master List'!D32:D430,  \"apr\")","v":0},{"$f":"COUNTIFS('Master List'!L3:L401, \"FALL\",'Master List'!F3:F401, \"2018\",'Master List'!Q3:Q401, \"unknown\",  'Master List'!D32:D430,  \"may\")","v":0},{"$f":"COUNTIFS('Master List'!L3:L401, \"FALL\",'Master List'!F3:F401, \"2018\",'Master List'!Q3:Q401, \"unknown\",  'Master List'!D32:D430, \"jun\")","v":0},{"$f":"COUNTIFS('Master List'!L3:L401, \"FALL\",'Master List'!F3:F401, \"2018\",'Master List'!Q3:Q401, \"unknown\",  'Master List'!D32:D430,  \"jul\")","v":0},{"$f":"COUNTIFS('Master List'!L3:L401, \"FALL\",'Master List'!F3:F401, \"2018\",'Master List'!Q3:Q401, \"unknown\",  'Master List'!D32:D430, \"aug\")","v":0},{"$f":"COUNTIFS('Master List'!L3:L401, \"FALL\",'Master List'!F3:F401, \"2018\",'Master List'!Q3:Q401, \"unknown\",  'Master List'!D32:D430,  \"sep\")","v":0},{"$f":"COUNTIFS('Master List'!L3:L401, \"FALL\",'Master List'!F3:F401, \"2018\",'Master List'!Q3:Q401, \"unknown\",  'Master List'!D32:D430,  \"oct\")","v":0},{"$f":"COUNTIFS('Master List'!L3:L401, \"FALL\",'Master List'!F3:F401, \"2018\",'Master List'!Q3:Q401, \"unknown\",  'Master List'!D32:D430,  \"nov\")","v":0},{"$f":"COUNTIFS('Master List'!L3:L401, \"FALL\",'Master List'!F3:F401, \"2018\",'Master List'!Q3:Q401, \"unknown\",  'Master List'!D32:D430,  \"dec\")","v":0},0,0,0,0]
[null,null,"N/A",{"$f":"COUNTIFS('Master List'!L2:L600, \"FALL\",'Master List'!F2:F600, \"2018\",'Master List'!Q2:Q600, \"n/a\")","v":0},{"$f":"COUNTIFS('Master List'!L4:L402, \"FALL\",'Master List'!F4:F402, \"2018\",'Master List'!Q4:Q402, \"n/a\",'Master List'!D33:D431, \"JAN\")","v":0},{"$f":"COUNTIFS('Master List'!L4:L402, \"FALL\",'Master List'!F4:F402, \"2018\",'Master List'!Q4:Q402, \"n/a\",  'Master List'!D33:D431, \"feb\")","v":0},{"$f":"COUNTIFS('Master List'!L4:L402, \"FALL\",'Master List'!F4:F402, \"2018\",'Master List'!Q4:Q402, \"n/a\",  'Master List'!D33:D431,  \"Mar\")","v":0},{"$f":"COUNTIFS('Master List'!L4:L402, \"FALL\",'Master List'!F4:F402, \"2018\",'Master List'!Q4:Q402, \"n/a\",  'Master List'!D33:D431,  \"apr\")","v":0},{"$f":"COUNTIFS('Master List'!L4:L402, \"FALL\",'Master List'!F4:F402, \"2018\",'Master List'!Q4:Q402, \"n/a\",  'Master List'!D33:D431,  \"may\")","v":0},{"$f":"COUNTIFS('Master List'!L4:L402, \"FALL\",'Master List'!F4:F402, \"2018\",'Master List'!Q4:Q402, \"n/a\",  'Master List'!D33:D431, \"jun\")","v":0},{"$f":"COUNTIFS('Master List'!L4:L402, \"FALL\",'Master List'!F4:F402, \"2018\",'Master List'!Q4:Q402, \"n/a\",  'Master List'!D33:D431,  \"jul\")","v":0},{"$f":"COUNTIFS('Master List'!L4:L402, \"FALL\",'Master List'!F4:F402, \"2018\",'Master List'!Q4:Q402, \"n/a\",  'Master List'!D33:D431, \"aug\")","v":0},{"$f":"COUNTIFS('Master List'!L4:L402, \"FALL\",'Master List'!F4:F402, \"2018\",'Master List'!Q4:Q402, \"n/a\",  'Master List'!D33:D431,  \"sep\")","v":0},{"$f":"COUNTIFS('Master List'!L4:L402, \"FALL\",'Master List'!F4:F402, \"2018\",'Master List'!Q4:Q402, \"n/a\",  'Master List'!D33:D431,  \"oct\")","v":0},{"$f":"COUNTIFS('Master List'!L4:L402, \"FALL\",'Master List'!F4:F402, \"2018\",'Master List'!Q4:Q402, \"n/a\",  'Master List'!D33:D431,  \"nov\")","v":0},{"$f":"COUNTIFS('Master List'!L4:L402, \"FALL\",'Master List'!F4:F402, \"2018\",'Master List'!Q4:Q402, \"n/a\",  'Master List'!D33:D431,  \"dec\")","v":0},0,0,0,0]
[null,null,"Other",{"$f":"COUNTIFS('Master List'!L2:L600, \"FALL\",'Master List'!F2:F600, \"2018\",'Master List'!Q2:Q600, \"other\")","v":0},{"$f":"COUNTIFS('Master List'!L5:L403, \"FALL\",'Master List'!F5:F403, \"2018\",'Master List'!Q5:Q403, \"other\",'Master List'!D34:D432, \"JAN\")","v":0},{"$f":"COUNTIFS('Master List'!L5:L403, \"FALL\",'Master List'!F5:F403, \"2018\",'Master List'!Q5:Q403, \"other\",  'Master List'!D34:D432, \"feb\")","v":0},{"$f":"COUNTIFS('Master List'!L5:L403, \"FALL\",'Master List'!F5:F403, \"2018\",'Master List'!Q5:Q403, \"other\",  'Master List'!D34:D432,  \"Mar\")","v":0},{"$f":"COUNTIFS('Master List'!L5:L403, \"FALL\",'Master List'!F5:F403, \"2018\",'Master List'!Q5:Q403, \"other\",  'Master List'!D34:D432,  \"apr\")","v":0},{"$f":"COUNTIFS('Master List'!L5:L403, \"FALL\",'Master List'!F5:F403, \"2018\",'Master List'!Q5:Q403, \"other\",  'Master List'!D34:D432,  \"may\")","v":0},{"$f":"COUNTIFS('Master List'!L5:L403, \"FALL\",'Master List'!F5:F403, \"2018\",'Master List'!Q5:Q403, \"other\",  'Master List'!D34:D432, \"jun\")","v":0},{"$f":"COUNTIFS('Master List'!L5:L403, \"FALL\",'Master List'!F5:F403, \"2018\",'Master List'!Q5:Q403, \"other\",  'Master List'!D34:D432,  \"jul\")","v":0},{"$f":"COUNTIFS('Master List'!L5:L403, \"FALL\",'Master List'!F5:F403, \"2018\",'Master List'!Q5:Q403, \"other\",  'Master List'!D34:D432, \"aug\")","v":0},{"$f":"COUNTIFS('Master List'!L5:L403, \"FALL\",'Master List'!F5:F403, \"2018\",'Master List'!Q5:Q403, \"other\",  'Master List'!D34:D432,  \"sep\")","v":0},{"$f":"COUNTIFS('Master List'!L5:L403, \"FALL\",'Master List'!F5:F403, \"2018\",'Master List'!Q5:Q403, \"other\",  'Master List'!D34:D432,  \"oct\")","v":0},{"$f":"COUNTIFS('Master List'!L5:L403, \"FALL\",'Master List'!F5:F403, \"2018\",'Master List'!Q5:Q403, \"other\",  'Master List'!D34:D432,  \"nov\")","v":0},{"$f":"COUNTIFS('Master List'!L5:L403, \"FALL\",'Master List'!F5:F403, \"2018\",'Master List'!Q5:Q403, \"other\",  'Master List'!D34:D432,  \"dec\")","v":0},0,0,0,0]
[]
[]
[]
[]
[]
[]
[]
[]
[]
[]
[]
[]
[]
[]
[]
[]
[]
[]
[]
[]
[]
[null,null,"Falls by Severity - 2018"]
[null,null,null,"Total 2018","jan ","feb","mar","apr","may","jun","jul","aug","sept","oct","nov","dec ","q1","q2","q3","q4"]
[null,null,"A- Unsafe Condition No Event",{"$f":"COUNTIFS('Master List'!L2:L600, \"FALL\",'Master List'!F2:F600, \"2018\",'Master List'!R2:R600, \"A- Unsafe Condition No Event\")","v":0},{"$f":"COUNTIFS('Master List'!L2:L600, \"FALL\",'Master List'!F2:F600, \"2018\",'Master List'!R2:R600, \"A- Unsafe Condition No Event\",  'Master List'!D2:D600, \"jan\")","v":0},{"$f":"COUNTIFS('Master List'!L2:L600, \"FALL\",'Master List'!F2:F600, \"2018\",'Master List'!R2:R600, \"A- Unsafe Condition No Event\",  'Master List'!D2:D600,  \"Feb\",  'Master List'!D2:D600, \"feb\")","v":0},{"$f":"COUNTIFS('Master List'!L2:L600, \"FALL\",'Master List'!F2:F600, \"2018\",'Master List'!R2:R600, \"A- Unsafe Condition No Event\",  'Master List'!D2:D600,  \"Mar\")","v":0},{"$f":"COUNTIFS('Master List'!L2:L600, \"FALL\",'Master List'!F2:F600, \"2018\",'Master List'!R2:R600, \"A- Unsafe Condition No Event\",  'Master List'!D2:D600,  \"apr\")","v":0},{"$f":"COUNTIFS('Master List'!L2:L600, \"FALL\",'Master List'!F2:F600, \"2018\",'Master List'!R2:R600, \"A- Unsafe Condition No Event\",  'Master List'!D2:D600,  \"may\")","v":0},{"$f":"COUNTIFS('Master List'!L2:L600, \"FALL\",'Master List'!F2:F600, \"2018\",'Master List'!R2:R600, \"A- Unsafe Condition No Event\",  'Master List'!D2:D600, \"jun\")","v":0},{"$f":"COUNTIFS('Master List'!L2:L600, \"FALL\",'Master List'!F2:F600, \"2018\",'Master List'!R2:R600, \"A- Unsafe Condition No Event\",  'Master List'!D2:D600,  \"jul\")","v":0},{"$f":"COUNTIFS('Master List'!L2:L600, \"FALL\",'Master List'!F2:F600, \"2018\",'Master List'!R2:R600, \"A- Unsafe Condition No Event\",  'Master List'!D2:D600, \"aug\")","v":0},{"$f":"COUNTIFS('Master List'!L2:L600, \"FALL\",'Master List'!F2:F600, \"2018\",'Master List'!R2:R600, \"A- Unsafe Condition No Event\",  'Master List'!D2:D600,  \"sep\")","v":0},{"$f":"COUNTIFS('Master List'!L2:L600, \"FALL\",'Master List'!F2:F600, \"2018\",'Master List'!R2:R600, \"A- Unsafe Condition No Event\",  'Master List'!D2:D600,  \"oct\")","v":0},{"$f":"COUNTIFS('Master List'!L2:L600, \"FALL\",'Master List'!F2:F600, \"2018\",'Master List'!R2:R600, \"A- Unsafe Condition No Event\",  'Master List'!D2:D600,  \"nov\")","v":0},{"$f":"COUNTIFS('Master List'!L2:L600, \"FALL\",'Master List'!F2:F600, \"2018\",'Master List'!R2:R600, \"A- Unsafe Condition No Event\",  'Master List'!D2:D600,  \"dec\")","v":0},{"$f":"SUM(E219:G219)","v":0},{"$f":"SUM(H219:J219)","v":0},{"$f":"SUM(K219:M219)","v":0},{"$f":"SUM(N219:P219)","v":0}]
[null,null,"B- Near Miss, Event did not reach resident",{"$f":"COUNTIFS('Master List'!L2:L600, \"FALL\",'Master List'!F2:F600, \"2018\",'Master List'!R2:R600, \"B- Near Miss, Event did not reach resident\")","v":0},{"$f":"COUNTIFS('Master List'!L2:L600, \"FALL\",'Master List'!F2:F600, \"2018\",'Master List'!R2:R600, \"B- Near Miss, Event did not reach resident\",'Master List'!D2:D600, \"JAN\")","v":0},{"$f":"COUNTIFS('Master List'!L2:L600, \"FALL\",'Master List'!F2:F600, \"2018\",'Master List'!R2:R600, \"B- Near Miss, Event did not reach resident\",  'Master List'!D2:D600, \"feb\")","v":0},{"$f":"COUNTIFS('Master List'!L2:L600, \"FALL\",'Master List'!F2:F600, \"2018\",'Master List'!R2:R600, \"B- Near Miss, Event did not reach resident\",  'Master List'!D2:D600,  \"Mar\")","v":0},{"$f":"COUNTIFS('Master List'!L2:L600, \"FALL\",'Master List'!F2:F600, \"2018\",'Master List'!R2:R600, \"B- Near Miss, Event did not reach resident\",  'Master List'!D2:D600,  \"apr\")","v":0},{"$f":"COUNTIFS('Master List'!L2:L600, \"FALL\",'Master List'!F2:F600, \"2018\",'Master List'!R2:R600, \"B- Near Miss, Event did not reach resident\",  'Master List'!D2:D600,  \"may\")","v":0},{"$f":"COUNTIFS('Master List'!L2:L600, \"FALL\",'Master List'!F2:F600, \"2018\",'Master List'!R2:R600, \"B- Near Miss, Event did not reach resident\",  'Master List'!D2:D600, \"jun\")","v":0},{"$f":"COUNTIFS('Master List'!L2:L600, \"FALL\",'Master List'!F2:F600, \"2018\",'Master List'!R2:R600, \"B- Near Miss, Event did not reach resident\",  'Master List'!D2:D600,  \"jul\")","v":0},{"$f":"COUNTIFS('Master List'!L2:L600, \"FALL\",'Master List'!F2:F600, \"2018\",'Master List'!R2:R600, \"B- Near Miss, Event did not reach resident\",  'Master List'!D2:D600, \"aug\")","v":0},{"$f":"COUNTIFS('Master List'!L2:L600, \"FALL\",'Master List'!F2:F600, \"2018\",'Master List'!R2:R600, \"B- Near Miss, Event did not reach resident\",  'Master List'!D2:D600,  \"sep\")","v":0},{"$f":"COUNTIFS('Master List'!L2:L600, \"FALL\",'Master List'!F2:F600, \"2018\",'Master List'!R2:R600, \"B- Near Miss, Event did not reach resident\",  'Master List'!D2:D600,  \"oct\")","v":0},{"$f":"COUNTIFS('Master List'!L2:L600, \"FALL\",'Master List'!F2:F600, \"2018\",'Master List'!R2:R600, \"B- Near Miss, Event did not reach resident\",  'Master List'!D2:D600,  \"nov\")","v":0},{"$f":"COUNTIFS('Master List'!L2:L600, \"FALL\",'Master List'!F2:F600, \"2018\",'Master List'!R2:R600, \"B- Near Miss, Event did not reach resident\",  'Master List'!D2:D600,  \"dec\")","v":0},0,{"$f":"SUM(H220:K220)","v":0},0,0]
[null,null,"C- No Injury Event",{"$f":"COUNTIFS('Master List'!L2:L600, \"FALL\",'Master List'!F2:F600, \"2018\",'Master List'!R2:R600, \"C- No Injury Event\")","v":0},{"$f":"COUNTIFS('Master List'!L2:L600, \"FALL\",'Master List'!F2:F600, \"2018\",'Master List'!R2:R600, \"C- No Injury Event\",'Master List'!D2:D600, \"JAN\")","v":0},{"$f":"COUNTIFS('Master List'!L2:L600, \"FALL\",'Master List'!F2:F600, \"2018\",'Master List'!R2:R600, \"C- No Injury Event\",  'Master List'!D2:D600, \"feb\")","v":0},{"$f":"COUNTIFS('Master List'!L2:L600, \"FALL\",'Master List'!F2:F600, \"2018\",'Master List'!R2:R600, \"C- No Injury Event\",  'Master List'!D2:D600,  \"Mar\")","v":0},{"$f":"COUNTIFS('Master List'!L2:L600, \"FALL\",'Master List'!F2:F600, \"2018\",'Master List'!R2:R600, \"C- No Injury Event\",  'Master List'!D2:D600,  \"apr\")","v":0},{"$f":"COUNTIFS('Master List'!L2:L600, \"FALL\",'Master List'!F2:F600, \"2018\",'Master List'!R2:R600, \"C- No Injury Event\",  'Master List'!D2:D600,  \"may\")","v":0},{"$f":"COUNTIFS('Master List'!L2:L600, \"FALL\",'Master List'!F2:F600, \"2018\",'Master List'!R2:R600, \"C- No Injury Event\",  'Master List'!D2:D600, \"jun\")","v":0},{"$f":"COUNTIFS('Master List'!L2:L600, \"FALL\",'Master List'!F2:F600, \"2018\",'Master List'!R2:R600, \"C- No Injury Event\",  'Master List'!D2:D600,  \"jul\")","v":0},{"$f":"COUNTIFS('Master List'!L2:L600, \"FALL\",'Master List'!F2:F600, \"2018\",'Master List'!R2:R600, \"C- No Injury Event\",  'Master List'!D2:D600, \"aug\")","v":0},{"$f":"COUNTIFS('Master List'!L2:L600, \"FALL\",'Master List'!F2:F600, \"2018\",'Master List'!R2:R600, \"C- No Injury Event\",  'Master List'!D2:D600,  \"sep\")","v":0},{"$f":"COUNTIFS('Master List'!L2:L600, \"FALL\",'Master List'!F2:F600, \"2018\",'Master List'!R2:R600, \"C- No Injury Event\",  'Master List'!D2:D600,  \"oct\")","v":0},{"$f":"COUNTIFS('Master List'!L2:L600, \"FALL\",'Master List'!F2:F600, \"2018\",'Master List'!R2:R600, \"C- No Injury Event\",  'Master List'!D2:D600,  \"nov\")","v":0},{"$f":"COUNTIFS('Master List'!L2:L600, \"FALL\",'Master List'!F2:F600, \"2018\",'Master List'!R2:R600, \"C- No Injury Event\",  'Master List'!D2:D600,  \"dec\")","v":0},0,{"$f":"SUM(H221:J221)","v":0},0,0]
[null,null,"D- No harm, but monitoring needed ex. Skin tear",{"$f":"COUNTIFS('Master List'!L2:L600, \"FALL\",'Master List'!F2:F600, \"2018\",'Master List'!R2:R600, \"D- No harm, but monitoring needed ex. Skin tear\")","v":0},{"$f":"COUNTIFS('Master List'!L2:L600, \"FALL\",'Master List'!F2:F600, \"2018\",'Master List'!R2:R600, \"D- No harm, but monitoring needed ex. Skin tear\", 'Master List'!D2:D600, \"JAN\")","v":0},{"$f":"COUNTIFS('Master List'!L2:L600, \"FALL\",'Master List'!F2:F600, \"2018\",'Master List'!R2:R600, \"D- No harm, but monitoring needed ex. Skin tear\",  'Master List'!D2:D600, \"feb\")","v":0},{"$f":"COUNTIFS('Master List'!L2:L600, \"FALL\",'Master List'!F2:F600, \"2018\",'Master List'!R2:R600, \"D- No harm, but monitoring needed ex. Skin tear\",  'Master List'!D2:D600,  \"Mar\")","v":0},{"$f":"COUNTIFS('Master List'!L2:L600, \"FALL\",'Master List'!F2:F600, \"2018\",'Master List'!R2:R600, \"D- No harm, but monitoring needed ex. Skin tear\",  'Master List'!D2:D600,  \"apr\")","v":0},{"$f":"COUNTIFS('Master List'!L2:L600, \"FALL\",'Master List'!F2:F600, \"2018\",'Master List'!R2:R600, \"D- No harm, but monitoring needed ex. Skin tear\",  'Master List'!D2:D600,  \"may\")","v":0},{"$f":"COUNTIFS('Master List'!L2:L600, \"FALL\",'Master List'!F2:F600, \"2018\",'Master List'!R2:R600, \"D- No harm, but monitoring needed ex. Skin tear\",  'Master List'!D2:D600, \"jun\")","v":0},{"$f":"COUNTIFS('Master List'!L2:L600, \"FALL\",'Master List'!F2:F600, \"2018\",'Master List'!R2:R600, \"D- No harm, but monitoring needed ex. Skin tear\",  'Master List'!D2:D600,  \"jul\")","v":0},{"$f":"COUNTIFS('Master List'!L2:L600, \"FALL\",'Master List'!F2:F600, \"2018\",'Master List'!R2:R600, \"D- No harm, but monitoring needed ex. Skin tear\",  'Master List'!D2:D600, \"aug\")","v":0},{"$f":"COUNTIFS('Master List'!L2:L600, \"FALL\",'Master List'!F2:F600, \"2018\",'Master List'!R2:R600, \"D- No harm, but monitoring needed ex. Skin tear\",  'Master List'!D2:D600,  \"sep\")","v":0},{"$f":"COUNTIFS('Master List'!L2:L600, \"FALL\",'Master List'!F2:F600, \"2018\",'Master List'!R2:R600, \"D- No harm, but monitoring needed ex. Skin tear\",  'Master List'!D2:D600,  \"oct\")","v":0},{"$f":"COUNTIFS('Master List'!L2:L600, \"FALL\",'Master List'!F2:F600, \"2018\",'Master List'!R2:R600, \"D- No harm, but monitoring needed ex. Skin tear\",  'Master List'!D2:D600,  \"nov\")","v":0},{"$f":"COUNTIFS('Master List'!L2:L600, \"FALL\",'Master List'!F2:F600, \"2018\",'Master List'!R2:R600, \"D- No harm, but monitoring needed ex. Skin tear\",  'Master List'!D2:D600,  \"dec\")","v":0},0,0,0,0]
[null,null,"E- Temporary harm, ex. Sutures",{"$f":"COUNTIFS('Master List'!L2:L600, \"FALL\",'Master List'!F2:F600, \"2018\",'Master List'!R2:R600, \"E- Temporary harm, ex. Sutures\")","v":0},{"$f":"COUNTIFS('Master List'!L2:L600, \"FALL\",'Master List'!F2:F600, \"2018\",'Master List'!R2:R600, \"E- Temporary harm, ex. Sutures\",'Master List'!D2:D600, \"JAN\")","v":0},{"$f":"COUNTIFS('Master List'!L2:L600, \"FALL\",'Master List'!F2:F600, \"2018\",'Master List'!R2:R600, \"E- Temporary harm, ex. Sutures\",  'Master List'!D2:D600, \"feb\")","v":0},{"$f":"COUNTIFS('Master List'!L2:L600, \"FALL\",'Master List'!F2:F600, \"2018\",'Master List'!R2:R600, \"E- Temporary harm, ex. Sutures\",  'Master List'!D2:D600,  \"Mar\")","v":0},{"$f":"COUNTIFS('Master List'!L2:L600, \"FALL\",'Master List'!F2:F600, \"2018\",'Master List'!R2:R600, \"E- Temporary harm, ex. Sutures\",  'Master List'!D2:D600,  \"apr\")","v":0},{"$f":"COUNTIFS('Master List'!L2:L600, \"FALL\",'Master List'!F2:F600, \"2018\",'Master List'!R2:R600, \"E- Temporary harm, ex. Sutures\",  'Master List'!D2:D600,  \"may\")","v":0},{"$f":"COUNTIFS('Master List'!L2:L600, \"FALL\",'Master List'!F2:F600, \"2018\",'Master List'!R2:R600, \"E- Temporary harm, ex. Sutures\",  'Master List'!D2:D600, \"jun\")","v":0},{"$f":"COUNTIFS('Master List'!L2:L600, \"FALL\",'Master List'!F2:F600, \"2018\",'Master List'!R2:R600, \"E- Temporary harm, ex. Sutures\",  'Master List'!D2:D600,  \"jul\")","v":0},{"$f":"COUNTIFS('Master List'!L2:L600, \"FALL\",'Master List'!F2:F600, \"2018\",'Master List'!R2:R600, \"E- Temporary harm, ex. Sutures\",  'Master List'!D2:D600, \"aug\")","v":0},{"$f":"COUNTIFS('Master List'!L2:L600, \"FALL\",'Master List'!F2:F600, \"2018\",'Master List'!R2:R600, \"E- Temporary harm, ex. Sutures\",  'Master List'!D2:D600,  \"sep\")","v":0},{"$f":"COUNTIFS('Master List'!L2:L600, \"FALL\",'Master List'!F2:F600, \"2018\",'Master List'!R2:R600, \"E- Temporary harm, ex. Sutures\",  'Master List'!D2:D600,  \"oct\")","v":0},{"$f":"COUNTIFS('Master List'!L2:L600, \"FALL\",'Master List'!F2:F600, \"2018\",'Master List'!R2:R600, \"E- Temporary harm, ex. Sutures\",  'Master List'!D2:D600,  \"nov\")","v":0},{"$f":"COUNTIFS('Master List'!L2:L600, \"FALL\",'Master List'!F2:F600, \"2018\",'Master List'!R2:R600, \"E- Temporary harm, ex. Sutures\",  'Master List'!D2:D600,  \"dec\")","v":0},0,0,0,0]
[null,null,"F- Temporary harm with hospitalization ex. PU with hosptialization for tx",{"$f":"COUNTIFS('Master List'!L2:L600, \"FALL\",'Master List'!F2:F600, \"2018\",'Master List'!R2:R600, \"F- Temporary harm with hospitalization ex. PU with hosptialization for tx\")","v":0},{"$f":"COUNTIFS('Master List'!L2:L600, \"FALL\",'Master List'!F2:F600, \"2018\",'Master List'!R2:R600, \"F- Temporary harm with hospitalization ex. PU with hosptialization for tx\",'Master List'!D2:D600, \"JAN\")","v":0},{"$f":"COUNTIFS('Master List'!L2:L600, \"FALL\",'Master List'!F2:F600, \"2018\",'Master List'!R2:R600, \"F- Temporary harm with hospitalization ex. PU with hosptialization for tx\",  'Master List'!D2:D600, \"feb\")","v":0},{"$f":"COUNTIFS('Master List'!L2:L600, \"FALL\",'Master List'!F2:F600, \"2018\",'Master List'!R2:R600, \"F- Temporary harm with hospitalization ex. PU with hosptialization for tx\",  'Master List'!D2:D600,  \"Mar\")","v":0},{"$f":"COUNTIFS('Master List'!L2:L600, \"FALL\",'Master List'!F2:F600, \"2018\",'Master List'!R2:R600, \"F- Temporary harm with hospitalization ex. PU with hosptialization for tx\",  'Master List'!D2:D600,  \"apr\")","v":0},{"$f":"COUNTIFS('Master List'!L2:L600, \"FALL\",'Master List'!F2:F600, \"2018\",'Master List'!R2:R600, \"F- Temporary harm with hospitalization ex. PU with hosptialization for tx\",  'Master List'!D2:D600,  \"may\")","v":0},{"$f":"COUNTIFS('Master List'!L2:L600, \"FALL\",'Master List'!F2:F600, \"2018\",'Master List'!R2:R600, \"F- Temporary harm with hospitalization ex. PU with hosptialization for tx\",  'Master List'!D2:D600, \"jun\")","v":0},{"$f":"COUNTIFS('Master List'!L2:L600, \"FALL\",'Master List'!F2:F600, \"2018\",'Master List'!R2:R600, \"F- Temporary harm with hospitalization ex. PU with hosptialization for tx\",  'Master List'!D2:D600,  \"jul\")","v":0},{"$f":"COUNTIFS('Master List'!L2:L600, \"FALL\",'Master List'!F2:F600, \"2018\",'Master List'!R2:R600, \"F- Temporary harm with hospitalization ex. PU with hosptialization for tx\",  'Master List'!D2:D600, \"aug\")","v":0},{"$f":"COUNTIFS('Master List'!L2:L600, \"FALL\",'Master List'!F2:F600, \"2018\",'Master List'!R2:R600, \"F- Temporary harm with hospitalization ex. PU with hosptialization for tx\",  'Master List'!D2:D600,  \"sep\")","v":0},{"$f":"COUNTIFS('Master List'!L2:L600, \"FALL\",'Master List'!F2:F600, \"2018\",'Master List'!R2:R600, \"F- Temporary harm with hospitalization ex. PU with hosptialization for tx\",  'Master List'!D2:D600,  \"oct\")","v":0},{"$f":"COUNTIFS('Master List'!L2:L600, \"FALL\",'Master List'!F2:F600, \"2018\",'Master List'!R2:R600, \"F- Temporary harm with hospitalization ex. PU with hosptialization for tx\",  'Master List'!D2:D600,  \"nov\")","v":0},{"$f":"COUNTIFS('Master List'!L2:L600, \"FALL\",'Master List'!F2:F600, \"2018\",'Master List'!R2:R600, \"F- Temporary harm with hospitalization ex. PU with hosptialization for tx\",  'Master List'!D2:D600,  \"dec\")","v":0},0,0,0,0]
[null,null,"G- May have contributed to permanent harm ex. Bone fracture, surgical intervention",{"$f":"COUNTIFS('Master List'!L2:L600, \"FALL\",'Master List'!F2:F600, \"2018\",'Master List'!R2:R600, \"G- May have contributed to permanent harm ex. Bone fracture, surgical intervention\")","v":0},{"$f":"COUNTIFS('Master List'!L2:L600, \"FALL\",'Master List'!F2:F600, \"2018\",'Master List'!R2:R600, \"G- May have contributed to permanent harm ex. Bone fracture, surgical intervention\",'Master List'!D2:D600, \"JAN\")","v":0},{"$f":"COUNTIFS('Master List'!L2:L600, \"FALL\",'Master List'!F2:F600, \"2018\",'Master List'!R2:R600, \"G- May have contributed to permanent harm ex. Bone fracture, surgical intervention\",  'Master List'!D2:D600, \"feb\")","v":0},{"$f":"COUNTIFS('Master List'!L2:L600, \"FALL\",'Master List'!F2:F600, \"2018\",'Master List'!R2:R600, \"G- May have contributed to permanent harm ex. Bone fracture, surgical intervention\",  'Master List'!D2:D600,  \"Mar\")","v":0},{"$f":"COUNTIFS('Master List'!L2:L600, \"FALL\",'Master List'!F2:F600, \"2018\",'Master List'!R2:R600, \"G- May have contributed to permanent harm ex. Bone fracture, surgical intervention\",  'Master List'!D2:D600,  \"apr\")","v":0},{"$f":"COUNTIFS('Master List'!L2:L600, \"FALL\",'Master List'!F2:F600, \"2018\",'Master List'!R2:R600, \"G- May have contributed to permanent harm ex. Bone fracture, surgical intervention\",  'Master List'!D2:D600,  \"may\")","v":0},{"$f":"COUNTIFS('Master List'!L2:L600, \"FALL\",'Master List'!F2:F600, \"2018\",'Master List'!R2:R600, \"G- May have contributed to permanent harm ex. Bone fracture, surgical intervention\",  'Master List'!D2:D600, \"jun\")","v":0},{"$f":"COUNTIFS('Master List'!L2:L600, \"FALL\",'Master List'!F2:F600, \"2018\",'Master List'!R2:R600, \"G- May have contributed to permanent harm ex. Bone fracture, surgical intervention\",  'Master List'!D2:D600,  \"jul\")","v":0},{"$f":"COUNTIFS('Master List'!L2:L600, \"FALL\",'Master List'!F2:F600, \"2018\",'Master List'!R2:R600, \"G- May have contributed to permanent harm ex. Bone fracture, surgical intervention\",  'Master List'!D2:D600, \"aug\")","v":0},{"$f":"COUNTIFS('Master List'!L2:L600, \"FALL\",'Master List'!F2:F600, \"2018\",'Master List'!R2:R600, \"G- May have contributed to permanent harm ex. Bone fracture, surgical intervention\",  'Master List'!D2:D600,  \"sep\")","v":0},{"$f":"COUNTIFS('Master List'!L2:L600, \"FALL\",'Master List'!F2:F600, \"2018\",'Master List'!R2:R600, \"G- May have contributed to permanent harm ex. Bone fracture, surgical intervention\",  'Master List'!D2:D600,  \"oct\")","v":0},{"$f":"COUNTIFS('Master List'!L2:L600, \"FALL\",'Master List'!F2:F600, \"2018\",'Master List'!R2:R600, \"G- May have contributed to permanent harm ex. Bone fracture, surgical intervention\",  'Master List'!D2:D600,  \"nov\")","v":0},{"$f":"COUNTIFS('Master List'!L2:L600, \"FALL\",'Master List'!F2:F600, \"2018\",'Master List'!R2:R600, \"G- May have contributed to permanent harm ex. Bone fracture, surgical intervention\",  'Master List'!D2:D600,  \"dec\")","v":0},0,0,0,0]
[null,null,"H- Near death circumstances ex. Elopement w/hypothermia, anaphalactic reaction",{"$f":"COUNTIFS('Master List'!L2:L600, \"FALL\",'Master List'!F2:F600, \"2018\",'Master List'!R2:R600, \"H- Near death circumstances ex. Elopement w/hypothermia, anaphalactic reaction\")","v":0},{"$f":"COUNTIFS('Master List'!L36:L434, \"FALL\",'Master List'!F36:F434, \"2018\",'Master List'!Q36:Q434, \"H- Near death circumstances ex. Elopement w/hypothermia, anaphalactic reaction\",'Master List'!D65:D463, \"JAN\")","v":0},{"$f":"COUNTIFS('Master List'!L36:L434, \"FALL\",'Master List'!F36:F434, \"2018\",'Master List'!Q36:Q434, \"H- Near death circumstances ex. Elopement w/hypothermia, anaphalactic reaction\",  'Master List'!D65:D463, \"feb\")","v":0},{"$f":"COUNTIFS('Master List'!L36:L434, \"FALL\",'Master List'!F36:F434, \"2018\",'Master List'!Q36:Q434, \"H- Near death circumstances ex. Elopement w/hypothermia, anaphalactic reaction\",  'Master List'!D65:D463,  \"Mar\")","v":0},{"$f":"COUNTIFS('Master List'!L36:L434, \"FALL\",'Master List'!F36:F434, \"2018\",'Master List'!Q36:Q434, \"H- Near death circumstances ex. Elopement w/hypothermia, anaphalactic reaction\",  'Master List'!D65:D463,  \"apr\")","v":0},{"$f":"COUNTIFS('Master List'!L36:L434, \"FALL\",'Master List'!F36:F434, \"2018\",'Master List'!Q36:Q434, \"H- Near death circumstances ex. Elopement w/hypothermia, anaphalactic reaction\",  'Master List'!D65:D463,  \"may\")","v":0},{"$f":"COUNTIFS('Master List'!L36:L434, \"FALL\",'Master List'!F36:F434, \"2018\",'Master List'!Q36:Q434, \"H- Near death circumstances ex. Elopement w/hypothermia, anaphalactic reaction\",  'Master List'!D65:D463, \"jun\")","v":0},{"$f":"COUNTIFS('Master List'!L36:L434, \"FALL\",'Master List'!F36:F434, \"2018\",'Master List'!Q36:Q434, \"H- Near death circumstances ex. Elopement w/hypothermia, anaphalactic reaction\",  'Master List'!D65:D463,  \"jul\")","v":0},{"$f":"COUNTIFS('Master List'!L36:L434, \"FALL\",'Master List'!F36:F434, \"2018\",'Master List'!Q36:Q434, \"H- Near death circumstances ex. Elopement w/hypothermia, anaphalactic reaction\",  'Master List'!D65:D463, \"aug\")","v":0},{"$f":"COUNTIFS('Master List'!L36:L434, \"FALL\",'Master List'!F36:F434, \"2018\",'Master List'!Q36:Q434, \"H- Near death circumstances ex. Elopement w/hypothermia, anaphalactic reaction\",  'Master List'!D65:D463,  \"sep\")","v":0},{"$f":"COUNTIFS('Master List'!L36:L434, \"FALL\",'Master List'!F36:F434, \"2018\",'Master List'!Q36:Q434, \"H- Near death circumstances ex. Elopement w/hypothermia, anaphalactic reaction\",  'Master List'!D65:D463,  \"oct\")","v":0},{"$f":"COUNTIFS('Master List'!L36:L434, \"FALL\",'Master List'!F36:F434, \"2018\",'Master List'!Q36:Q434, \"H- Near death circumstances ex. Elopement w/hypothermia, anaphalactic reaction\",  'Master List'!D65:D463,  \"nov\")","v":0},{"$f":"COUNTIFS('Master List'!L36:L434, \"FALL\",'Master List'!F36:F434, \"2018\",'Master List'!Q36:Q434, \"H- Near death circumstances ex. Elopement w/hypothermia, anaphalactic reaction\",  'Master List'!D65:D463,  \"dec\")","v":0},0,0,0,0]
[null,null,"I- Event contributed to or resulted in death",{"$f":"COUNTIFS('Master List'!L2:L600, \"FALL\",'Master List'!F2:F600, \"2018\",'Master List'!R2:R600, \"I- Event contributed to or resulted in death\")","v":0},{"$f":"COUNTIFS('Master List'!L37:L435, \"FALL\",'Master List'!F37:F435, \"2018\",'Master List'!Q37:Q435, \"I- Event contributed to or resulted in death\",'Master List'!D66:D464, \"JAN\")","v":0},{"$f":"COUNTIFS('Master List'!L37:L435, \"FALL\",'Master List'!F37:F435, \"2018\",'Master List'!Q37:Q435, \"I- Event contributed to or resulted in death\",  'Master List'!D66:D464, \"feb\")","v":0},{"$f":"COUNTIFS('Master List'!L37:L435, \"FALL\",'Master List'!F37:F435, \"2018\",'Master List'!Q37:Q435, \"I- Event contributed to or resulted in death\",  'Master List'!D66:D464,  \"Mar\")","v":0},{"$f":"COUNTIFS('Master List'!L37:L435, \"FALL\",'Master List'!F37:F435, \"2018\",'Master List'!Q37:Q435, \"I- Event contributed to or resulted in death\",  'Master List'!D66:D464,  \"apr\")","v":0},{"$f":"COUNTIFS('Master List'!L37:L435, \"FALL\",'Master List'!F37:F435, \"2018\",'Master List'!Q37:Q435, \"I- Event contributed to or resulted in death\",  'Master List'!D66:D464,  \"may\")","v":0},{"$f":"COUNTIFS('Master List'!L37:L435, \"FALL\",'Master List'!F37:F435, \"2018\",'Master List'!Q37:Q435, \"I- Event contributed to or resulted in death\",  'Master List'!D66:D464, \"jun\")","v":0},{"$f":"COUNTIFS('Master List'!L37:L435, \"FALL\",'Master List'!F37:F435, \"2018\",'Master List'!Q37:Q435, \"I- Event contributed to or resulted in death\",  'Master List'!D66:D464,  \"jul\")","v":0},{"$f":"COUNTIFS('Master List'!L37:L435, \"FALL\",'Master List'!F37:F435, \"2018\",'Master List'!Q37:Q435, \"I- Event contributed to or resulted in death\",  'Master List'!D66:D464, \"aug\")","v":0},{"$f":"COUNTIFS('Master List'!L37:L435, \"FALL\",'Master List'!F37:F435, \"2018\",'Master List'!Q37:Q435, \"I- Event contributed to or resulted in death\",  'Master List'!D66:D464,  \"sep\")","v":0},{"$f":"COUNTIFS('Master List'!L37:L435, \"FALL\",'Master List'!F37:F435, \"2018\",'Master List'!Q37:Q435, \"I- Event contributed to or resulted in death\",  'Master List'!D66:D464,  \"oct\")","v":0},{"$f":"COUNTIFS('Master List'!L37:L435, \"FALL\",'Master List'!F37:F435, \"2018\",'Master List'!Q37:Q435, \"I- Event contributed to or resulted in death\",  'Master List'!D66:D464,  \"nov\")","v":0},{"$f":"COUNTIFS('Master List'!L37:L435, \"FALL\",'Master List'!F37:F435, \"2018\",'Master List'!Q37:Q435, \"I- Event contributed to or resulted in death\",  'Master List'!D66:D464,  \"dec\")","v":0},0,0,0,0]
[null,null,"U- Cannot assess harm at this time",{"$f":"COUNTIFS('Master List'!L2:L600, \"FALL\",'Master List'!F2:F600, \"2018\",'Master List'!R2:R600, \"U- Cannot assess harm at this time\")","v":0},{"$f":"COUNTIFS('Master List'!L38:L436, \"FALL\",'Master List'!F38:F436, \"2018\",'Master List'!Q38:Q436, \"U- Cannot assess harm at this time\",'Master List'!D67:D465, \"JAN\")","v":0},{"$f":"COUNTIFS('Master List'!L38:L436, \"FALL\",'Master List'!F38:F436, \"2018\",'Master List'!Q38:Q436, \"U- Cannot assess harm at this time\",  'Master List'!D67:D465, \"feb\")","v":0},{"$f":"COUNTIFS('Master List'!L38:L436, \"FALL\",'Master List'!F38:F436, \"2018\",'Master List'!Q38:Q436, \"U- Cannot assess harm at this time\",  'Master List'!D67:D465,  \"Mar\")","v":0},{"$f":"COUNTIFS('Master List'!L38:L436, \"FALL\",'Master List'!F38:F436, \"2018\",'Master List'!Q38:Q436, \"U- Cannot assess harm at this time\",  'Master List'!D67:D465,  \"apr\")","v":0},{"$f":"COUNTIFS('Master List'!L38:L436, \"FALL\",'Master List'!F38:F436, \"2018\",'Master List'!Q38:Q436, \"U- Cannot assess harm at this time\",  'Master List'!D67:D465,  \"may\")","v":0},{"$f":"COUNTIFS('Master List'!L38:L436, \"FALL\",'Master List'!F38:F436, \"2018\",'Master List'!Q38:Q436, \"U- Cannot assess harm at this time\",  'Master List'!D67:D465, \"jun\")","v":0},{"$f":"COUNTIFS('Master List'!L38:L436, \"FALL\",'Master List'!F38:F436, \"2018\",'Master List'!Q38:Q436, \"U- Cannot assess harm at this time\",  'Master List'!D67:D465,  \"jul\")","v":0},{"$f":"COUNTIFS('Master List'!L38:L436, \"FALL\",'Master List'!F38:F436, \"2018\",'Master List'!Q38:Q436, \"U- Cannot assess harm at this time\",  'Master List'!D67:D465, \"aug\")","v":0},{"$f":"COUNTIFS('Master List'!L38:L436, \"FALL\",'Master List'!F38:F436, \"2018\",'Master List'!Q38:Q436, \"U- Cannot assess harm at this time\",  'Master List'!D67:D465,  \"sep\")","v":0},{"$f":"COUNTIFS('Master List'!L38:L436, \"FALL\",'Master List'!F38:F436, \"2018\",'Master List'!Q38:Q436, \"U- Cannot assess harm at this time\",  'Master List'!D67:D465,  \"oct\")","v":0},{"$f":"COUNTIFS('Master List'!L38:L436, \"FALL\",'Master List'!F38:F436, \"2018\",'Master List'!Q38:Q436, \"U- Cannot assess harm at this time\",  'Master List'!D67:D465,  \"nov\")","v":0},{"$f":"COUNTIFS('Master List'!L38:L436, \"FALL\",'Master List'!F38:F436, \"2018\",'Master List'!Q38:Q436, \"U- Cannot assess harm at this time\",  'Master List'!D67:D465,  \"dec\")","v":0},0,0,0,0]

{"sheet":"1st Quarter 2016 Graphs","index":4,"n_rows":126,"n_cols":2,"rows_kept":126,"cut":false,"hidden":false,"merged":[]}
["Primary Key Identifier","(All)"]
["Month","(Multiple Items)"]
[]
["Row Labels","Count of Type of Incident"]
["ELOPEMENT",1]
["FALL",57]
["MED ERROR",12]
["OTHER",5]
["Grand Total",75]
[]
[]
[]
[]
[]
[]
[]
[]
["Primary Key Identifier","(All)"]
["Month","(Multiple Items)"]
[]
["Row Labels","Count of Type of Incident"]
["FALL",57]
["Floor 1",9]
["Floor 2",23]
["Floor 3",2]
["Floor 4",16]
["Floor 5",7]
["Grand Total",57]
[]
[]
[]
[]
[]
[]
[]
[]
["Primary Key Identifier","(All)"]
["Month","(Multiple Items)"]
[]
["Row Labels","Count of Type of Incident"]
["FALL",57]
["AM",14]
["PM",21]
["NIGHT",22]
["Grand Total",57]
[]
[]
[]
[]
[]
[]
[]
[]
["Primary Key Identifier","(All)"]
["Month","(Multiple Items)"]
[]
["Row Labels","Count of Type of Incident"]
["FALL",57]
["SUN",12]
["MON",8]
["TUE",11]
["WED",3]
["THU",6]
["FRI",9]
["SAT",8]
["Grand Total",57]
[]
[]
[]
[]
[]
[]
["Primary Key Identifier","(All)"]
["Month","(Multiple Items)"]
[]
["Row Labels","Count of Type of Incident"]
["FALL",57]
["Bathroom",3]
["Dining Room",2]
["Living Room",2]
["Other",3]
["Resident Room",46]
["(blank)",1]
["Grand Total",57]
[]
[]
[]
[]
[]
[]
[]
["Primary Key Identifier","(All)"]
["Month","(Multiple Items)"]
[]
["Row Labels","Count of Type of Incident"]
["FALL",57]
["Ambulating",12]
["In Bed",7]
["In Chair",7]
["Reaching/Leaning",2]
["Standing Up",5]
["Toileting",6]
["Transferring",13]
["Unknown",1]
["(blank)",4]
["Grand Total",57]
[]
[]
[]
[]
[]
["Primary Key Identifier","(All)"]
["Month","(Multiple Items)"]
[]
["Row Labels"]
["C- No Injury Event"]
["FALL"]
["D- No harm, but monitoring needed ex. Skin tear"]
["FALL"]
["E- Temporary harm, ex. Sutures"]
["FALL"]
["F- Temporary harm with hospitalization ex. PU with hosptialization for tx"]
["FALL"]
["G- May have contributed to permanent harm ex. Bone fracture, surgical intervention"]
["FALL"]
["Grand Total"]